Workbook

Sheet README (hidden)
A1: Navigation
A2: This is a beta development file for a replacement to LOGASNET. Changes may still be made in future.
A4: Key:
B5: Grey fields - these are populated automatically
B6: Clear fields - input data here
A8: Instructions:
A10: Adding returns data
A11: 1 - Type in the Project Number of projects with outputs to report. This will automatically populate the project details (including name, etc.)
A12: 2 - Populate the table with financial data and outputs within the period. Note that forecast values and variance from forecast will be populated automatically when this information has been received.
A14: Adding new projects
A15: 1 - Add a new Project Number to the Summary sheet. This can be done by dragging the last Project Number cell down by one or manually typing it and following the existing formatting.
A16: 2 - Populate the project details in the Summary sheet.
A17: 3 - Confirm that the formulas in the newly added row have copied down successfully.
A19: Updating the Summary sheet
A20: Option A - Ensure macros have been enabled and the Pre_1718 table is non-empty. Press the button in cell B1 of the Summary sheet.
A21: Option B - Ensure macros have been enabled and the Pre_1718 table is non-empty. Use the shortcut Ctrl + Shift + C.
A22: Option C - Manually copy the data from the new returns data onto the end of existing data on the All_data sheet.
A24: Updating the Dashbaord
A25: 1 - Change the dates to the correct quarter to ensure the most recent data is being displayed.
A28: Adding returns sheets
A29: Advanced users only. All returns sheets have been created already.
A30: Option A - Ensure macros have been enabled and use the shortcut Ctrl + Shift + N. Type in the relevant period in the correct exact format ("Q#_####").
A31: Option B - Manually make a copy the Template sheet and rename as the relevant period in the correct exact format. Click on the Table, open Table Tools from the ribon and rename to match sheet name. Click on the first entry in the Period column and replace "Template" with the sheet name (keeping quotation marks).

Sheet NAVIGATION (hidden)
A1: Table of Contents
A3: NAVIGATION
A4: README
A5: Dashboard
A6: Summary
A7: Pre_1718
A8: Q1_1718
A9: Q2_1718
A10: Q3_1718
A11: Q4_1718
A12: Q1_1819
A13: Q2_1819
A14: Q3_1819
A15: Q4_1891
A16: Q1_1920
A17: Q2_1920
A18: Q3_1920
A19: Q4_1920
A20: Q1_2021
A21: Q2_2021
A22: Q3_2021
A23: Q4_2021
A24: Template | B24: (Hidden)
A25: Forecasts
A26: All_data
A27: Options | B27: (Hidden)

Sheet Dashboard
A1: V7.1
B2: LEP Name | E2: Greater London Authority | N2: Growth Deal Performance | O2: Current Bi-annual Submission | P2: Area lead comments
O3: 2024-25 (Apr – Sept 2024)
B5: Deliverables Progress | N5: Financials Achieved between (2015/16 - 2026 and beyond)
L6: Check | AC6: Totals to Date | AD6: Totals to 31 March 2021
B7: Housing | D7: 15-21 | E7: Financial Year | K7: Total | N7: LGF Award | P7: 2015-16 | Q7: 2016-17 | R7: 17-18 | S7: 18-19 | T7: 19-20 | U7: 20-21 | V7: 21-22 | W7: 22-23 | X7: 23-24 | Y7: 24-25 | Z7: 25-26 | AA7: 26 & beyond | AB7: Total | AC7: Manual Adjustments | AD7: Totals to 31 March 2021
D8: 15-17 | E8: 21-22 | F8: 22-23 | G8: 23-24 | H8: 24-25 | I8: 25-26 | J8: 26 & beyond | K8: 15-17 | P8: 57000000 | Q8: 77528400 | R8: 41627017.34 | S8: 35379853.7 | T8: 29213501.63 | U8: 83631227.34 | V8: 0 | W8: 0 | X8: 0 | Y8: 0 | Z8: 0 | AA8: 0 | AB8: =SUM(P8:Z8)+AC8 -> 324380000 | AD8: =SUM(P8:U8)+AC8 -> 324380000
B9: Houses Completed | D9: =SUM(Summary3[Housing Units Completed]) -> 0 | E9: =Q4_2021[[#Totals],[Housing Units April 2021 - March 2022 Actual ]] -> 97 | F9: =Q4_2021[[#Totals],[Housing Units April 2022 - March 2023 Actual ]] -> 0 | G9: =Q4_2021[[#Totals],[Housing Units April 2023 - March 2024 Actual ]] -> 0 | H9: =Q4_2021[[#Totals],[Housing Units April 2024 - March 2025 Actual ]] -> 0 | I9: =Q4_2021[[#Totals],[Housing Units April 2025 - March 2026 Actual ]] -> 0 | J9: =Q4_2021[[#Totals],[Housing Units April 2026 and beyond Actual]] -> 0 | K9: =SUM(D9:J9) -> 97 | AC9: Figures taken from the Return and Summary
B10: Forecast for year | D10: 0 | E10: =Q4_2021[[#Totals],[Housing Units April 2021 - March 2022 Forecast]] -> 0 | F10: =Q4_2021[[#Totals],[Housing Units April 2022 - March 2023 Forecast]] -> 0 | G10: =Q4_2021[[#Totals],[Housing Units April 2023 - March 2024 Forecast]] -> 0 | H10: =Q4_2021[[#Totals],[Housing Units April 2024 - March 2025 Forecast]] -> 0 | I10: =Q4_2021[[#Totals],[Housing Units April 2025 - March 2026 Forecast]] -> 0 | J10: =Q4_2021[[#Totals],[Housing Units April 2026 and beyond Forecast]] -> 0 | K10: =SUM(D10:J10) -> 0 | Q10: 15-17 | R10: Financial Year (as @ 31 March 21) | X10: Financial Years (21-26) | AB10: Total | AC10: ACTUAL EXPENDITURE to date | AD10: DEFRAYED as at 31 March 21
B11: Progress towards forecast | D11: =IFERROR(D9/D10,0) -> 0 | E11: 0 | F11: 0 | G11: 0 | H11: 0 | I11: 0 | J11: =IFERROR(J9/J10,0) -> 0 | K11: 0 | N11: LGF Expenditure | R11: 17-18 | S11: 18-19 | T11: 19-20 | U11: 20-21 | V11: 21-22 | W11: 22-23 | X11: 23-24 | Y11: 24-25 | Z11: 25-26 | AA11: =AA7 -> 26 & beyond | AB11: 15-17 | AC11: =Q4_2021[[#Totals],[LGF Expenditure Actual To Date ]] -> 264229393 | AD11: =SUM(Summary3[LGF Spend as at 31 March 21]) -> 154838793
N12: Actual | Q12: 20983511.64 | R12: 17805685.42 | S12: 41236557.22 | T12: 34668544.63 | U12: 190991603 | V12: =SUM(Q4_2021[LGF Expenditure April 2021 - March 2022 Actual ]) -> 44843716 | W12: =SUM(Q4_2021[LGF Expenditure April 2022 - March 2023 Actual ]) -> 34696435 | X12: =SUM(Q4_2021[LGF Expenditure April 2023 - March 2024 Actual ]) -> 29850449 | Y12: =SUM(Q4_2021[LGF Expenditure April 2024 - March 2025 Actual ]) -> 0 | Z12: =SUM(Q4_2021[LGF Expenditure April 2025 - March 2026 Actual ]) -> 0 | AA12: =SUM(Q4_2021[LGF Expenditure April 2026 and beyond Actual]) -> 0 | AB12: =SUM(Q12:Z12) -> 415076501.9 | AC12: =AC11 -> 264229393 | AD12: =SUM(P12:U12) -> 305685901.9
B13: Number of new homes with new or improved fibre optic provision | D13: =SUM(Summary3[Number of new homes with new or improved fibre optic provision]) -> 4359 | E13: =Q4_2021[[#Totals],[Number of new homes with new or improved fibre optic provision April 2021 - March 2022 Actual ]] -> 0 | F13: =Q4_2021[[#Totals],[Number of new homes with new or improved fibre optic provision April 2022 - March 2023 Actual ]] -> 0 | G13: =Q4_2021[[#Totals],[Number of new homes with new or improved fibre optic provision April 2023 - March 2024 Actual ]] -> 0 | H13: =Q4_2021[[#Totals],[Number of new homes with new or improved fibre optic provision April 2024 - March 2025 Actual ]] -> 0 | I13: =Q4_2021[[#Totals],[Number of new homes with new or improved fibre optic provision April 2025 - March 2026 Actual ]] -> 0 | J13: =Q4_2021[[#Totals],[Number of new homes with new or improved fibre optic provision April 2026 and beyond Actual]] -> 0 | K13: =SUM(D13:J13) -> 4359 | N13: Forecast for year | Q13: 20835541 | R13: 1236500 | S13: 34266089.32 | T13: 45483358.01 | U13: 157210068 | V13: =SUM(Q4_2021[LGF Expenditure April 2021 - March 2022 Forecast]) -> 0 | W13: =SUM(Q4_2021[LGF Expenditure April 2022 - March 2023 Forecast]) -> 0 | X13: =SUM(Q4_2021[LGF Expenditure April 2023 - March 2024 Forecast]) -> 0 | Y13: =SUM(Q4_2021[LGF Expenditure April 2024 - March 2025 Forecast]) -> 25776723 | Z13: =SUM(Q4_2021[LGF Expenditure April 2025 - March 2026 Forecast]) -> 34463698 | AA13: =SUM(Q4_2021[LGF Expenditure April 2026 and beyond Forecast]) -> 0 | AB13: =SUM(Q13:Z13) -> 319271977.3 | AC13: =AB13 -> 319271977.3 | AD13: =SUM(P13:U13) -> 259031556.3
B14: Forecast for year | D14: 4359 | E14: =Q4_2021[[#Totals],[Number of new homes with new or improved fibre optic provision April 2021 - March 2022 Forecast]] -> 0 | F14: =Q4_2021[[#Totals],[Number of new homes with new or improved fibre optic provision April 2022 - March 2023 Forecast]] -> 0 | G14: =Q4_2021[[#Totals],[Number of new homes with new or improved fibre optic provision April 2023 - March 2024 Forecast]] -> 0 | H14: =Q4_2021[[#Totals],[Number of new homes with new or improved fibre optic provision April 2024 - March 2025 Forecast]] -> 0 | I14: =Q4_2021[[#Totals],[Number of new homes with new or improved fibre optic provision April 2025 - March 2026 Forecast]] -> 0 | J14: =Q4_2021[[#Totals],[Number of new homes with new or improved fibre optic provision April 2026 and beyond Forecast]] -> 0 | K14: =SUM(D14:J14) -> 4359 | N14: Progress towards forecast | Q14: =IFERROR(Q12/Q13,"-") -> 1.007101838 | R14: 14.40006908 | S14: 1.203421751 | T14: 0.7622248256 | U14: 1.214881499 | V14: - | W14: - | X14: - | Y14: 0 | Z14: 0 | AA14: - | AB14: =IFERROR(AB12/AB13,"-") -> 1.300071824 | AC14: =IFERROR(AC12/AC13,"-") -> 0.8275997011 | AD14: =IFERROR(AD12/AD13,"-") -> 1.180110664
B15: Progress towards forecast | D15: =IFERROR(D13/D14,0) -> 1 | E15: 0 | F15: 0 | G15: 0 | H15: 0 | I15: 0 | J15: =IFERROR(J13/J14,0) -> 0 | K15: 1
N16: Non-LGF Expenditure
N17: Actual | Q17: 55163655.62 | R17: 20827574.71 | S17: 22264812 | T17: 56149256.37 | U17: 21911416.95 | V17: =SUM(Q4_2021[Public Sector Investment April 2021 - March 2022 Actual ])+SUM(Q4_2021[Private Sector Investment April 2021 - March 2022 Actual ])+SUM(Q4_2021[Third Sector Investment April 2021 - March 2022 Actual ]) -> 134498062.8 | W17: =SUM(Q4_2021[Public Sector Investment April 2022 - March 2023 Actual ])+SUM(Q4_2021[Private Sector Investment April 2022 - March 2023 Actual ])+SUM(Q4_2021[Third Sector Investment April 2022 - March 2023 Actual ]) -> 63698750.56 | X17: =SUM(Q4_2021[Public Sector Investment April 2023 - March 2024 Actual ])+SUM(Q4_2021[Private Sector Investment April 2023 - March 2024 Actual ])+SUM(Q4_2021[Third Sector Investment April 2023 - March 2024 Actual ]) -> 40043569.44 | Y17: =SUM(Q4_2021[Public Sector Investment April 2024 - March 2025 Actual ])+SUM(Q4_2021[Private Sector Investment April 2024 - March 2025 Actual ])+SUM(Q4_2021[Third Sector Investment April 2024 - March 2025 Actual ]) -> 2099989 | Z17: =SUM(Q4_2021[Public Sector Investment April 2025 - March 2026 Actual ])+SUM(Q4_2021[Private Sector Investment April 2025 - March 2026 Actual ])+SUM(Q4_2021[Third Sector Investment April 2025 - March 2026 Actual ]) -> 3266010 | AA17: =SUM(Q4_2021[Public Sector Investment April 2026 and beyond Actual])+SUM(Q4_2021[Private Sector Investment April 2026 and beyond Actual])+SUM(Q4_2021[Third Sector Investment April 2026 and beyond Actual]) -> 0 | AB17: =SUM(Q17:Z17) -> 419923097.5 | AC17: =AB17 -> 419923097.5 | AD17: =SUM(P17:U17) -> 176316715.6
B18: Jobs | N18: Forecast for year | Q18: 55163655.62 | R18: 200000 | S18: 7067364.96 | T18: 66946242 | U18: 94471801.78 | V18: =SUM(Q4_2021[Public Sector Investment April 2021 - March 2022 Forecast])+SUM(Q4_2021[Private Sector Investment April 2021 - March 2022 Forecast])+SUM(Q4_2021[Third Sector Investment April 2021 - March 2022 Forecast]) -> 9816963.72 | W18: =SUM(Q4_2021[Public Sector Investment April 2022 - March 2023 Forecast])+SUM(Q4_2021[Private Sector Investment April 2022 - March 2023 Forecast])+SUM(Q4_2021[Third Sector Investment April 2022 - March 2023 Forecast]) -> 8584922.76 | X18: =SUM(Q4_2021[Public Sector Investment April 2023 - March 2024 Forecast])+SUM(Q4_2021[Private Sector Investment April 2023 - March 2024 Forecast])+SUM(Q4_2021[Third Sector Investment April 2023 - March 2024 Forecast]) -> 3217214 | Y18: =SUM(Q4_2021[Public Sector Investment April 2024 - March 2025 Forecast])+SUM(Q4_2021[Private Sector Investment April 2024 - March 2025 Forecast])+SUM(Q4_2021[Third Sector Investment April 2024 - March 2025 Forecast]) -> 18505799 | Z18: =SUM(Q4_2021[Public Sector Investment April 2025 - March 2026 Forecast])+SUM(Q4_2021[Private Sector Investment April 2025 - March 2026 Forecast])+SUM(Q4_2021[Third Sector Investment April 2025 - March 2026 Forecast]) -> 130628935 | AA18: =SUM(Q4_2021[Public Sector Investment April 2026 and beyond Forecast])+SUM(Q4_2021[Private Sector Investment April 2026 and beyond Forecast])+SUM(Q4_2021[Third Sector Investment April 2026 and beyond Forecast]) -> 0 | AB18: =SUM(Q18:Z18) -> 394602898.8 | AC18: =AB18 -> 394602898.8 | AD18: =SUM(P18:U18) -> 223849064.4
B19: Jobs Created | D19: =SUM(Summary3[Jobs Created]) -> 7425 | E19: =Q4_2021[[#Totals],[Jobs Created April 2021 - March 2022 Actual ]] -> 270.5 | F19: =Q4_2021[[#Totals],[Jobs Created April 2022 - March 2023 Actual ]] -> 560 | G19: =Q4_2021[[#Totals],[Jobs Created April 2023 - March 2024 Actual ]] -> 2692 | H19: =Q4_2021[[#Totals],[Jobs Created April 2024 - March 2025 Actual ]] -> 0 | I19: =Q4_2021[[#Totals],[Jobs Created April 2025 - March 2026 Actual ]] -> 0 | J19: =Q4_2021[[#Totals],[Jobs Created April 2026 and beyond Actual]] -> 0 | K19: =SUM(D19:J19) -> 10947.5 | N19: Progress towards forecast | Q19: =IFERROR(Q17/Q18,"-") -> 1 | R19: 104.1378736 | S19: 3.150369639 | T19: 0.8387215577 | U19: 0.2319360543 | V19: 13.70057654 | W19: 7.419839682 | X19: 12.4466602 | Y19: 0.1134773484 | Z19: 0.02500219419 | AA19: - | AB19: 1.064166276 | AC19: 1.064166276 | AD19: 0.7876589351
B20: Apprenticeships Created* | D20: =SUM(Summary3[Apprenticeships]) -> 3555 | E20: =Q4_2021[[#Totals],[Apprenticeships Created April 2021 - March 2022 Actual ]] -> 2207 | F20: =Q4_2021[[#Totals],[Apprenticeships Created April 2022 - March 2023 Actual ]] -> 634 | G20: =Q4_2021[[#Totals],[Apprenticeships Created April 2023 - March 2024 Actual ]] -> 359 | H20: =Q4_2021[[#Totals],[Apprenticeships Created April 2024 - March 2025 Actual ]] -> 0 | I20: =Q4_2021[[#Totals],[Apprenticeships Created April 2025 - March 2026 Actual ]] -> 0 | J20: =Q4_2021[[#Totals],[Apprenticeships Created April 2026 and beyond Actual]] -> 0 | K20: =SUM(D20:J20) -> 6755
B21: Jobs including Apprenticeships | D21: =SUM(D19:D20) -> 10980 | E21: 2477.5 | F21: 1194 | G21: 3051 | H21: 0 | I21: 0 | J21: =SUM(J19:J20) -> 0 | K21: =SUM(D21:J21) -> 17702.5 | N21: Total LGF + non-LGF Expenditure
B22: Forecast for year | D22: 10980 | E22: =Q4_2021[[#Totals],[Jobs Created April 2021 - March 2022 Forecast]]+Q4_2021[[#Totals],[Apprenticeships Created April 2021 - March 2022 Forecast]] -> 1385 | F22: =Q4_2021[[#Totals],[Jobs Created April 2022 - March 2023 Forecast]]+Q4_2021[[#Totals],[Apprenticeships Created April 2022 - March 2023 Forecast]] -> 577 | G22: =Q4_2021[[#Totals],[Jobs Created April 2023 - March 2024 Forecast]]+Q4_2021[[#Totals],[Apprenticeships Created April 2023 - March 2024 Forecast]] -> 7530.5 | H22: =Q4_2021[[#Totals],[Jobs Created April 2024 - March 2025 Forecast]]+Q4_2021[[#Totals],[Apprenticeships Created April 2024 - March 2025 Forecast]] -> 1572 | I22: =Q4_2021[[#Totals],[Jobs Created April 2025 - March 2026 Forecast]]+Q4_2021[[#Totals],[Apprenticeships Created April 2025 - March 2026 Forecast]] -> 9437 | J22: =Q4_2021[[#Totals],[Jobs Created April 2026 and beyond Forecast]]+Q4_2021[[#Totals],[Apprenticeships Created April 2026 and beyond Forecast]] -> 0 | K22: =SUM(D22:J22) -> 31481.5 | N22: Actual | Q22: 76147167.26 | R22: 38633260.13 | S22: 63501369.22 | T22: 90817801 | U22: 212903019.9 | V22: =V12+V17 -> 179341778.8 | W22: 98395185.56 | X22: 69894018.44 | Y22: 2099989 | Z22: 3266010 | AA22: 0 | AB22: =AB12+AB17 -> 834999599.4 | AC22: =AB22 -> 834999599.4 | AD22: =SUM(P22:U22) -> 482002617.6
B23: Progress towards forecast | D23: =IFERROR(D21/D22,0) -> 1 | E23: 1.788808664 | F23: 2.06932409 | G23: 0.4051523803 | H23: 0 | I23: 0 | J23: =IFERROR(J21/J22,0) -> 0 | K23: 0.5623143751 | N23: Forecast for year | Q23: 75999196.62 | R23: 1436500 | S23: 41333454.28 | T23: 112429600 | U23: 251681869.8 | V23: =V13+V18 -> 9816963.72 | W23: 8584922.76 | X23: 3217214 | Y23: 44282522 | Z23: 165092633 | AA23: 0 | AB23: =AB13+AB18 -> 713874876.2 | AC23: =AB23 -> 713874876.2 | AD23: =SUM(P23:U23) -> 482880620.7
B24: * Apprenticeships included within jobs totals prior to 2017 | N24: Progress towards forecast | R24: =IFERROR(R22/R23,"-") -> 26.89402028 | S24: 1.536318953 | T24: 0.8077748297 | U24: 0.8459211628 | V24: 18.26855879 | W24: 11.46139439 | X24: 21.72501377 | Y24: 0.04742252485 | Z24: 0.01978289364 | AA24: - | AB24: 1.169672203 | AC24: 1.169672203 | AD24: 0.9981817387
B26: Skills | N26: Contractual Commitments (manual entry) | Q26: 1 | R26: 2 | S26: 3 | T26: 4 | U26: 5 | V26: 6 | W26: 7 | X26: 8 | Y26: 9 | Z26: 10 | AA26: 11
B27: Area of new or improved floorspace (m2) | D27: =SUM(Summary3[Area of new or improved learning/training floorspace (m2)]) -> 95375 | E27: =Q4_2021[[#Totals],[Area of new or improved learning/training floorspace (m2) April 2021 - March 2022 Actual ]] -> 78702 | F27: =Q4_2021[[#Totals],[Area of new or improved learning/training floorspace (m2) April 2022 - March 2023 Actual ]] -> 4480 | G27: =Q4_2021[[#Totals],[Area of new or improved learning/training floorspace (m2) April 2023 - March 2024 Actual ]] -> 0 | H27: =Q4_2021[[#Totals],[Area of new or improved learning/training floorspace (m2) April 2024 - March 2025 Actual ]] -> 5476 | I27: =Q4_2021[[#Totals],[Area of new or improved learning/training floorspace (m2) April 2025 - March 2026 Actual ]] -> 0 | J27: =Q4_2021[[#Totals],[Area of new or improved learning/training floorspace (m2) April 2026 and beyond Actual]] -> 0 | K27: =SUM(D27:J27) -> 184033 | Q27: 15-17 | R27: 17-18 | S27: 18-19 | T27: 19-20 | U27: 20-21 | V27: 21-22 | W27: 22-23 | X27: 23-24 | Y27: 24-25 | Z27: 25-26 | AA27: =AA7 -> 26 & beyond | AB27: Total
B28: Forecast for year | D28: 95375 | E28: =Q4_2021[[#Totals],[Area of new or improved learning/training floorspace (m2) April 2021 - March 2022 Forecast]] -> 20000 | F28: =Q4_2021[[#Totals],[Area of new or improved learning/training floorspace (m2) April 2022 - March 2023 Forecast]] -> 20668 | G28: =Q4_2021[[#Totals],[Area of new or improved learning/training floorspace (m2) April 2023 - March 2024 Forecast]] -> 35052 | H28: =Q4_2021[[#Totals],[Area of new or improved learning/training floorspace (m2) April 2024 - March 2025 Forecast]] -> 56207 | I28: =Q4_2021[[#Totals],[Area of new or improved learning/training floorspace (m2) April 2025 - March 2026 Forecast]] -> 3674 | J28: =Q4_2021[[#Totals],[Area of new or improved learning/training floorspace (m2) April 2026 and beyond Forecast]] -> 0 | K28: =SUM(D28:J28) -> 230976 | N28: Forecast | Q28: 108727769 | R28: 42837700 | S28: 43638715.63 | T28: 52175815.63 | U28: 77000000 | AB28: =SUM(Q28:Z28) -> 324380000.3 | AC28: =AB28 -> 324380000.3 | AD28: =SUM(P28:U28) -> 324380000.3
B29: Progress towards forecast | D29: =IFERROR(D27/D28,0) -> 1 | E29: 3.9351 | F29: 0.216760209 | G29: 0 | H29: 0.09742558756 | I29: 0 | J29: =IFERROR(J27/J28,0) -> 0 | K29: 0.7967624342 | N29: Actual | Q29: 72212000 | R29: 57033000 | S29: 23323000 | T29: 70871000 | U29: 100941000 | AB29: =SUM(Q29:Z29) -> 324380000 | AC29: =AB29 -> 324380000 | AD29: =SUM(P29:U29) -> 324380000
N30: Variance | Q30: =IFERROR(Q29/Q28-1,"-") -> -0.3358458408 | R30: 0.331374 | S30: -0.4655433905 | T30: 0.3583113007 | U30: 0.3109220779 | V30: - | W30: - | X30: - | Y30: - | Z30: - | AA30: - | AB30: -8.323570722e-10 | AC30: -8.323570722e-10 | AD30: -8.323570722e-10
B31: Floorspace rationalisation (m2) | D31: =SUM(Summary3[Floorspace rationalisation]) -> 0 | E31: =Q4_2021[[#Totals],[Floorspace rationalisation (m2) April 2021 - March 2022 Actual ]] -> 0 | F31: =Q4_2021[[#Totals],[Floorspace rationalisation (m2) April 2022 - March 2023 Actual ]] -> 0 | G31: =Q4_2021[[#Totals],[Floorspace rationalisation (m2) April 2023 - March 2024 Actual ]] -> 0 | H31: =Q4_2021[[#Totals],[Floorspace rationalisation (m2) April 2024 - March 2025 Actual ]] -> 0 | I31: =Q4_2021[[#Totals],[Floorspace rationalisation (m2) April 2025 - March 2026 Actual ]] -> 0 | J31: =Q4_2021[[#Totals],[Floorspace rationalisation (m2) April 2026 and beyond Actual]] -> 0 | K31: =SUM(D31:J31) -> 0
B32: Forecast for year | D32: 0 | E32: =Q4_2021[[#Totals],[Floorspace rationalisation (m2) April 2021 - March 2022 Forecast]] -> 0 | F32: =Q4_2021[[#Totals],[Floorspace rationalisation (m2) April 2022 - March 2023 Forecast]] -> 0 | G32: =Q4_2021[[#Totals],[Floorspace rationalisation (m2) April 2023 - March 2024 Forecast]] -> 0 | H32: =Q4_2021[[#Totals],[Floorspace rationalisation (m2) April 2024 - March 2025 Forecast]] -> 0 | I32: =Q4_2021[[#Totals],[Floorspace rationalisation (m2) April 2025 - March 2026 Forecast]] -> 0 | J32: =Q4_2021[[#Totals],[Floorspace rationalisation (m2) April 2026 and beyond Forecast]] -> 0 | K32: =SUM(D32:J32) -> 0 | N32: LGF Freedoms and Flexibilities
B33: Progress towards forecast | D33: =IFERROR(D31/D32,0) -> 0 | E33: 0 | F33: 0 | G33: 0 | H33: 0 | I33: 0 | J33: =IFERROR(J31/J32,0) -> 0 | K33: 0 | N33: B
O34: A | P34: B | R34: C | S34: LGF Spend | T34: LGF + F&F Spend | U34: LGF Forecast
B35: Number of New Learners Assisted | D35: =SUM(Summary3[Number of New Learners Assisted (in courses leading to a full qualification)]) -> 67276 | E35: =Q4_2021[[#Totals],[Number of New Learners Assisted (in courses leading to a full qualification) April 2021 - March 2022 Actual ]] -> 54038 | F35: =Q4_2021[[#Totals],[Number of New Learners Assisted (in courses leading to a full qualification) April 2022 - March 2023 Actual ]] -> 316380 | G35: =Q4_2021[[#Totals],[Number of New Learners Assisted (in courses leading to a full qualification) April 2023 - March 2024 Actual ]] -> 3841 | H35: =Q4_2021[[#Totals],[Number of New Learners Assisted (in courses leading to a full qualification) April 2024 - March 2025 Actual ]] -> 0 | I35: =Q4_2021[[#Totals],[Number of New Learners Assisted (in courses leading to a full qualification) April 2025 - March 2026 Actual ]] -> 0 | J35: =Q4_2021[[#Totals],[Number of New Learners Assisted (in courses leading to a full qualification) April 2026 and beyond Actual]] -> 0 | K35: =SUM(D35:J35) -> 441535 | N35: Total Local Growth Fund Award Spent to Date | O35: =AC11 -> 264229393 | P35: =AC11 -> 264229393 | Q35: =IF($N$33="A",O35,IF($N$33="B",P35,IF($N$33="C",R35))) -> 264229393 | R35: =AB8 -> 324380000 | S35: =Q35/AB8 -> 0.814567461 | T35: =Q39/AB8 ->  | U35: =IFERROR(Q41/(Q37+U38),0) -> 0
B36: Forecast for year | D36: 67276 | E36: =Q4_2021[[#Totals],[Number of New Learners Assisted (in courses leading to a full qualification) April 2021 - March 2022 Forecast]] -> 6815 | F36: =Q4_2021[[#Totals],[Number of New Learners Assisted (in courses leading to a full qualification) April 2022 - March 2023 Forecast]] -> 130000 | G36: =Q4_2021[[#Totals],[Number of New Learners Assisted (in courses leading to a full qualification) April 2023 - March 2024 Forecast]] -> 17910 | H36: =Q4_2021[[#Totals],[Number of New Learners Assisted (in courses leading to a full qualification) April 2024 - March 2025 Forecast]] -> 401267 | I36: =Q4_2021[[#Totals],[Number of New Learners Assisted (in courses leading to a full qualification) April 2025 - March 2026 Forecast]] -> 151873 | J36: =Q4_2021[[#Totals],[Number of New Learners Assisted (in courses leading to a full qualification) April 2026 and beyond Forecast]] -> 0 | K36: =SUM(D36:J36) -> 775141 | S36: =P35/AB8 -> 0.814567461 | T36: =P39/AB8 ->  | U36: =IFERROR(P41/(P37+T38),0) -> 0
B37: Progress towards forecast | D37: =IFERROR(D35/D36,0) -> 1 | E37: 7.929273661 | F37: 2.433692308 | G37: 0.2144611949 | H37: 0 | I37: 0 | J37: =IFERROR(J35/J36,0) -> 0 | K37: 0.5696189467 | N37: Total F&F available to be Used as at 01/04/2021 | O37: =#REF! ->  | P37: =#REF! ->  | Q37: =IF($N$33="A",O37,IF($N$33="B",P37,IF($N$33="C",R37))) ->  | R37: =#REF! ->  | S37: =R35/AB8 -> 1 | T37: =R39/AB8 ->  | U37: =IFERROR(R41/(R37+V39),0) -> 0
S38: LGF NOT ACCOUNTED FOR | U38: =IF(N33="A",V38,IF(N33="B",V39,IF(N33="C",V40,""))) ->  | V38: =AB8-Q39 ->  | W38: A
N39: Total LGF + F&F Expenditure | O39: =Q35+Q37 ->  | P39: =#REF!+#REF! ->  | Q39: =IF($N$33="A",O39,IF($N$33="B",P39,IF($N$33="C",R39))) ->  | R39: =#REF! ->  | V39: =AB8-P39 ->  | W39: B
B40: Transport | V40: =AB8-R39 ->  | W40: C
B41: Length of Road Resurfaced | D41: =SUM(Summary3[Length of Road Resurfaced]) -> 0 | E41: =Q4_2021[[#Totals],[Length of Road Resurfaced April 2021 - March 2022 Actual ]] -> 0 | F41: =Q4_2021[[#Totals],[Length of Road Resurfaced April 2022 - March 2023 Actual ]] -> 0 | G41: =Q4_2021[[#Totals],[Length of Road Resurfaced April 2023 - March 2024 Actual ]] -> 0 | H41: =Q4_2021[[#Totals],[Length of Road Resurfaced April 2024 - March 2025 Actual ]] -> 0 | I41: =Q4_2021[[#Totals],[Length of Road Resurfaced April 2025 - March 2026 Actual ]] -> 0 | J41: =Q4_2021[[#Totals],[Length of Road Resurfaced April 2026 and beyond Actual]] -> 0 | K41: =SUM(D41:J41) -> 0 | N41: LGF Spend Forecast | O41: =Q4_2021[[#Totals],[LGF Expenditure Year 2021-2026 and beyond Forecast]] -> 60240421 | P41: =Q4_2021[[#Totals],[LGF Expenditure Year 2021-2026 and beyond Forecast]] -> 60240421 | Q41: =IF($N$33="A",O41,IF($N$33="B",P41,IF($N$33="C",R41))) -> 60240421 | R41: 0
B42: Forecast for year | D42: 0 | E42: =Q4_2021[[#Totals],[Length of Road Resurfaced April 2021 - March 2022 Forecast]] -> 0 | F42: =Q4_2021[[#Totals],[Length of Road Resurfaced April 2022 - March 2023 Forecast]] -> 0 | G42: =Q4_2021[[#Totals],[Length of Road Resurfaced April 2023 - March 2024 Forecast]] -> 0 | H42: =Q4_2021[[#Totals],[Length of Road Resurfaced April 2024 - March 2025 Forecast]] -> 0 | I42: =Q4_2021[[#Totals],[Length of Road Resurfaced April 2025 - March 2026 Forecast]] -> 0 | J42: =Q4_2021[[#Totals],[Length of Road Resurfaced April 2026 and beyond Forecast]] -> 0 | K42: =SUM(D42:J42) -> 0
B43: Progress towards forecast | D43: =IFERROR(D41/D42,0) -> 0 | E43: 0 | F43: 0 | G43: 0 | H43: 0 | I43: 0 | J43: =IFERROR(J41/J42,0) -> 0 | K43: 0
B45: Length of Newly Built Road | D45: =SUM(Summary3[Length of Newly Built Road this period]) -> 0 | E45: =Q4_2021[[#Totals],[Length of Newly Built Road April 2021 - March 2022 Actual ]] -> 0 | F45: =Q4_2021[[#Totals],[Length of Newly Built Road April 2022 - March 2023 Actual ]] -> 0 | G45: =Q4_2021[[#Totals],[Length of Newly Built Road April 2023 - March 2024 Actual ]] -> 0 | H45: =Q4_2021[[#Totals],[Length of Newly Built Road April 2024 - March 2025 Actual ]] -> 0 | I45: =Q4_2021[[#Totals],[Length of Newly Built Road April 2025 - March 2026 Actual ]] -> 0 | J45: =Q4_2021[[#Totals],[Length of Newly Built Road April 2026 and beyond Actual]] -> 0 | K45: =SUM(D45:J45) -> 0 | N45: Commentary
B46: Forecast for year | D46: 0 | E46: =Q4_2021[[#Totals],[Length of Newly Built Road April 2021 - March 2022 Forecast]] -> 0 | F46: =Q4_2021[[#Totals],[Length of Newly Built Road April 2022 - March 2023 Forecast]] -> 0 | G46: =Q4_2021[[#Totals],[Length of Newly Built Road April 2023 - March 2024 Forecast]] -> 0 | H46: =Q4_2021[[#Totals],[Length of Newly Built Road April 2024 - March 2025 Forecast]] -> 0 | I46: =Q4_2021[[#Totals],[Length of Newly Built Road April 2025 - March 2026 Forecast]] -> 0 | J46: =Q4_2021[[#Totals],[Length of Newly Built Road April 2026 and beyond Forecast]] -> 0 | K46: =SUM(D46:J46) -> 0 | N46: 0
B47: Progress towards forecast | D47: =IFERROR(D45/D46,0) -> 0 | E47: 0 | F47: 0 | G47: 0 | H47: 0 | I47: 0 | J47: =IFERROR(J45/J46,0) -> 0 | K47: 0
B49: Length New Cycle Ways | D49: =SUM(Summary3[Length New Cycle Ways This Period]) -> 0 | E49: =Q4_2021[[#Totals],[Length New Cycle Ways April 2021 - March 2022 Actual ]] -> 0 | F49: =Q4_2021[[#Totals],[Length New Cycle Ways April 2022 - March 2023 Actual ]] -> 0 | G49: =Q4_2021[[#Totals],[Length New Cycle Ways April 2023 - March 2024 Actual ]] -> 0 | H49: =Q4_2021[[#Totals],[Length New Cycle Ways April 2024 - March 2025 Actual ]] -> 0 | I49: =Q4_2021[[#Totals],[Length New Cycle Ways April 2025 - March 2026 Actual ]] -> 0 | J49: =Q4_2021[[#Totals],[Length New Cycle Ways April 2026 and beyond Actual]] -> 0 | K49: =SUM(D49:J49) -> 0
B50: Forecast for year | D50: 0 | E50: =Q4_2021[[#Totals],[Length New Cycle Ways April 2021 - March 2022 Forecast]] -> 0 | F50: =Q4_2021[[#Totals],[Length New Cycle Ways April 2022 - March 2023 Forecast]] -> 0 | G50: =Q4_2021[[#Totals],[Length New Cycle Ways April 2023 - March 2024 Forecast]] -> 0 | H50: =Q4_2021[[#Totals],[Length New Cycle Ways April 2024 - March 2025 Forecast]] -> 0 | I50: =Q4_2021[[#Totals],[Length New Cycle Ways April 2025 - March 2026 Forecast]] -> 0 | J50: =Q4_2021[[#Totals],[Length New Cycle Ways April 2026 and beyond Forecast]] -> 0 | K50: =SUM(D50:J50) -> 0
B51: Progress towards forecast | D51: =IFERROR(D49/D50,0) -> 0 | E51: 0 | F51: 0 | G51: 0 | H51: 0 | I51: 0 | J51: =IFERROR(J49/J50,0) -> 0 | K51: 0
B54: Commercial
B55: Commercial floorspace created | D55: =SUM(Summary3[Commerical floorspace created]) -> 3892 | E55: =Q4_2021[[#Totals],[Commercial floorspace created April 2021 - March 2022 Actual ]] -> 10885 | F55: =Q4_2021[[#Totals],[Commercial floorspace created April 2022 - March 2023 Actual ]] -> 6954 | G55: =Q4_2021[[#Totals],[Commercial floorspace created April 2023 - March 2024 Actual ]] -> 1542 | H55: =Q4_2021[[#Totals],[Commercial floorspace created April 2024 - March 2025 Actual ]] -> 0 | I55: =Q4_2021[[#Totals],[Commercial floorspace created April 2025 - March 2026 Actual ]] -> 0 | J55: =Q4_2021[[#Totals],[Commercial floorspace created April 2026 and beyond Actual]] -> 0 | K55: =SUM(D55:J55) -> 23273
B56: Forecast for year | D56: 3892 | E56: =Q4_2021[[#Totals],[Commercial floorspace created April 2021 - March 2022 Forecast]] -> 4531 | F56: =Q4_2021[[#Totals],[Commercial floorspace created April 2022 - March 2023 Forecast]] -> 10353 | G56: =Q4_2021[[#Totals],[Commercial floorspace created April 2023 - March 2024 Forecast]] -> 4999 | H56: =Q4_2021[[#Totals],[Commercial floorspace created April 2024 - March 2025 Forecast]] -> 3800 | I56: =Q4_2021[[#Totals],[Commercial floorspace created April 2025 - March 2026 Forecast]] -> 0 | J56: =Q4_2021[[#Totals],[Commercial floorspace created April 2026 and beyond Forecast]] -> 0 | K56: =SUM(D56:J56) -> 27575
B57: Progress towards forecast | D57: =IFERROR(D55/D56,0) -> 1 | E57: 2.402339439 | F57: 0.6716893654 | G57: 0.3084616923 | H57: 0 | I57: 0 | J57: =IFERROR(J55/J56,0) -> 0 | K57: 0.8439891206
B59: Commercial floorspace refurbished | D59: =SUM(Summary3[Commerical floorspace refurbished]) -> 0 | E59: =Q4_2021[[#Totals],[Commercial floorspace refurbished April 2021 - March 2022 Actual ]] -> 0 | F59: =Q4_2021[[#Totals],[Commercial floorspace refurbished April 2022 - March 2023 Actual ]] -> 1295 | G59: =Q4_2021[[#Totals],[Commercial floorspace refurbished April 2023 - March 2024 Actual ]] -> 41303 | H59: =Q4_2021[[#Totals],[Commercial floorspace refurbished April 2024 - March 2025 Actual ]] -> 0 | I59: =Q4_2021[[#Totals],[Commercial floorspace refurbished April 2025 - March 2026 Actual ]] -> 0 | J59: =Q4_2021[[#Totals],[Commercial floorspace refurbished April 2026 and beyond Actual]] -> 0 | K59: =SUM(D59:J59) -> 42598
B60: Forecast for year | D60: 0 | E60: =Q4_2021[[#Totals],[Commercial floorspace refurbished April 2021 - March 2022 Forecast]] -> 3964 | F60: =Q4_2021[[#Totals],[Commercial floorspace refurbished April 2022 - March 2023 Forecast]] -> 2817 | G60: =Q4_2021[[#Totals],[Commercial floorspace refurbished April 2023 - March 2024 Forecast]] -> 57132 | H60: =Q4_2021[[#Totals],[Commercial floorspace refurbished April 2024 - March 2025 Forecast]] -> 8240 | I60: =Q4_2021[[#Totals],[Commercial floorspace refurbished April 2025 - March 2026 Forecast]] -> 0 | J60: =Q4_2021[[#Totals],[Commercial floorspace refurbished April 2026 and beyond Forecast]] -> 0 | K60: =SUM(D60:J60) -> 72153
B61: Progress towards forecast | D61: =IFERROR(D59/D60,0) -> 0 | E61: 0 | F61: 0.4597089102 | G61: 0.7229398586 | H61: 0 | I61: 0 | J61: =IFERROR(J59/J60,0) -> 0 | K61: 0.5903843222
B63: Commercial floorspace occupied | D63: =SUM(Summary3[Commerical floorspace occupied]) -> 0 | E63: =Q4_2021[[#Totals],[Commercial floorspace occupied April 2021 - March 2022 Actual]] -> 0 | F63: =Q4_2021[[#Totals],[Commercial floorspace occupied April 2022 - March 2023 Actual]] -> 115 | G63: =Q4_2021[[#Totals],[Commercial floorspace occupied April 2023 - March 2024 Actual]] -> 0 | H63: =Q4_2021[[#Totals],[Commercial floorspace occupied April 2024 - March 2025 Actual]] -> 0 | I63: =Q4_2021[[#Totals],[Commercial floorspace occupied April 2025 - March 2026 Actual]] -> 0 | J63: =Q4_2021[[#Totals],[Commercial floorspace occupied April 2026 and beyond Actual]] -> 0 | K63: =SUM(D63:J63) -> 115
B64: Forecast for year | D64: 0 | E64: =Q4_2021[[#Totals],[Commercial floorspace occupied April 2021 - March 2022 Forecast]] -> 0 | F64: =Q4_2021[[#Totals],[Commercial floorspace occupied April 2022 - March 2023 Forecast]] -> 0 | G64: =Q4_2021[[#Totals],[Commercial floorspace occupied April 2023 - March 2024 Forecast]] -> 0 | H64: =Q4_2021[[#Totals],[Commercial floorspace occupied April 2024 - March 2025 Forecast]] -> 0 | I64: =Q4_2021[[#Totals],[Commercial floorspace occupied April 2025 - March 2026 Forecast]] -> 0 | J64: =Q4_2021[[#Totals],[Commercial floorspace occupied April 2026 and beyond Forecast]] -> 0 | K64: =SUM(D64:J64) -> 0
B65: Progress towards forecast | D65: =IFERROR(D63/D64,0) -> 0 | E65: 0 | F65: 0 | G65: 0 | H65: 0 | I65: 0 | J65: =IFERROR(J63/J64,0) -> 0 | K65: 0
B67: Commercial Broadband Access | D67: =SUM(Summary3[Commerical Broadband Access]) -> 0 | E67: =Q4_2021[[#Totals],[Commercial Broadband Access April 2021 - March 2022 Actual]] -> 0 | F67: =Q4_2021[[#Totals],[Commercial Broadband Access April 2022 - March 2023 Actual]] -> 0 | G67: =Q4_2021[[#Totals],[Commercial Broadband Access April 2023 - March 2024 Actual]] -> 0 | H67: =Q4_2021[[#Totals],[Commercial Broadband Access April 2024 - March 2025 Actual]] -> 0 | I67: =Q4_2021[[#Totals],[Commercial Broadband Access April 2025 - March 2026 Actual]] -> 0 | J67: =Q4_2021[[#Totals],[Commercial Broadband Access April 2026 and beyond Actual]] -> 0 | K67: =SUM(D67:J67) -> 0
B68: Forecast for year | D68: 0 | E68: =Q4_2021[[#Totals],[Commercial Broadband Access April 2021 - March 2022 Forecast]] -> 0 | F68: =Q4_2021[[#Totals],[Commercial Broadband Access April 2022 - March 2023 Forecast]] -> 0 | G68: =Q4_2021[[#Totals],[Commercial Broadband Access April 2023 - March 2024 Forecast]] -> 0 | H68: =Q4_2021[[#Totals],[Commercial Broadband Access April 2024 - March 2025 Forecast]] -> 0 | I68: =Q4_2021[[#Totals],[Commercial Broadband Access April 2025 - March 2026 Forecast]] -> 0 | J68: =Q4_2021[[#Totals],[Commercial Broadband Access April 2026 and beyond Forecast]] -> 0 | K68: =SUM(D68:J68) -> 0
B69: Progress towards forecast | D69: =IFERROR(D67/D68,0) -> 0 | E69: 0 | F69: 0 | G69: 0 | H69: 0 | I69: 0 | J69: =IFERROR(J67/J68,0) -> 0 | K69: 0
B72: Flood Risk Prevention
B73: Area of Land with reduced likelihood of flooding as a result of the project (m2) | D73: =SUM(Summary3[Area of Land with reduced likelihood of flooding as a result of the project (m2)]) -> 0 | E73: =Q4_2021[[#Totals],[Area of Land with reduced likelihood of flooding as a result of the project (m2) April 2021 - March 2022 Actual]] -> 0 | F73: =Q4_2021[[#Totals],[Area of Land with reduced likelihood of flooding as a result of the project (m2) April 2022 - March 2023 Actual]] -> 0 | G73: =Q4_2021[[#Totals],[Area of Land with reduced likelihood of flooding as a result of the project (m2) April 2023 - March 2024 Actual]] -> 0 | H73: =Q4_2021[[#Totals],[Area of Land with reduced likelihood of flooding as a result of the project (m2) April 2024 - March 2025 Actual]] -> 0 | I73: =Q4_2021[[#Totals],[Area of Land with reduced likelihood of flooding as a result of the project (m2) April 2025 - March 2026 Actual]] -> 0 | J73: =Q4_2021[[#Totals],[Area of Land with reduced likelihood of flooding as a result of the project (m2) April 2026 and beyond Actual]] -> 0 | K73: =SUM(D73:J73) -> 0 | N73: Section 151 Officer Approved
B74: Forecast for year | D74: 0 | E74: =Q4_2021[[#Totals],[Area of Land with reduced likelihood of flooding as a result of the project (m2) April 2021 - March 2022 Forecast]] -> 0 | F74: =Q4_2021[[#Totals],[Area of Land with reduced likelihood of flooding as a result of the project (m2) April 2022 - March 2023 Forecast]] -> 0 | G74: =Q4_2021[[#Totals],[Area of Land with reduced likelihood of flooding as a result of the project (m2) April 2023 - March 2024 Forecast]] -> 0 | H74: =Q4_2021[[#Totals],[Area of Land with reduced likelihood of flooding as a result of the project (m2) April 2024 - March 2025 Forecast]] -> 0 | I74: =Q4_2021[[#Totals],[Area of Land with reduced likelihood of flooding as a result of the project (m2) April 2025 - March 2026 Forecast]] -> 0 | J74: =Q4_2021[[#Totals],[Area of Land with reduced likelihood of flooding as a result of the project (m2) April 2026 and beyond Forecast]] -> 0 | K74: =SUM(D74:J74) -> 0 | M74: Name
B75: Progress towards forecast | D75: =IFERROR(D73/D74,0) -> 0 | E75: 0 | F75: 0 | G75: 0 | H75: 0 | I75: 0 | J75: =IFERROR(J73/J74,0) -> 0 | K75: 0
M76: Signature
B77: Reduced Flood Risk Homes | D77: =SUM(Summary3[Reduced Flood Risk Homes]) -> 0 | E77: =Q4_2021[[#Totals],[Reduced Flood Risk Homes April 2021 - March 2022 Actual]] -> 0 | F77: =Q4_2021[[#Totals],[Reduced Flood Risk Homes April 2022 - March 2023 Actual]] -> 0 | G77: =Q4_2021[[#Totals],[Reduced Flood Risk Homes April 2023 - March 2024 Actual]] -> 0 | H77: =Q4_2021[[#Totals],[Reduced Flood Risk Homes April 2024 - March 2025 Actual]] -> 0 | I77: =Q4_2021[[#Totals],[Reduced Flood Risk Homes April 2025 - March 2026 Actual]] -> 0 | J77: =Q4_2021[[#Totals],[Reduced Flood Risk Homes April 2026 and beyond Actual]] -> 0 | K77: =SUM(D77:J77) -> 0
B78: Forecast for year | D78: 0 | E78: =Q4_2021[[#Totals],[Reduced Flood Risk Homes April 2021 - March 2022 Forecast]] -> 0 | F78: =Q4_2021[[#Totals],[Reduced Flood Risk Homes April 2022 - March 2023 Forecast]] -> 0 | G78: =Q4_2021[[#Totals],[Reduced Flood Risk Homes April 2023 - March 2024 Forecast]] -> 0 | H78: =Q4_2021[[#Totals],[Reduced Flood Risk Homes April 2024 - March 2025 Forecast]] -> 0 | I78: =Q4_2021[[#Totals],[Reduced Flood Risk Homes April 2025 - March 2026 Forecast]] -> 0 | J78: =Q4_2021[[#Totals],[Reduced Flood Risk Homes April 2026 and beyond Forecast]] -> 0 | K78: =SUM(D78:J78) -> 0
B79: Progress towards forecast | D79: =IFERROR(D77/D78,0) -> 0 | E79: 0 | F79: 0 | G79: 0 | H79: 0 | I79: 0 | J79: =IFERROR(J77/J78,0) -> 0 | K79: 0 | M79: Date
B81: Reduced Flood Risk Commercial | D81: =SUM(Summary3[Reduced Flood Risk Commercial]) -> 0 | E81: =Q4_2021[[#Totals],[Reduced Flood Risk Commercial April 2021 - March 2022 Actual]] -> 0 | F81: =Q4_2021[[#Totals],[Reduced Flood Risk Commercial April 2022 - March 2023 Actual]] -> 0 | G81: =Q4_2021[[#Totals],[Reduced Flood Risk Commercial April 2023 - March 2024 Actual]] -> 0 | H81: =Q4_2021[[#Totals],[Reduced Flood Risk Commercial April 2024 - March 2025 Actual]] -> 0 | I81: =Q4_2021[[#Totals],[Reduced Flood Risk Commercial April 2025 - March 2026 Actual]] -> 0 | J81: =Q4_2021[[#Totals],[Reduced Flood Risk Commercial April 2026 and beyond Actual]] -> 0 | K81: =SUM(D81:J81) -> 0
B82: Forecast for year | D82: 0 | E82: =Q4_2021[[#Totals],[Reduced Flood Risk Commercial April 2021 - March 2022 Forecast]] -> 0 | F82: =Q4_2021[[#Totals],[Reduced Flood Risk Commercial April 2022 - March 2023 Forecast]] -> 0 | G82: =Q4_2021[[#Totals],[Reduced Flood Risk Commercial April 2023 - March 2024 Forecast]] -> 0 | H82: =Q4_2021[[#Totals],[Reduced Flood Risk Commercial April 2024 - March 2025 Forecast]] -> 0 | I82: =Q4_2021[[#Totals],[Reduced Flood Risk Commercial April 2025 - March 2026 Forecast]] -> 0 | J82: =Q4_2021[[#Totals],[Reduced Flood Risk Commercial April 2026 and beyond Forecast]] -> 0 | K82: =SUM(D82:J82) -> 0
B83: Progress towards forecast | D83: =IFERROR(D81/D82,0) -> 0 | E83: 0 | F83: 0 | G83: 0 | H83: 0 | I83: 0 | J83: =IFERROR(J81/J82,0) -> 0 | K83: 0
B86: Business and Enterprise
B87: Number of enterprises receiving grant support | D87: =SUM(Summary3[Number of enterprises receiving grant support]) -> 393 | E87: =Q4_2021[[#Totals],[Number of enterprises receiving grant support April 2021 - March 2022 Actual]] -> 45 | F87: =Q4_2021[[#Totals],[Number of enterprises receiving grant support April 2022 - March 2023 Actual]] -> 280 | G87: =Q4_2021[[#Totals],[Number of enterprises receiving grant support April 2023 - March 2024 Actual]] -> 1 | H87: =Q4_2021[[#Totals],[Number of enterprises receiving grant support April 2024 - March 2025 Actual]] -> 0 | I87: =Q4_2021[[#Totals],[Number of enterprises receiving grant support April 2025 - March 2026 Actual]] -> 0 | J87: =Q4_2021[[#Totals],[Number of enterprises receiving grant support April 2026 and beyond Actual]] -> 0 | K87: =SUM(D87:J87) -> 719
B88: Forecast for year | D88: 393 | E88: =Q4_2021[[#Totals],[Number of enterprises receiving grant support April 2021 - March 2022 Forecast]] -> 57 | F88: =Q4_2021[[#Totals],[Number of enterprises receiving grant support April 2022 - March 2023 Forecast]] -> 280 | G88: =Q4_2021[[#Totals],[Number of enterprises receiving grant support April 2023 - March 2024 Forecast]] -> 1 | H88: =Q4_2021[[#Totals],[Number of enterprises receiving grant support April 2024 - March 2025 Forecast]] -> 0 | I88: =Q4_2021[[#Totals],[Number of enterprises receiving grant support April 2025 - March 2026 Forecast]] -> 0 | J88: =Q4_2021[[#Totals],[Number of enterprises receiving grant support April 2026 and beyond Forecast]] -> 0 | K88: =SUM(D88:J88) -> 731
B89: Progress towards forecast | D89: =IFERROR(D87/D88,0) -> 1 | E89: 0.7894736842 | F89: 1 | G89: 1 | H89: 0 | I89: 0 | J89: =IFERROR(J87/J88,0) -> 0 | K89: 0.9835841313
B91: Number of enterprises receiving financial support other than grants | D91: =SUM(Summary3[Number of enterprises receiving financial support other than grants]) -> 0 | E91: =Q4_2021[[#Totals],[Number of enterprises receiving financial support other than grants April 2021 - March 2022 Actual]] -> 6 | F91: =Q4_2021[[#Totals],[Number of enterprises receiving financial support other than grants April 2022 - March 2023 Actual]] -> 12 | G91: =Q4_2021[[#Totals],[Number of enterprises receiving financial support other than grants April 2023 - March 2024 Actual]] -> 89 | H91: =Q4_2021[[#Totals],[Number of enterprises receiving financial support other than grants April 2024 - March 2025 Actual]] -> 0 | I91: =Q4_2021[[#Totals],[Number of enterprises receiving financial support other than grants April 2025 - March 2026 Actual]] -> 0 | J91: =Q4_2021[[#Totals],[Number of enterprises receiving financial support other than grants April 2026 and beyond Actual]] -> 0 | K91: =SUM(D91:J91) -> 107
B92: Forecast for year | D92: 0 | E92: =Q4_2021[[#Totals],[Number of enterprises receiving financial support other than grants April 2021 - March 2022 Forecast]] -> 111 | F92: =Q4_2021[[#Totals],[Number of enterprises receiving financial support other than grants April 2022 - March 2023 Forecast]] -> 93 | G92: =Q4_2021[[#Totals],[Number of enterprises receiving financial support other than grants April 2023 - March 2024 Forecast]] -> 170 | H92: =Q4_2021[[#Totals],[Number of enterprises receiving financial support other than grants April 2024 - March 2025 Forecast]] -> 0 | I92: =Q4_2021[[#Totals],[Number of enterprises receiving financial support other than grants April 2025 - March 2026 Forecast]] -> 0 | J92: =Q4_2021[[#Totals],[Number of enterprises receiving financial support other than grants April 2026 and beyond Forecast]] -> 0 | K92: =SUM(D92:J92) -> 374
B93: Progress towards forecast | D93: =IFERROR(D91/D92,0) -> 0 | E93: 0.05405405405 | F93: 0.1290322581 | G93: 0.5235294118 | H93: 0 | I93: 0 | J93: =IFERROR(J91/J92,0) -> 0 | K93: 0.2860962567
B95: Number of enterprises receiving non financial support | D95: =SUM(Summary3[Number of enterprises receiving non financial support]) -> 2887 | E95: =Q4_2021[[#Totals],[Number of enterprises receiving non financial support April 2021 - March 2022 Actual]] -> 1131 | F95: =Q4_2021[[#Totals],[Number of enterprises receiving non financial support April 2022 - March 2023 Actual]] -> 554 | G95: =Q4_2021[[#Totals],[Number of enterprises receiving non financial support April 2023 - March 2024 Actual]] -> 1839 | H95: =Q4_2021[[#Totals],[Number of enterprises receiving non financial support April 2024 - March 2025 Actual]] -> 0 | I95: =Q4_2021[[#Totals],[Number of enterprises receiving non financial support April 2025 - March 2026 Actual]] -> 0 | J95: =Q4_2021[[#Totals],[Number of enterprises receiving non financial support April 2026 and beyond Actual]] -> 0 | K95: =SUM(D95:J95) -> 6411
B96: Forecast for year | D96: 2887 | E96: =Q4_2021[[#Totals],[Number of enterprises receiving non financial support April 2021 - March 2022 Forecast]] -> 3953 | F96: =Q4_2021[[#Totals],[Number of enterprises receiving non financial support April 2022 - March 2023 Forecast]] -> 713 | G96: =Q4_2021[[#Totals],[Number of enterprises receiving non financial support April 2023 - March 2024 Forecast]] -> 6354 | H96: =Q4_2021[[#Totals],[Number of enterprises receiving non financial support April 2024 - March 2025 Forecast]] -> 250 | I96: =Q4_2021[[#Totals],[Number of enterprises receiving non financial support April 2025 - March 2026 Forecast]] -> 0 | J96: =Q4_2021[[#Totals],[Number of enterprises receiving non financial support April 2026 and beyond Forecast]] -> 0 | K96: =SUM(D96:J96) -> 14157
B97: Progress towards forecast | D97: =IFERROR(D95/D96,0) -> 1 | E97: 0.2861118138 | F97: 0.7769985975 | G97: 0.2894239849 | H97: 0 | I97: 0 | J97: =IFERROR(J95/J96,0) -> 0 | K97: 0.4528501801
B100: Non-LGF Expenditure
B101: Actual | D101: =SUM(P17:U17) -> 176316715.6 | E101: =Q4_2021[[#Totals],[Public Sector Investment April 2021 - March 2022 Actual ]]+Q4_2021[[#Totals],[Private Sector Investment April 2021 - March 2022 Actual ]]+Q4_2021[[#Totals],[Third Sector Investment April 2021 - March 2022 Actual ]] -> 134498062.8 | F101: =Q4_2021[[#Totals],[Public Sector Investment April 2022 - March 2023 Actual ]]+Q4_2021[[#Totals],[Private Sector Investment April 2022 - March 2023 Actual ]]+Q4_2021[[#Totals],[Third Sector Investment April 2022 - March 2023 Actual ]] -> 63698750.56 | G101: =Q4_2021[[#Totals],[Public Sector Investment April 2023 - March 2024 Actual ]]+Q4_2021[[#Totals],[Third Sector Investment April 2023 - March 2024 Actual ]]+Q4_2021[[#Totals],[Private Sector Investment April 2023 - March 2024 Actual ]] -> 40043569.44 | H101: =Q4_2021[[#Totals],[Public Sector Investment April 2024 - March 2025 Actual ]]+Q4_2021[[#Totals],[Private Sector Investment April 2024 - March 2025 Actual ]]+Q4_2021[[#Totals],[Third Sector Investment April 2024 - March 2025 Actual ]] -> 2099989 | I101: =Q4_2021[[#Totals],[Public Sector Investment April 2025 - March 2026 Actual ]]+Q4_2021[[#Totals],[Private Sector Investment April 2025 - March 2026 Actual ]]+Q4_2021[[#Totals],[Third Sector Investment April 2025 - March 2026 Actual ]] -> 3266010 | J101: =Q4_2021[[#Totals],[Public Sector Investment April 2026 and beyond Actual]]+Q4_2021[[#Totals],[Private Sector Investment April 2026 and beyond Actual]]+Q4_2021[[#Totals],[Third Sector Investment April 2026 and beyond Actual]] -> 0 | K101: =SUM(D101:J101) -> 419923097.5
B102: Forecast for year | D102: =SUM(P18:U18) -> 223849064.4 | E102: =Q4_2021[[#Totals],[Public Sector Investment April 2021 - March 2022 Forecast]]+Q4_2021[[#Totals],[Private Sector Investment April 2021 - March 2022 Forecast]]+Q4_2021[[#Totals],[Third Sector Investment April 2021 - March 2022 Forecast]] -> 9816963.72 | F102: =Q4_2021[[#Totals],[Public Sector Investment April 2022 - March 2023 Forecast]]+Q4_2021[[#Totals],[Private Sector Investment April 2022 - March 2023 Forecast]]+Q4_2021[[#Totals],[Third Sector Investment April 2022 - March 2023 Forecast]] -> 8584922.76 | G102: =Q4_2021[[#Totals],[Public Sector Investment April 2023 - March 2024 Forecast]]+Q4_2021[[#Totals],[Private Sector Investment April 2023 - March 2024 Forecast]]+Q4_2021[[#Totals],[Third Sector Investment April 2023 - March 2024 Forecast]] -> 3217214 | H102: =Q4_2021[[#Totals],[Public Sector Investment April 2024 - March 2025 Forecast]]+Q4_2021[[#Totals],[Private Sector Investment April 2024 - March 2025 Forecast]]+Q4_2021[[#Totals],[Third Sector Investment April 2024 - March 2025 Forecast]] -> 18505799 | I102: =Q4_2021[[#Totals],[Public Sector Investment April 2025 - March 2026 Forecast]]+Q4_2021[[#Totals],[Private Sector Investment April 2025 - March 2026 Forecast]]+Q4_2021[[#Totals],[Third Sector Investment April 2025 - March 2026 Forecast]] -> 130628935 | J102: =Q4_2021[[#Totals],[Public Sector Investment April 2026 and beyond Forecast]]+Q4_2021[[#Totals],[Private Sector Investment April 2026 and beyond Forecast]]+Q4_2021[[#Totals],[Third Sector Investment April 2026 and beyond Forecast]] -> 0 | K102: =SUM(D102:J102) -> 394602898.8
B103: Progress towards forecast | D103: =IFERROR(D101/D102,"-") -> 0.7876589351 | E103: 13.70057654 | F103: 7.419839682 | G103: 12.4466602 | H103: 0.1134773484 | I103: 0.02500219419 | J103: =IFERROR(J101/J102,"-") -> - | K103: =IFERROR(K101/K102,0) -> 1.064166276

Sheet Summary
A1: Navigation | B1: V7.1 | E1: Local Authority area the project is in | G1: Parliamentary Constituency
A2: Project Details | S2: Financials | AA2: Employment Outputs | AC2: Housing Outputs | AE2: Transport Outputs | AH2: Skills Outputs this Quarter | AK2: Commerical Outputs | AO2: Flood Risk Prevention Outputs | AR2: Business and Enterprise Outputs
A3: Identifying Information | H3: Project Theme(s) | L3: Originality | M3: Project Dates | R3: Impact and Evaluation | S3: Budget | U3: Leverage | X3: Financials to Date | AA3: Jobs Created to Date | AB3: Apprenticeships to Date | AC3: Housing Completed to Date | AD3: Fibre-Optic | AE3: Roads to Date | AG3: Cycle Ways to Date | AH3: Learning / Training Floorspace to Date | AJ3: Leaners Assisted to Date | AK3: Floorspace to Date | AN3: Broadband | AO3: Flood Risk Prevention to Date | AR3: Businesses Supported to Date
A4: Freedom & Flexibilities | B4: Project Name | C4: Project Description (100 words max) | D4: LEP Name | E4: Local Authority area the project is in | F4: Postcode | G4: Parliamentary Constituency | H4: Primary Project Type | I4: Primary Project Activity | J4: Secondary Project Type | K4: Secondary Project Activity | L4: Project Type | M4: Project Status | N4: Forecasted Financial Completion Date | O4: Actual Financial Completion | P4: Forecasted Practical Completion Date | Q4: Actual Practical Completion Date | R4: Evaluation Method | S4: Total Budget | T4: Of which LGF | U4: Of which Public Sector | V4: Of which Private Sector | W4: Of which Third Sector | X4: LGF Outturn | Y4: LGF Spend | Z4: Total non-LGF Expenditure | AA4: Jobs Created | AB4: Apprenticeships | AC4: Housing Units Completed | AD4: Number of new homes with new or improved fibre optic provision | AE4: Length of Road Resurfaced | AF4: Length of Newly Built Road this period | AG4: Length New Cycle Ways This Period | AH4: Area of new or improved learning/training floorspace (m2) | AI4: Floorspace rationalisation | AJ4: Number of New Learners Assisted (in courses leading to a full qualification) | AK4: Commerical floorspace created | AL4: Commerical floorspace refurbished | AM4: Commerical floorspace occupied | AN4: Commerical Broadband Access | AO4: Area of Land with reduced likelihood of flooding as a result of the project (m2) | AP4: Reduced Flood Risk Homes | AQ4: Reduced Flood Risk Commercial | AR4: Number of enterprises receiving grant support | AS4: Number of enterprises receiving financial support other than grants | AT4: Number of enterprises receiving non financial support
A5: Project ID | B5: Project Name | C5: Project Description (100 words max) | D5: LEP Name | E5: Local Authority area the project is in | F5: Postcode | G5: Parliamentary Constituency | H5: Primary Project Type | I5: Primary Project Activity | J5: Secondary Project Type | K5: Secondary Project Activity | L5: Project Type | M5: Project Status | N5: Forecasted Financial Completion Date | O5: Actual Financial Completion | P5: Forecasted Practical Completion Date | Q5: Actual Practical Completion Date | R5: Evaluation Method | S5: Total Budget | T5: Of which LGF | U5: Of which Public Sector | V5: Of which Private Sector | W5: Of which Third Sector | X5: LGF Outturn as at 31 March 21 | Y5: LGF Spend as at 31 March 21 | Z5: Total non-LGF Expenditure as at 31 March 21 | AA5: Jobs Created | AB5: Apprenticeships | AC5: Housing Units Completed | AD5: Number of new homes with new or improved fibre optic provision | AE5: Length of Road Resurfaced | AF5: Length of Newly Built Road this period | AG5: Length New Cycle Ways This Period | AH5: Area of new or improved learning/training floorspace (m2) | AI5: Floorspace rationalisation | AJ5: Number of New Learners Assisted (in courses leading to a full qualification) | AK5: Commerical floorspace created | AL5: Commerical floorspace refurbished | AM5: Commerical floorspace occupied | AN5: Commerical Broadband Access | AO5: Area of Land with reduced likelihood of flooding as a result of the project (m2) | AP5: Reduced Flood Risk Homes | AQ5: Reduced Flood Risk Commercial | AR5: Number of enterprises receiving grant support | AS5: Number of enterprises receiving financial support other than grants | AT5: Number of enterprises receiving non financial support
A6: =IFERROR(Q4_2021[[#This Row],[Project ID]],0) -> LGFLON01 | B6: =IF(Summary3[[#This Row],[Project ID]]=0,0,Q4_2021[[#This Row],[Project Name]]) -> FE Rounds 1/2 Capital (forecast data only ) | C6: =IF(Summary3[[#This Row],[Project ID]]=0,0,Q4_2021[[#This Row],[Project Description (100 words max)]]) -> 0 | D6: =IF(Summary3[[#This Row],[Project ID]]=0,0,Q4_2021[[#This Row],[LEP Name]]) -> London LEP | E6: =IF(Summary3[[#This Row],[Project ID]]=0,0,Q4_2021[[#This Row],[Local Authority area the project is in]]) -> London wide- multiple locations | F6: =IF(Summary3[[#This Row],[Project ID]]=0,0,Q4_2021[[#This Row],[Post Code]]) -> Multi | G6: =IF(Summary3[[#This Row],[Project ID]]=0,0,Q4_2021[[#This Row],[Parliamentary Constituency]]) -> Multi | H6: =IF(Summary3[[#This Row],[Project ID]]=0,0,Q4_2021[[#This Row],[Primary Project Type]]) -> Skills_Capital | I6: =IF(Summary3[[#This Row],[Project ID]]=0,0,Q4_2021[[#This Row],[Primary Project Activity]]) -> Other skills projects including schemes enabling access to equipment | J6: =IF(Summary3[[#This Row],[Project ID]]=0,0,Q4_2021[[#This Row],[Secondary Project Type]]) -> Other | K6: =IF(Summary3[[#This Row],[Project ID]]=0,0,Q4_2021[[#This Row],[Secondary Project Activity]]) -> 0 | L6: =IF(Summary3[[#This Row],[Project ID]]=0,0,Q4_2021[[#This Row],[Project Type]]) -> Original | M6: =IF(Summary3[[#This Row],[Project ID]]=0,0,Q4_2021[[#This Row],[Project Status]]) -> 0 | N6: =IF(Summary3[[#This Row],[Project ID]]=0,0,Q4_2021[[#This Row],[Forecasted Financial Completion Date]]) -> x | O6: =IF(Summary3[[#This Row],[Project ID]]=0,0,Q4_2021[[#This Row],[Actual Financial Completion]]) -> x | P6: =IF(Summary3[[#This Row],[Project ID]]=0,0,Q4_2021[[#This Row],[Forecasted Practical Completion Date]]) -> x | Q6: =IF(Summary3[[#This Row],[Project ID]]=0,0,Q4_2021[[#This Row],[Actual Practical Completion Date]]) -> x | R6: =IF(Summary3[[#This Row],[Project ID]]=0,0,Q4_2021[[#This Row],[Evaluation Method]]) -> closure form/partner evaluation | S6: =IF(Summary3[[#This Row],[Project ID]]=0,0,Q4_2021[[#This Row],[Total Budget]]) -> 0 | T6: =IF(Summary3[[#This Row],[Project ID]]=0,0,Q4_2021[[#This Row],[LGF Budget]]) -> 0 | U6: =IF(Summary3[[#This Row],[Project ID]]=0,0,Q4_2021[[#This Row],[Public Sector Leverage]]) -> 0 | V6: =IF(Summary3[[#This Row],[Project ID]]=0,0,Q4_2021[[#This Row],[Private Sector Leverage]]) -> 0 | W6: =IF(Summary3[[#This Row],[Project ID]]=0,0,Q4_2021[[#This Row],[Third Party Sector Leverage]]) -> 0 | X6: =IF(Summary3[[#This Row],[Project ID]]=0,0,Q4_2021[[#This Row],[LGF Outturn]]) -> 0 | Y6: =IF(Summary3[[#This Row],[Project ID]]=0,0,Q4_2021[[#This Row],[LGF Expenditure (as @ 31Mar21)]]) -> 0 | Z6: =IF(Summary3[[#This Row],[Project ID]]=0,0,Q4_2021[[#This Row],[Total non-LGF Expenditure (as @ 31Mar21)]]) -> 0 | AA6: 7421 | AB6: 2963 | AC6: 0 | AD6: 0 | AE6: 0 | AF6: 0 | AG6: 0 | AH6: 77174 | AI6: 0 | AJ6: 54944 | AK6: 0 | AL6: 0 | AM6: 0 | AN6: 0 | AO6: 0 | AP6: 0 | AQ6: 0 | AR6: 0 | AS6: 0 | AT6: 0
A7: =IFERROR(Q4_2021[[#This Row],[Project ID]],0) -> LGFLON10 | B7: =IF(Summary3[[#This Row],[Project ID]]=0,0,Q4_2021[[#This Row],[Project Name]]) -> Skills for Londoners Capital Fund (Rounds 1+2+3 forecast data only (no longer used) | C7: =IF(Summary3[[#This Row],[Project ID]]=0,0,Q4_2021[[#This Row],[Project Description (100 words max)]]) -> 0 | D7: =IF(Summary3[[#This Row],[Project ID]]=0,0,Q4_2021[[#This Row],[LEP Name]]) -> London LEP | E7: =IF(Summary3[[#This Row],[Project ID]]=0,0,Q4_2021[[#This Row],[Local Authority area the project is in]]) -> London wide- multiple locations | F7: =IF(Summary3[[#This Row],[Project ID]]=0,0,Q4_2021[[#This Row],[Post Code]]) -> Multi | G7: =IF(Summary3[[#This Row],[Project ID]]=0,0,Q4_2021[[#This Row],[Parliamentary Constituency]]) -> Multi | H7: =IF(Summary3[[#This Row],[Project ID]]=0,0,Q4_2021[[#This Row],[Primary Project Type]]) -> Skills_Capital | I7: =IF(Summary3[[#This Row],[Project ID]]=0,0,Q4_2021[[#This Row],[Primary Project Activity]]) -> Other | J7: =IF(Summary3[[#This Row],[Project ID]]=0,0,Q4_2021[[#This Row],[Secondary Project Type]]) -> Other | K7: =IF(Summary3[[#This Row],[Project ID]]=0,0,Q4_2021[[#This Row],[Secondary Project Activity]]) -> 0 | L7: =IF(Summary3[[#This Row],[Project ID]]=0,0,Q4_2021[[#This Row],[Project Type]]) -> Original | M7: =IF(Summary3[[#This Row],[Project ID]]=0,0,Q4_2021[[#This Row],[Project Status]]) -> 0 | N7: =IF(Summary3[[#This Row],[Project ID]]=0,0,Q4_2021[[#This Row],[Forecasted Financial Completion Date]]) -> 00:00:00 | O7: =IF(Summary3[[#This Row],[Project ID]]=0,0,Q4_2021[[#This Row],[Actual Financial Completion]]) -> 00:00:00 | P7: =IF(Summary3[[#This Row],[Project ID]]=0,0,Q4_2021[[#This Row],[Forecasted Practical Completion Date]]) -> 00:00:00 | Q7: =IF(Summary3[[#This Row],[Project ID]]=0,0,Q4_2021[[#This Row],[Actual Practical Completion Date]]) -> 00:00:00 | R7: =IF(Summary3[[#This Row],[Project ID]]=0,0,Q4_2021[[#This Row],[Evaluation Method]]) -> closure form/partner evaluation | S7: =IF(Summary3[[#This Row],[Project ID]]=0,0,Q4_2021[[#This Row],[Total Budget]]) -> 0 | T7: =IF(Summary3[[#This Row],[Project ID]]=0,0,Q4_2021[[#This Row],[LGF Budget]]) -> 0 | U7: =IF(Summary3[[#This Row],[Project ID]]=0,0,Q4_2021[[#This Row],[Public Sector Leverage]]) -> 0 | V7: =IF(Summary3[[#This Row],[Project ID]]=0,0,Q4_2021[[#This Row],[Private Sector Leverage]]) -> 0 | W7: =IF(Summary3[[#This Row],[Project ID]]=0,0,Q4_2021[[#This Row],[Third Party Sector Leverage]]) -> 0 | X7: =IF(Summary3[[#This Row],[Project ID]]=0,0,Q4_2021[[#This Row],[LGF Outturn]]) -> 0 | Y7: =IF(Summary3[[#This Row],[Project ID]]=0,0,Q4_2021[[#This Row],[LGF Expenditure (as @ 31Mar21)]]) -> 0 | Z7: =IF(Summary3[[#This Row],[Project ID]]=0,0,Q4_2021[[#This Row],[Total non-LGF Expenditure (as @ 31Mar21)]]) -> 0 | AA7: 0 | AB7: 0 | AC7: 0 | AD7: 0 | AE7: 0 | AF7: 0 | AG7: 0 | AH7: 0 | AI7: 0 | AJ7: 879 | AK7: 0 | AL7: 0 | AM7: 0 | AN7: 0 | AO7: 0 | AP7: 0 | AQ7: 0 | AR7: 0 | AS7: 0 | AT7: 0
A8: =IFERROR(Q4_2021[[#This Row],[Project ID]],0) -> LGFLON11 | B8: =IF(Summary3[[#This Row],[Project ID]]=0,0,Q4_2021[[#This Row],[Project Name]]) -> Small Sites Programme (programme level) | C8: =IF(Summary3[[#This Row],[Project ID]]=0,0,Q4_2021[[#This Row],[Project Description (100 words max)]]) -> Provide a streamlined service, making it easier for the public sector to bring forward small sites for residential-led development | D8: =IF(Summary3[[#This Row],[Project ID]]=0,0,Q4_2021[[#This Row],[LEP Name]]) -> London LEP | E8: =IF(Summary3[[#This Row],[Project ID]]=0,0,Q4_2021[[#This Row],[Local Authority area the project is in]]) -> Royal Borough of Greenwich | F8: =IF(Summary3[[#This Row],[Project ID]]=0,0,Q4_2021[[#This Row],[Post Code]]) -> SE122AA | G8: =IF(Summary3[[#This Row],[Project ID]]=0,0,Q4_2021[[#This Row],[Parliamentary Constituency]]) -> Eltham & Chislehurst | H8: =IF(Summary3[[#This Row],[Project ID]]=0,0,Q4_2021[[#This Row],[Primary Project Type]]) -> Housing | I8: =IF(Summary3[[#This Row],[Project ID]]=0,0,Q4_2021[[#This Row],[Primary Project Activity]]) -> Site remediation enabling future housing development | J8: =IF(Summary3[[#This Row],[Project ID]]=0,0,Q4_2021[[#This Row],[Secondary Project Type]]) -> Other | K8: =IF(Summary3[[#This Row],[Project ID]]=0,0,Q4_2021[[#This Row],[Secondary Project Activity]]) -> 0 | L8: =IF(Summary3[[#This Row],[Project ID]]=0,0,Q4_2021[[#This Row],[Project Type]]) -> Original | M8: =IF(Summary3[[#This Row],[Project ID]]=0,0,Q4_2021[[#This Row],[Project Status]]) -> Completed – project complete | N8: =IF(Summary3[[#This Row],[Project ID]]=0,0,Q4_2021[[#This Row],[Forecasted Financial Completion Date]]) -> 2021-03-31 | O8: =IF(Summary3[[#This Row],[Project ID]]=0,0,Q4_2021[[#This Row],[Actual Financial Completion]]) -> 2021-03-31 | P8: =IF(Summary3[[#This Row],[Project ID]]=0,0,Q4_2021[[#This Row],[Forecasted Practical Completion Date]]) -> 2021-03-31 | Q8: =IF(Summary3[[#This Row],[Project ID]]=0,0,Q4_2021[[#This Row],[Actual Practical Completion Date]]) -> 2021-03-31 | R8: =IF(Summary3[[#This Row],[Project ID]]=0,0,Q4_2021[[#This Row],[Evaluation Method]]) -> closure form/partner evaluation | S8: =IF(Summary3[[#This Row],[Project ID]]=0,0,Q4_2021[[#This Row],[Total Budget]]) -> 13286056 | T8: =IF(Summary3[[#This Row],[Project ID]]=0,0,Q4_2021[[#This Row],[LGF Budget]]) -> 11586056 | U8: =IF(Summary3[[#This Row],[Project ID]]=0,0,Q4_2021[[#This Row],[Public Sector Leverage]]) -> 1700000 | V8: =IF(Summary3[[#This Row],[Project ID]]=0,0,Q4_2021[[#This Row],[Private Sector Leverage]]) -> 0 | W8: =IF(Summary3[[#This Row],[Project ID]]=0,0,Q4_2021[[#This Row],[Third Party Sector Leverage]]) -> 0 | X8: =IF(Summary3[[#This Row],[Project ID]]=0,0,Q4_2021[[#This Row],[LGF Outturn]]) -> 0 | Y8: =IF(Summary3[[#This Row],[Project ID]]=0,0,Q4_2021[[#This Row],[LGF Expenditure (as @ 31Mar21)]]) -> 11586056 | Z8: =IF(Summary3[[#This Row],[Project ID]]=0,0,Q4_2021[[#This Row],[Total non-LGF Expenditure (as @ 31Mar21)]]) -> 1700000 | AA8: 0 | AB8: 0 | AC8: 0 | AD8: 0 | AE8: 0 | AF8: 0 | AG8: 0 | AH8: 0 | AI8: 0 | AJ8: 0 | AK8: 0 | AL8: 0 | AM8: 0 | AN8: 0 | AO8: 0 | AP8: 0 | AQ8: 0 | AR8: 0 | AS8: 0 | AT8: 0
A9: =IFERROR(Q4_2021[[#This Row],[Project ID]],0) -> LGFLON12 | B9: =IF(Summary3[[#This Row],[Project ID]]=0,0,Q4_2021[[#This Row],[Project Name]]) -> Air Quality - programme level | C9: =IF(Summary3[[#This Row],[Project ID]]=0,0,Q4_2021[[#This Row],[Project Description (100 words max)]]) -> £2m grant scheme providing funding for Low Emission Neighbourhoods (LEN) delivered by local businesses groups and organisations. GGF R3 - £4m has been ringfenced for capital funding for Air Quality interventions within Good Growth Fund Applications. The programme has a two-stage application process, which is currently on-going, where applications are evaluated by GLA area teams and the Air Quality team (where a scheme is deemed to have a part or whole Air Quality aspect). BLEN - £2m (£1.8m Capital and £0.2m Revenue) has been made available support up to 10 BLENs. Six successful applications were chosen to recieve funding and are pending official announcement in January 2020 and agreement of Grants. | D9: =IF(Summary3[[#This Row],[Project ID]]=0,0,Q4_2021[[#This Row],[LEP Name]]) -> London LEP | E9: =IF(Summary3[[#This Row],[Project ID]]=0,0,Q4_2021[[#This Row],[Local Authority area the project is in]]) -> Royal Borough of Greenwich | F9: =IF(Summary3[[#This Row],[Project ID]]=0,0,Q4_2021[[#This Row],[Post Code]]) -> SE122AA | G9: =IF(Summary3[[#This Row],[Project ID]]=0,0,Q4_2021[[#This Row],[Parliamentary Constituency]]) -> Multi | H9: =IF(Summary3[[#This Row],[Project ID]]=0,0,Q4_2021[[#This Row],[Primary Project Type]]) -> Green_Recovery | I9: =IF(Summary3[[#This Row],[Project ID]]=0,0,Q4_2021[[#This Row],[Primary Project Activity]]) -> Other | J9: =IF(Summary3[[#This Row],[Project ID]]=0,0,Q4_2021[[#This Row],[Secondary Project Type]]) -> Other | K9: =IF(Summary3[[#This Row],[Project ID]]=0,0,Q4_2021[[#This Row],[Secondary Project Activity]]) -> 0 | L9: =IF(Summary3[[#This Row],[Project ID]]=0,0,Q4_2021[[#This Row],[Project Type]]) -> Original | M9: =IF(Summary3[[#This Row],[Project ID]]=0,0,Q4_2021[[#This Row],[Project Status]]) -> Completed – project complete | N9: =IF(Summary3[[#This Row],[Project ID]]=0,0,Q4_2021[[#This Row],[Forecasted Financial Completion Date]]) -> 2023-03-31 | O9: =IF(Summary3[[#This Row],[Project ID]]=0,0,Q4_2021[[#This Row],[Actual Financial Completion]]) -> 2023-03-31 | P9: =IF(Summary3[[#This Row],[Project ID]]=0,0,Q4_2021[[#This Row],[Forecasted Practical Completion Date]]) -> 2023-03-31 | Q9: =IF(Summary3[[#This Row],[Project ID]]=0,0,Q4_2021[[#This Row],[Actual Practical Completion Date]]) -> 2023-03-31 | R9: =IF(Summary3[[#This Row],[Project ID]]=0,0,Q4_2021[[#This Row],[Evaluation Method]]) -> closure form/partner evaluation | S9: =IF(Summary3[[#This Row],[Project ID]]=0,0,Q4_2021[[#This Row],[Total Budget]]) -> 462000 | T9: =IF(Summary3[[#This Row],[Project ID]]=0,0,Q4_2021[[#This Row],[LGF Budget]]) -> 462000 | U9: =IF(Summary3[[#This Row],[Project ID]]=0,0,Q4_2021[[#This Row],[Public Sector Leverage]]) -> 0 | V9: =IF(Summary3[[#This Row],[Project ID]]=0,0,Q4_2021[[#This Row],[Private Sector Leverage]]) -> 0 | W9: =IF(Summary3[[#This Row],[Project ID]]=0,0,Q4_2021[[#This Row],[Third Party Sector Leverage]]) -> 0 | X9: =IF(Summary3[[#This Row],[Project ID]]=0,0,Q4_2021[[#This Row],[LGF Outturn]]) -> 0 | Y9: =IF(Summary3[[#This Row],[Project ID]]=0,0,Q4_2021[[#This Row],[LGF Expenditure (as @ 31Mar21)]]) -> 0 | Z9: =IF(Summary3[[#This Row],[Project ID]]=0,0,Q4_2021[[#This Row],[Total non-LGF Expenditure (as @ 31Mar21)]]) -> 0 | AA9: 4 | AB9: 0 | AC9: 0 | AD9: 0 | AE9: 0 | AF9: 0 | AG9: 0 | AH9: 0 | AI9: 0 | AJ9: 64 | AK9: 0 | AL9: 0 | AM9: 0 | AN9: 0 | AO9: 0 | AP9: 0 | AQ9: 0 | AR9: 0 | AS9: 0 | AT9: 0
A10: =IFERROR(Q4_2021[[#This Row],[Project ID]],0) -> LGFLON14 | B10: =IF(Summary3[[#This Row],[Project ID]]=0,0,Q4_2021[[#This Row],[Project Name]]) -> Mayors Construction Academy ( MCA)- programme level | C10: =IF(Summary3[[#This Row],[Project ID]]=0,0,Q4_2021[[#This Row],[Project Description (100 words max)]]) -> Project designed to promote quality construction skills delivery via the MCA Quality Mark accreditation, improve coordination at a local level between providers, employers and other key stakeholder through MCA hub delivery and improve the quality of construciton skills infrastructure through capital funding of facilities. | D10: =IF(Summary3[[#This Row],[Project ID]]=0,0,Q4_2021[[#This Row],[LEP Name]]) -> London LEP | E10: =IF(Summary3[[#This Row],[Project ID]]=0,0,Q4_2021[[#This Row],[Local Authority area the project is in]]) -> London wide- multiple locations | F10: =IF(Summary3[[#This Row],[Project ID]]=0,0,Q4_2021[[#This Row],[Post Code]]) -> Multi | G10: =IF(Summary3[[#This Row],[Project ID]]=0,0,Q4_2021[[#This Row],[Parliamentary Constituency]]) -> Multi | H10: =IF(Summary3[[#This Row],[Project ID]]=0,0,Q4_2021[[#This Row],[Primary Project Type]]) -> Skills_Capital | I10: =IF(Summary3[[#This Row],[Project ID]]=0,0,Q4_2021[[#This Row],[Primary Project Activity]]) -> Investment in the further education estate | J10: =IF(Summary3[[#This Row],[Project ID]]=0,0,Q4_2021[[#This Row],[Secondary Project Type]]) -> Other | K10: =IF(Summary3[[#This Row],[Project ID]]=0,0,Q4_2021[[#This Row],[Secondary Project Activity]]) -> 0 | L10: =IF(Summary3[[#This Row],[Project ID]]=0,0,Q4_2021[[#This Row],[Project Type]]) -> Original | M10: =IF(Summary3[[#This Row],[Project ID]]=0,0,Q4_2021[[#This Row],[Project Status]]) -> On - going delivery | N10: =IF(Summary3[[#This Row],[Project ID]]=0,0,Q4_2021[[#This Row],[Forecasted Financial Completion Date]]) -> 2028-03-31 | O10: =IF(Summary3[[#This Row],[Project ID]]=0,0,Q4_2021[[#This Row],[Actual Financial Completion]]) -> 00:00:00 | P10: =IF(Summary3[[#This Row],[Project ID]]=0,0,Q4_2021[[#This Row],[Forecasted Practical Completion Date]]) -> 2027-06-30 | Q10: =IF(Summary3[[#This Row],[Project ID]]=0,0,Q4_2021[[#This Row],[Actual Practical Completion Date]]) -> 00:00:00 | R10: =IF(Summary3[[#This Row],[Project ID]]=0,0,Q4_2021[[#This Row],[Evaluation Method]]) -> closure form/partner evaluation | S10: =IF(Summary3[[#This Row],[Project ID]]=0,0,Q4_2021[[#This Row],[Total Budget]]) -> 51297592.18 | T10: =IF(Summary3[[#This Row],[Project ID]]=0,0,Q4_2021[[#This Row],[LGF Budget]]) -> 7417850 | U10: =IF(Summary3[[#This Row],[Project ID]]=0,0,Q4_2021[[#This Row],[Public Sector Leverage]]) -> 3700000 | V10: =IF(Summary3[[#This Row],[Project ID]]=0,0,Q4_2021[[#This Row],[Private Sector Leverage]]) -> 40179742.18 | W10: =IF(Summary3[[#This Row],[Project ID]]=0,0,Q4_2021[[#This Row],[Third Party Sector Leverage]]) -> 0 | X10: =IF(Summary3[[#This Row],[Project ID]]=0,0,Q4_2021[[#This Row],[LGF Outturn]]) -> 0 | Y10: =IF(Summary3[[#This Row],[Project ID]]=0,0,Q4_2021[[#This Row],[LGF Expenditure (as @ 31Mar21)]]) -> 1710086 | Z10: =IF(Summary3[[#This Row],[Project ID]]=0,0,Q4_2021[[#This Row],[Total non-LGF Expenditure (as @ 31Mar21)]]) -> 0 | AA10: 0 | AB10: 0 | AC10: 0 | AD10: 0 | AE10: 0 | AF10: 0 | AG10: 0 | AH10: 0 | AI10: 0 | AJ10: 0 | AK10: 0 | AL10: 0 | AM10: 0 | AN10: 0 | AO10: 0 | AP10: 0 | AQ10: 0 | AR10: 0 | AS10: 0 | AT10: 0
A11: =IFERROR(Q4_2021[[#This Row],[Project ID]],0) -> LGFLON15 | B11: =IF(Summary3[[#This Row],[Project ID]]=0,0,Q4_2021[[#This Row],[Project Name]]) -> CHC - programme level (programme closed) | C11: =IF(Summary3[[#This Row],[Project ID]]=0,0,Q4_2021[[#This Row],[Project Description (100 words max)]]) -> Programme to rapidly boost non-domestic energy efficiency retrofit activity and reduce the level of NOx and carbon dioxide emissions in the capital, through replacing polluting older heating systems with cleaner replacements. | D11: =IF(Summary3[[#This Row],[Project ID]]=0,0,Q4_2021[[#This Row],[LEP Name]]) -> London LEP | E11: =IF(Summary3[[#This Row],[Project ID]]=0,0,Q4_2021[[#This Row],[Local Authority area the project is in]]) -> London wide- multiple locations | F11: =IF(Summary3[[#This Row],[Project ID]]=0,0,Q4_2021[[#This Row],[Post Code]]) -> Multi | G11: =IF(Summary3[[#This Row],[Project ID]]=0,0,Q4_2021[[#This Row],[Parliamentary Constituency]]) -> Multi | H11: =IF(Summary3[[#This Row],[Project ID]]=0,0,Q4_2021[[#This Row],[Primary Project Type]]) -> Innovation | I11: =IF(Summary3[[#This Row],[Project ID]]=0,0,Q4_2021[[#This Row],[Primary Project Activity]]) -> Other | J11: =IF(Summary3[[#This Row],[Project ID]]=0,0,Q4_2021[[#This Row],[Secondary Project Type]]) -> Other | K11: =IF(Summary3[[#This Row],[Project ID]]=0,0,Q4_2021[[#This Row],[Secondary Project Activity]]) -> 0 | L11: =IF(Summary3[[#This Row],[Project ID]]=0,0,Q4_2021[[#This Row],[Project Type]]) -> Original | M11: =IF(Summary3[[#This Row],[Project ID]]=0,0,Q4_2021[[#This Row],[Project Status]]) -> Completed – project complete | N11: =IF(Summary3[[#This Row],[Project ID]]=0,0,Q4_2021[[#This Row],[Forecasted Financial Completion Date]]) -> 2020-03-31 | O11: =IF(Summary3[[#This Row],[Project ID]]=0,0,Q4_2021[[#This Row],[Actual Financial Completion]]) -> 2020-03-31 | P11: =IF(Summary3[[#This Row],[Project ID]]=0,0,Q4_2021[[#This Row],[Forecasted Practical Completion Date]]) -> 2020-03-31 | Q11: =IF(Summary3[[#This Row],[Project ID]]=0,0,Q4_2021[[#This Row],[Actual Practical Completion Date]]) -> 2020-03-31 | R11: =IF(Summary3[[#This Row],[Project ID]]=0,0,Q4_2021[[#This Row],[Evaluation Method]]) -> closure form/partner evaluation | S11: =IF(Summary3[[#This Row],[Project ID]]=0,0,Q4_2021[[#This Row],[Total Budget]]) -> 18000 | T11: =IF(Summary3[[#This Row],[Project ID]]=0,0,Q4_2021[[#This Row],[LGF Budget]]) -> 18000 | U11: =IF(Summary3[[#This Row],[Project ID]]=0,0,Q4_2021[[#This Row],[Public Sector Leverage]]) -> 0 | V11: =IF(Summary3[[#This Row],[Project ID]]=0,0,Q4_2021[[#This Row],[Private Sector Leverage]]) -> 0 | W11: =IF(Summary3[[#This Row],[Project ID]]=0,0,Q4_2021[[#This Row],[Third Party Sector Leverage]]) -> 0 | X11: =IF(Summary3[[#This Row],[Project ID]]=0,0,Q4_2021[[#This Row],[LGF Outturn]]) -> 0 | Y11: =IF(Summary3[[#This Row],[Project ID]]=0,0,Q4_2021[[#This Row],[LGF Expenditure (as @ 31Mar21)]]) -> 18000 | Z11: =IF(Summary3[[#This Row],[Project ID]]=0,0,Q4_2021[[#This Row],[Total non-LGF Expenditure (as @ 31Mar21)]]) -> 0 | AA11: 0 | AB11: 0 | AC11: 0 | AD11: 0 | AE11: 0 | AF11: 0 | AG11: 0 | AH11: 0 | AI11: 0 | AJ11: 0 | AK11: 0 | AL11: 0 | AM11: 0 | AN11: 0 | AO11: 0 | AP11: 0 | AQ11: 0 | AR11: 0 | AS11: 0 | AT11: 0
A12: =IFERROR(Q4_2021[[#This Row],[Project ID]],0) -> LGFLON16 | B12: =IF(Summary3[[#This Row],[Project ID]]=0,0,Q4_2021[[#This Row],[Project Name]]) -> GGF DEVELOPMENT FUND - programme level | C12: =IF(Summary3[[#This Row],[Project ID]]=0,0,Q4_2021[[#This Row],[Project Description (100 words max)]]) -> Revenue funded projects to support design and development costs including feasibility, viability, business planning and commercial/property advice, ahead of Good Growth capital funding and other funding being applied for, to demonstrate need, improve quality, and shape and influence the delivery of targeted outcomes and to assist the delivery of a balanced programme and provide a pipeline of good projects. | D12: =IF(Summary3[[#This Row],[Project ID]]=0,0,Q4_2021[[#This Row],[LEP Name]]) -> London LEP | E12: =IF(Summary3[[#This Row],[Project ID]]=0,0,Q4_2021[[#This Row],[Local Authority area the project is in]]) -> London wide- multiple locations | F12: =IF(Summary3[[#This Row],[Project ID]]=0,0,Q4_2021[[#This Row],[Post Code]]) -> Multi | G12: =IF(Summary3[[#This Row],[Project ID]]=0,0,Q4_2021[[#This Row],[Parliamentary Constituency]]) -> London wide | H12: =IF(Summary3[[#This Row],[Project ID]]=0,0,Q4_2021[[#This Row],[Primary Project Type]]) -> Regeneration_Public_Realm | I12: =IF(Summary3[[#This Row],[Project ID]]=0,0,Q4_2021[[#This Row],[Primary Project Activity]]) -> Other | J12: =IF(Summary3[[#This Row],[Project ID]]=0,0,Q4_2021[[#This Row],[Secondary Project Type]]) -> Other | K12: =IF(Summary3[[#This Row],[Project ID]]=0,0,Q4_2021[[#This Row],[Secondary Project Activity]]) -> 0 | L12: =IF(Summary3[[#This Row],[Project ID]]=0,0,Q4_2021[[#This Row],[Project Type]]) -> Original | M12: =IF(Summary3[[#This Row],[Project ID]]=0,0,Q4_2021[[#This Row],[Project Status]]) -> Completed – project complete | N12: =IF(Summary3[[#This Row],[Project ID]]=0,0,Q4_2021[[#This Row],[Forecasted Financial Completion Date]]) -> 2025-03-30 | O12: =IF(Summary3[[#This Row],[Project ID]]=0,0,Q4_2021[[#This Row],[Actual Financial Completion]]) -> 2024-03-31 | P12: =IF(Summary3[[#This Row],[Project ID]]=0,0,Q4_2021[[#This Row],[Forecasted Practical Completion Date]]) -> 2025-03-30 | Q12: =IF(Summary3[[#This Row],[Project ID]]=0,0,Q4_2021[[#This Row],[Actual Practical Completion Date]]) -> 2024-03-31 | R12: =IF(Summary3[[#This Row],[Project ID]]=0,0,Q4_2021[[#This Row],[Evaluation Method]]) -> closure form/partner evaluation | S12: =IF(Summary3[[#This Row],[Project ID]]=0,0,Q4_2021[[#This Row],[Total Budget]]) -> 4073835 | T12: =IF(Summary3[[#This Row],[Project ID]]=0,0,Q4_2021[[#This Row],[LGF Budget]]) -> 4073835 | U12: =IF(Summary3[[#This Row],[Project ID]]=0,0,Q4_2021[[#This Row],[Public Sector Leverage]]) -> 0 | V12: =IF(Summary3[[#This Row],[Project ID]]=0,0,Q4_2021[[#This Row],[Private Sector Leverage]]) -> 0 | W12: =IF(Summary3[[#This Row],[Project ID]]=0,0,Q4_2021[[#This Row],[Third Party Sector Leverage]]) -> 0 | X12: =IF(Summary3[[#This Row],[Project ID]]=0,0,Q4_2021[[#This Row],[LGF Outturn]]) -> 0 | Y12: =IF(Summary3[[#This Row],[Project ID]]=0,0,Q4_2021[[#This Row],[LGF Expenditure (as @ 31Mar21)]]) -> 2316115 | Z12: =IF(Summary3[[#This Row],[Project ID]]=0,0,Q4_2021[[#This Row],[Total non-LGF Expenditure (as @ 31Mar21)]]) -> 0 | AA12: 0 | AB12: 0 | AC12: 0 | AD12: 0 | AE12: 0 | AF12: 0 | AG12: 0 | AH12: 0 | AI12: 0 | AJ12: 0 | AK12: 3564 | AL12: 0 | AM12: 0 | AN12: 0 | AO12: 0 | AP12: 0 | AQ12: 0 | AR12: 0 | AS12: 0 | AT12: 21
A13: =IFERROR(Q4_2021[[#This Row],[Project ID]],0) -> LGFLON17 | B13: =IF(Summary3[[#This Row],[Project ID]]=0,0,Q4_2021[[#This Row],[Project Name]]) -> GGF Crowdfund London - programme level | C13: =IF(Summary3[[#This Row],[Project ID]]=0,0,Q4_2021[[#This Row],[Project Description (100 words max)]]) -> Small grants of up to £50k as pledges to public crowdfunding campaigns to support innovative community-led projects that build local resilience and promote inclusive growth. | D13: =IF(Summary3[[#This Row],[Project ID]]=0,0,Q4_2021[[#This Row],[LEP Name]]) -> London LEP | E13: =IF(Summary3[[#This Row],[Project ID]]=0,0,Q4_2021[[#This Row],[Local Authority area the project is in]]) -> London wide- multiple locations | F13: =IF(Summary3[[#This Row],[Project ID]]=0,0,Q4_2021[[#This Row],[Post Code]]) -> Multi | G13: =IF(Summary3[[#This Row],[Project ID]]=0,0,Q4_2021[[#This Row],[Parliamentary Constituency]]) -> Multi | H13: =IF(Summary3[[#This Row],[Project ID]]=0,0,Q4_2021[[#This Row],[Primary Project Type]]) -> Innovation | I13: =IF(Summary3[[#This Row],[Project ID]]=0,0,Q4_2021[[#This Row],[Primary Project Activity]]) -> Other | J13: =IF(Summary3[[#This Row],[Project ID]]=0,0,Q4_2021[[#This Row],[Secondary Project Type]]) -> Other | K13: =IF(Summary3[[#This Row],[Project ID]]=0,0,Q4_2021[[#This Row],[Secondary Project Activity]]) -> 0 | L13: =IF(Summary3[[#This Row],[Project ID]]=0,0,Q4_2021[[#This Row],[Project Type]]) -> Original | M13: =IF(Summary3[[#This Row],[Project ID]]=0,0,Q4_2021[[#This Row],[Project Status]]) -> Completed – project complete | N13: =IF(Summary3[[#This Row],[Project ID]]=0,0,Q4_2021[[#This Row],[Forecasted Financial Completion Date]]) -> 2021-03-31 | O13: =IF(Summary3[[#This Row],[Project ID]]=0,0,Q4_2021[[#This Row],[Actual Financial Completion]]) -> 2021-03-31 | P13: =IF(Summary3[[#This Row],[Project ID]]=0,0,Q4_2021[[#This Row],[Forecasted Practical Completion Date]]) -> 2021-03-31 | Q13: =IF(Summary3[[#This Row],[Project ID]]=0,0,Q4_2021[[#This Row],[Actual Practical Completion Date]]) -> 2021-03-31 | R13: =IF(Summary3[[#This Row],[Project ID]]=0,0,Q4_2021[[#This Row],[Evaluation Method]]) -> closure form/partner evaluation | S13: =IF(Summary3[[#This Row],[Project ID]]=0,0,Q4_2021[[#This Row],[Total Budget]]) -> 1820124 | T13: =IF(Summary3[[#This Row],[Project ID]]=0,0,Q4_2021[[#This Row],[LGF Budget]]) -> 1820124 | U13: =IF(Summary3[[#This Row],[Project ID]]=0,0,Q4_2021[[#This Row],[Public Sector Leverage]]) -> 0 | V13: =IF(Summary3[[#This Row],[Project ID]]=0,0,Q4_2021[[#This Row],[Private Sector Leverage]]) -> 0 | W13: =IF(Summary3[[#This Row],[Project ID]]=0,0,Q4_2021[[#This Row],[Third Party Sector Leverage]]) -> 0 | X13: =IF(Summary3[[#This Row],[Project ID]]=0,0,Q4_2021[[#This Row],[LGF Outturn]]) -> 0 | Y13: =IF(Summary3[[#This Row],[Project ID]]=0,0,Q4_2021[[#This Row],[LGF Expenditure (as @ 31Mar21)]]) -> 1820124 | Z13: =IF(Summary3[[#This Row],[Project ID]]=0,0,Q4_2021[[#This Row],[Total non-LGF Expenditure (as @ 31Mar21)]]) -> 0 | AA13: 0 | AB13: 0 | AC13: 0 | AD13: 0 | AE13: 0 | AF13: 0 | AG13: 0 | AH13: 0 | AI13: 0 | AJ13: 0 | AK13: 0 | AL13: 0 | AM13: 0 | AN13: 0 | AO13: 0 | AP13: 0 | AQ13: 0 | AR13: 0 | AS13: 0 | AT13: 0
A14: =IFERROR(Q4_2021[[#This Row],[Project ID]],0) -> LGFLON18 | B14: =IF(Summary3[[#This Row],[Project ID]]=0,0,Q4_2021[[#This Row],[Project Name]]) -> FEC Harrow | C14: =IF(Summary3[[#This Row],[Project ID]]=0,0,Q4_2021[[#This Row],[Project Description (100 words max)]]) -> Delivery of a new building to provide innovative senior care support training as well as specialist care training in areas including dementia, Parkinson’s Disease, congestive heart failure and limited mobility care. | D14: =IF(Summary3[[#This Row],[Project ID]]=0,0,Q4_2021[[#This Row],[LEP Name]]) -> London LEP | E14: =IF(Summary3[[#This Row],[Project ID]]=0,0,Q4_2021[[#This Row],[Local Authority area the project is in]]) -> London Borough of Harrow | F14: =IF(Summary3[[#This Row],[Project ID]]=0,0,Q4_2021[[#This Row],[Post Code]]) -> HA3 6RR | G14: =IF(Summary3[[#This Row],[Project ID]]=0,0,Q4_2021[[#This Row],[Parliamentary Constituency]]) -> Harrow East | H14: =IF(Summary3[[#This Row],[Project ID]]=0,0,Q4_2021[[#This Row],[Primary Project Type]]) -> Skills_Capital | I14: =IF(Summary3[[#This Row],[Project ID]]=0,0,Q4_2021[[#This Row],[Primary Project Activity]]) -> Investment in the further education estate | J14: =IF(Summary3[[#This Row],[Project ID]]=0,0,Q4_2021[[#This Row],[Secondary Project Type]]) -> Other | K14: =IF(Summary3[[#This Row],[Project ID]]=0,0,Q4_2021[[#This Row],[Secondary Project Activity]]) -> 0 | L14: =IF(Summary3[[#This Row],[Project ID]]=0,0,Q4_2021[[#This Row],[Project Type]]) -> Original | M14: =IF(Summary3[[#This Row],[Project ID]]=0,0,Q4_2021[[#This Row],[Project Status]]) -> Financially complete | N14: =IF(Summary3[[#This Row],[Project ID]]=0,0,Q4_2021[[#This Row],[Forecasted Financial Completion Date]]) -> 2018-09-30 | O14: =IF(Summary3[[#This Row],[Project ID]]=0,0,Q4_2021[[#This Row],[Actual Financial Completion]]) -> 2022-03-31 | P14: =IF(Summary3[[#This Row],[Project ID]]=0,0,Q4_2021[[#This Row],[Forecasted Practical Completion Date]]) -> 2025-03-31 | Q14: =IF(Summary3[[#This Row],[Project ID]]=0,0,Q4_2021[[#This Row],[Actual Practical Completion Date]]) -> 00:00:00 | R14: =IF(Summary3[[#This Row],[Project ID]]=0,0,Q4_2021[[#This Row],[Evaluation Method]]) -> closure form/partner evaluation | S14: =IF(Summary3[[#This Row],[Project ID]]=0,0,Q4_2021[[#This Row],[Total Budget]]) -> 4878753.87 | T14: =IF(Summary3[[#This Row],[Project ID]]=0,0,Q4_2021[[#This Row],[LGF Budget]]) -> 1820124 | U14: =IF(Summary3[[#This Row],[Project ID]]=0,0,Q4_2021[[#This Row],[Public Sector Leverage]]) -> 2980643.02 | V14: =IF(Summary3[[#This Row],[Project ID]]=0,0,Q4_2021[[#This Row],[Private Sector Leverage]]) -> 77986.85 | W14: =IF(Summary3[[#This Row],[Project ID]]=0,0,Q4_2021[[#This Row],[Third Party Sector Leverage]]) -> 0 | X14: =IF(Summary3[[#This Row],[Project ID]]=0,0,Q4_2021[[#This Row],[LGF Outturn]]) -> 0 | Y14: =IF(Summary3[[#This Row],[Project ID]]=0,0,Q4_2021[[#This Row],[LGF Expenditure (as @ 31Mar21)]]) -> 1820124 | Z14: =IF(Summary3[[#This Row],[Project ID]]=0,0,Q4_2021[[#This Row],[Total non-LGF Expenditure (as @ 31Mar21)]]) -> 3058630 | AA14: 0 | AB14: 0 | AC14: 0 | AD14: 0 | AE14: 0 | AF14: 0 | AG14: 0 | AH14: 0 | AI14: 0 | AJ14: 0 | AK14: 0 | AL14: 0 | AM14: 0 | AN14: 0 | AO14: 0 | AP14: 0 | AQ14: 0 | AR14: 0 | AS14: 0 | AT14: 0
A15: =IFERROR(Q4_2021[[#This Row],[Project ID]],0) -> LGFLON19 | B15: =IF(Summary3[[#This Row],[Project ID]]=0,0,Q4_2021[[#This Row],[Project Name]]) -> FEC Barnet and Southgate - project only partially followed through | C15: =IF(Summary3[[#This Row],[Project ID]]=0,0,Q4_2021[[#This Row],[Project Description (100 words max)]]) -> Delivery of a new 6,403m2 Colindale Skills Centre accommodating state of the art industry simulated environments for new construction technologies, hairdressing academy, and a learning resource centre, together with the modernisation for niche skills in medical science at Southgate. | D15: =IF(Summary3[[#This Row],[Project ID]]=0,0,Q4_2021[[#This Row],[LEP Name]]) -> London LEP | E15: =IF(Summary3[[#This Row],[Project ID]]=0,0,Q4_2021[[#This Row],[Local Authority area the project is in]]) -> London Borough of Enfield | F15: =IF(Summary3[[#This Row],[Project ID]]=0,0,Q4_2021[[#This Row],[Post Code]]) -> N14 6BS | G15: =IF(Summary3[[#This Row],[Project ID]]=0,0,Q4_2021[[#This Row],[Parliamentary Constituency]]) -> Southgate & Wood Green | H15: =IF(Summary3[[#This Row],[Project ID]]=0,0,Q4_2021[[#This Row],[Primary Project Type]]) -> Skills_Capital | I15: =IF(Summary3[[#This Row],[Project ID]]=0,0,Q4_2021[[#This Row],[Primary Project Activity]]) -> Investment in the further education estate | J15: =IF(Summary3[[#This Row],[Project ID]]=0,0,Q4_2021[[#This Row],[Secondary Project Type]]) -> Other | K15: =IF(Summary3[[#This Row],[Project ID]]=0,0,Q4_2021[[#This Row],[Secondary Project Activity]]) -> 0 | L15: =IF(Summary3[[#This Row],[Project ID]]=0,0,Q4_2021[[#This Row],[Project Type]]) -> Original | M15: =IF(Summary3[[#This Row],[Project ID]]=0,0,Q4_2021[[#This Row],[Project Status]]) -> Financially complete | N15: =IF(Summary3[[#This Row],[Project ID]]=0,0,Q4_2021[[#This Row],[Forecasted Financial Completion Date]]) -> 2020-03-31 | O15: =IF(Summary3[[#This Row],[Project ID]]=0,0,Q4_2021[[#This Row],[Actual Financial Completion]]) -> 2019-05-02 | P15: =IF(Summary3[[#This Row],[Project ID]]=0,0,Q4_2021[[#This Row],[Forecasted Practical Completion Date]]) -> 2025-03-31 | Q15: =IF(Summary3[[#This Row],[Project ID]]=0,0,Q4_2021[[#This Row],[Actual Practical Completion Date]]) -> 00:00:00 | R15: =IF(Summary3[[#This Row],[Project ID]]=0,0,Q4_2021[[#This Row],[Evaluation Method]]) -> closure form/partner evaluation | S15: =IF(Summary3[[#This Row],[Project ID]]=0,0,Q4_2021[[#This Row],[Total Budget]]) -> 28488065.2 | T15: =IF(Summary3[[#This Row],[Project ID]]=0,0,Q4_2021[[#This Row],[LGF Budget]]) -> 5931021.2 | U15: =IF(Summary3[[#This Row],[Project ID]]=0,0,Q4_2021[[#This Row],[Public Sector Leverage]]) -> 0 | V15: =IF(Summary3[[#This Row],[Project ID]]=0,0,Q4_2021[[#This Row],[Private Sector Leverage]]) -> 22557044 | W15: =IF(Summary3[[#This Row],[Project ID]]=0,0,Q4_2021[[#This Row],[Third Party Sector Leverage]]) -> 0 | X15: =IF(Summary3[[#This Row],[Project ID]]=0,0,Q4_2021[[#This Row],[LGF Outturn]]) -> 0 | Y15: =IF(Summary3[[#This Row],[Project ID]]=0,0,Q4_2021[[#This Row],[LGF Expenditure (as @ 31Mar21)]]) -> 5931021 | Z15: =IF(Summary3[[#This Row],[Project ID]]=0,0,Q4_2021[[#This Row],[Total non-LGF Expenditure (as @ 31Mar21)]]) -> 22557044 | AA15: 0 | AB15: 0 | AC15: 0 | AD15: 0 | AE15: 0 | AF15: 0 | AG15: 0 | AH15: 0 | AI15: 0 | AJ15: 0 | AK15: 0 | AL15: 0 | AM15: 0 | AN15: 0 | AO15: 0 | AP15: 0 | AQ15: 0 | AR15: 0 | AS15: 0 | AT15: 0
A16: =IFERROR(Q4_2021[[#This Row],[Project ID]],0) -> LGFLON21 | B16: =IF(Summary3[[#This Row],[Project ID]]=0,0,Q4_2021[[#This Row],[Project Name]]) -> SFL 1 Barking & Dagenham | C16: =IF(Summary3[[#This Row],[Project ID]]=0,0,Q4_2021[[#This Row],[Project Description (100 words max)]]) -> To refurbish and reconfigure the college's remaining 6,140m2 category C/D building which is noisy, energy inefficient and of light weight pre-fabricated construction. | D16: =IF(Summary3[[#This Row],[Project ID]]=0,0,Q4_2021[[#This Row],[LEP Name]]) -> London LEP | E16: =IF(Summary3[[#This Row],[Project ID]]=0,0,Q4_2021[[#This Row],[Local Authority area the project is in]]) -> London Borough of Barking & Dagenham | F16: =IF(Summary3[[#This Row],[Project ID]]=0,0,Q4_2021[[#This Row],[Post Code]]) -> RM7 0XU | G16: =IF(Summary3[[#This Row],[Project ID]]=0,0,Q4_2021[[#This Row],[Parliamentary Constituency]]) -> Dagenham and Rainham | H16: =IF(Summary3[[#This Row],[Project ID]]=0,0,Q4_2021[[#This Row],[Primary Project Type]]) -> Skills_Capital | I16: =IF(Summary3[[#This Row],[Project ID]]=0,0,Q4_2021[[#This Row],[Primary Project Activity]]) -> Investment in the further education estate | J16: =IF(Summary3[[#This Row],[Project ID]]=0,0,Q4_2021[[#This Row],[Secondary Project Type]]) -> Other | K16: =IF(Summary3[[#This Row],[Project ID]]=0,0,Q4_2021[[#This Row],[Secondary Project Activity]]) -> 0 | L16: =IF(Summary3[[#This Row],[Project ID]]=0,0,Q4_2021[[#This Row],[Project Type]]) -> Original | M16: =IF(Summary3[[#This Row],[Project ID]]=0,0,Q4_2021[[#This Row],[Project Status]]) -> Financially complete | N16: =IF(Summary3[[#This Row],[Project ID]]=0,0,Q4_2021[[#This Row],[Forecasted Financial Completion Date]]) -> 2020-12-30 | O16: =IF(Summary3[[#This Row],[Project ID]]=0,0,Q4_2021[[#This Row],[Actual Financial Completion]]) -> 2019-10-28 | P16: =IF(Summary3[[#This Row],[Project ID]]=0,0,Q4_2021[[#This Row],[Forecasted Practical Completion Date]]) -> 2025-03-31 | Q16: =IF(Summary3[[#This Row],[Project ID]]=0,0,Q4_2021[[#This Row],[Actual Practical Completion Date]]) -> 00:00:00 | R16: =IF(Summary3[[#This Row],[Project ID]]=0,0,Q4_2021[[#This Row],[Evaluation Method]]) -> closure form/partner evaluation | S16: =IF(Summary3[[#This Row],[Project ID]]=0,0,Q4_2021[[#This Row],[Total Budget]]) -> 9119162 | T16: =IF(Summary3[[#This Row],[Project ID]]=0,0,Q4_2021[[#This Row],[LGF Budget]]) -> 4997454 | U16: =IF(Summary3[[#This Row],[Project ID]]=0,0,Q4_2021[[#This Row],[Public Sector Leverage]]) -> 0 | V16: =IF(Summary3[[#This Row],[Project ID]]=0,0,Q4_2021[[#This Row],[Private Sector Leverage]]) -> 4121708 | W16: =IF(Summary3[[#This Row],[Project ID]]=0,0,Q4_2021[[#This Row],[Third Party Sector Leverage]]) -> 0 | X16: =IF(Summary3[[#This Row],[Project ID]]=0,0,Q4_2021[[#This Row],[LGF Outturn]]) -> 0 | Y16: =IF(Summary3[[#This Row],[Project ID]]=0,0,Q4_2021[[#This Row],[LGF Expenditure (as @ 31Mar21)]]) -> 4997454 | Z16: =IF(Summary3[[#This Row],[Project ID]]=0,0,Q4_2021[[#This Row],[Total non-LGF Expenditure (as @ 31Mar21)]]) -> 4121708 | AA16: 0 | AB16: 0 | AC16: 0 | AD16: 0 | AE16: 0 | AF16: 0 | AG16: 0 | AH16: 0 | AI16: 0 | AJ16: 0 | AK16: 0 | AL16: 0 | AM16: 0 | AN16: 0 | AO16: 0 | AP16: 0 | AQ16: 0 | AR16: 0 | AS16: 0 | AT16: 0
A17: =IFERROR(Q4_2021[[#This Row],[Project ID]],0) -> LGFLON22 | B17: =IF(Summary3[[#This Row],[Project ID]]=0,0,Q4_2021[[#This Row],[Project Name]]) -> GGF NE42 Wood Green | C17: =IF(Summary3[[#This Row],[Project ID]]=0,0,Q4_2021[[#This Row],[Project Description (100 words max)]]) -> Funding will focus on a range of interventions, including affordable workspace, creating civic infrastructure, supporting SMEs and creating public realm improvements. | D17: =IF(Summary3[[#This Row],[Project ID]]=0,0,Q4_2021[[#This Row],[LEP Name]]) -> London LEP | E17: =IF(Summary3[[#This Row],[Project ID]]=0,0,Q4_2021[[#This Row],[Local Authority area the project is in]]) -> London Borough of Haringey | F17: =IF(Summary3[[#This Row],[Project ID]]=0,0,Q4_2021[[#This Row],[Post Code]]) -> N22 6DZ | G17: =IF(Summary3[[#This Row],[Project ID]]=0,0,Q4_2021[[#This Row],[Parliamentary Constituency]]) -> Southgate & Wood Green | H17: =IF(Summary3[[#This Row],[Project ID]]=0,0,Q4_2021[[#This Row],[Primary Project Type]]) -> Regeneration_Public_Realm | I17: =IF(Summary3[[#This Row],[Project ID]]=0,0,Q4_2021[[#This Row],[Primary Project Activity]]) -> Public realm investment supporting wider regeneration projects | J17: =IF(Summary3[[#This Row],[Project ID]]=0,0,Q4_2021[[#This Row],[Secondary Project Type]]) -> Other | K17: =IF(Summary3[[#This Row],[Project ID]]=0,0,Q4_2021[[#This Row],[Secondary Project Activity]]) -> 0 | L17: =IF(Summary3[[#This Row],[Project ID]]=0,0,Q4_2021[[#This Row],[Project Type]]) -> Original | M17: =IF(Summary3[[#This Row],[Project ID]]=0,0,Q4_2021[[#This Row],[Project Status]]) -> Financially complete | N17: =IF(Summary3[[#This Row],[Project ID]]=0,0,Q4_2021[[#This Row],[Forecasted Financial Completion Date]]) -> 2020-04-01 | O17: =IF(Summary3[[#This Row],[Project ID]]=0,0,Q4_2021[[#This Row],[Actual Financial Completion]]) -> 2024-03-31 | P17: =IF(Summary3[[#This Row],[Project ID]]=0,0,Q4_2021[[#This Row],[Forecasted Practical Completion Date]]) -> 2025-03-31 | Q17: =IF(Summary3[[#This Row],[Project ID]]=0,0,Q4_2021[[#This Row],[Actual Practical Completion Date]]) -> 00:00:00 | R17: =IF(Summary3[[#This Row],[Project ID]]=0,0,Q4_2021[[#This Row],[Evaluation Method]]) -> closure form/partner evaluation | S17: =IF(Summary3[[#This Row],[Project ID]]=0,0,Q4_2021[[#This Row],[Total Budget]]) -> 782350 | T17: =IF(Summary3[[#This Row],[Project ID]]=0,0,Q4_2021[[#This Row],[LGF Budget]]) -> 768820 | U17: =IF(Summary3[[#This Row],[Project ID]]=0,0,Q4_2021[[#This Row],[Public Sector Leverage]]) -> 13530 | V17: =IF(Summary3[[#This Row],[Project ID]]=0,0,Q4_2021[[#This Row],[Private Sector Leverage]]) -> 0 | W17: =IF(Summary3[[#This Row],[Project ID]]=0,0,Q4_2021[[#This Row],[Third Party Sector Leverage]]) -> 0 | X17: =IF(Summary3[[#This Row],[Project ID]]=0,0,Q4_2021[[#This Row],[LGF Outturn]]) -> 0 | Y17: =IF(Summary3[[#This Row],[Project ID]]=0,0,Q4_2021[[#This Row],[LGF Expenditure (as @ 31Mar21)]]) -> 0 | Z17: =IF(Summary3[[#This Row],[Project ID]]=0,0,Q4_2021[[#This Row],[Total non-LGF Expenditure (as @ 31Mar21)]]) -> 0 | AA17: 0 | AB17: 0 | AC17: 0 | AD17: 0 | AE17: 0 | AF17: 0 | AG17: 0 | AH17: 0 | AI17: 0 | AJ17: 0 | AK17: 0 | AL17: 0 | AM17: 0 | AN17: 0 | AO17: 0 | AP17: 0 | AQ17: 0 | AR17: 0 | AS17: 0 | AT17: 0
A18: =IFERROR(Q4_2021[[#This Row],[Project ID]],0) -> LGFLON23 | B18: =IF(Summary3[[#This Row],[Project ID]]=0,0,Q4_2021[[#This Row],[Project Name]]) -> GGF S66 SHEDx (project complete) | C18: =IF(Summary3[[#This Row],[Project ID]]=0,0,Q4_2021[[#This Row],[Project Description (100 words max)]]) -> Aiming to change local and wider perceptions of Tolworth, Shed X intends to encourage communities to become engaged in reimagining space through small scale interventions and opportunities to develop a sense of local pride. | D18: =IF(Summary3[[#This Row],[Project ID]]=0,0,Q4_2021[[#This Row],[LEP Name]]) -> London LEP | E18: =IF(Summary3[[#This Row],[Project ID]]=0,0,Q4_2021[[#This Row],[Local Authority area the project is in]]) -> Royal Borough of Kingston Upon Thames | F18: =IF(Summary3[[#This Row],[Project ID]]=0,0,Q4_2021[[#This Row],[Post Code]]) -> KT5 9PB | G18: =IF(Summary3[[#This Row],[Project ID]]=0,0,Q4_2021[[#This Row],[Parliamentary Constituency]]) -> Kingston & Surbiton | H18: =IF(Summary3[[#This Row],[Project ID]]=0,0,Q4_2021[[#This Row],[Primary Project Type]]) -> Regeneration_Public_Realm | I18: =IF(Summary3[[#This Row],[Project ID]]=0,0,Q4_2021[[#This Row],[Primary Project Activity]]) -> Public realm investment supporting wider regeneration projects | J18: =IF(Summary3[[#This Row],[Project ID]]=0,0,Q4_2021[[#This Row],[Secondary Project Type]]) -> Other | K18: =IF(Summary3[[#This Row],[Project ID]]=0,0,Q4_2021[[#This Row],[Secondary Project Activity]]) -> 0 | L18: =IF(Summary3[[#This Row],[Project ID]]=0,0,Q4_2021[[#This Row],[Project Type]]) -> Original | M18: =IF(Summary3[[#This Row],[Project ID]]=0,0,Q4_2021[[#This Row],[Project Status]]) -> Completed – project complete | N18: =IF(Summary3[[#This Row],[Project ID]]=0,0,Q4_2021[[#This Row],[Forecasted Financial Completion Date]]) -> 2022-03-31 | O18: =IF(Summary3[[#This Row],[Project ID]]=0,0,Q4_2021[[#This Row],[Actual Financial Completion]]) -> 2022-03-31 | P18: =IF(Summary3[[#This Row],[Project ID]]=0,0,Q4_2021[[#This Row],[Forecasted Practical Completion Date]]) -> 2022-03-31 | Q18: =IF(Summary3[[#This Row],[Project ID]]=0,0,Q4_2021[[#This Row],[Actual Practical Completion Date]]) -> 2022-03-31 | R18: =IF(Summary3[[#This Row],[Project ID]]=0,0,Q4_2021[[#This Row],[Evaluation Method]]) -> closure form/partner evaluation | S18: =IF(Summary3[[#This Row],[Project ID]]=0,0,Q4_2021[[#This Row],[Total Budget]]) -> 872573 | T18: =IF(Summary3[[#This Row],[Project ID]]=0,0,Q4_2021[[#This Row],[LGF Budget]]) -> 385239 | U18: =IF(Summary3[[#This Row],[Project ID]]=0,0,Q4_2021[[#This Row],[Public Sector Leverage]]) -> 487334 | V18: =IF(Summary3[[#This Row],[Project ID]]=0,0,Q4_2021[[#This Row],[Private Sector Leverage]]) -> 0 | W18: =IF(Summary3[[#This Row],[Project ID]]=0,0,Q4_2021[[#This Row],[Third Party Sector Leverage]]) -> 0 | X18: =IF(Summary3[[#This Row],[Project ID]]=0,0,Q4_2021[[#This Row],[LGF Outturn]]) -> 0 | Y18: =IF(Summary3[[#This Row],[Project ID]]=0,0,Q4_2021[[#This Row],[LGF Expenditure (as @ 31Mar21)]]) -> 385239 | Z18: =IF(Summary3[[#This Row],[Project ID]]=0,0,Q4_2021[[#This Row],[Total non-LGF Expenditure (as @ 31Mar21)]]) -> 0 | AA18: 0 | AB18: 0 | AC18: 0 | AD18: 0 | AE18: 0 | AF18: 0 | AG18: 0 | AH18: 0 | AI18: 0 | AJ18: 0 | AK18: 0 | AL18: 0 | AM18: 0 | AN18: 0 | AO18: 0 | AP18: 0 | AQ18: 0 | AR18: 0 | AS18: 0 | AT18: 0
A19: =IFERROR(Q4_2021[[#This Row],[Project ID]],0) -> LGFLON24 | B19: =IF(Summary3[[#This Row],[Project ID]]=0,0,Q4_2021[[#This Row],[Project Name]]) -> GGF NE19 Low Lea Threads | C19: =IF(Summary3[[#This Row],[Project ID]]=0,0,Q4_2021[[#This Row],[Project Description (100 words max)]]) -> Delivering a wider Action Plan to spearhead innovation and inclusive growth of the fashion sector in East London, Lower Lea Threads aims to address structural and socio-economic challenges faced by local communities. | D19: =IF(Summary3[[#This Row],[Project ID]]=0,0,Q4_2021[[#This Row],[LEP Name]]) -> London LEP | E19: =IF(Summary3[[#This Row],[Project ID]]=0,0,Q4_2021[[#This Row],[Local Authority area the project is in]]) -> London Borough of Tower Hamlets | F19: =IF(Summary3[[#This Row],[Project ID]]=0,0,Q4_2021[[#This Row],[Post Code]]) -> E3 2PR | G19: =IF(Summary3[[#This Row],[Project ID]]=0,0,Q4_2021[[#This Row],[Parliamentary Constituency]]) -> Stratford & Bow | H19: =IF(Summary3[[#This Row],[Project ID]]=0,0,Q4_2021[[#This Row],[Primary Project Type]]) -> Regeneration_Public_Realm | I19: =IF(Summary3[[#This Row],[Project ID]]=0,0,Q4_2021[[#This Row],[Primary Project Activity]]) -> Community regeneration projects | J19: =IF(Summary3[[#This Row],[Project ID]]=0,0,Q4_2021[[#This Row],[Secondary Project Type]]) -> Other | K19: =IF(Summary3[[#This Row],[Project ID]]=0,0,Q4_2021[[#This Row],[Secondary Project Activity]]) -> 0 | L19: =IF(Summary3[[#This Row],[Project ID]]=0,0,Q4_2021[[#This Row],[Project Type]]) -> Original | M19: =IF(Summary3[[#This Row],[Project ID]]=0,0,Q4_2021[[#This Row],[Project Status]]) -> Completed – project complete | N19: =IF(Summary3[[#This Row],[Project ID]]=0,0,Q4_2021[[#This Row],[Forecasted Financial Completion Date]]) -> 2021-03-30 | O19: =IF(Summary3[[#This Row],[Project ID]]=0,0,Q4_2021[[#This Row],[Actual Financial Completion]]) -> 2021-03-30 | P19: =IF(Summary3[[#This Row],[Project ID]]=0,0,Q4_2021[[#This Row],[Forecasted Practical Completion Date]]) -> 2021-03-30 | Q19: =IF(Summary3[[#This Row],[Project ID]]=0,0,Q4_2021[[#This Row],[Actual Practical Completion Date]]) -> 2021-03-30 | R19: =IF(Summary3[[#This Row],[Project ID]]=0,0,Q4_2021[[#This Row],[Evaluation Method]]) -> closure form/partner evaluation | S19: =IF(Summary3[[#This Row],[Project ID]]=0,0,Q4_2021[[#This Row],[Total Budget]]) -> 4728104 | T19: =IF(Summary3[[#This Row],[Project ID]]=0,0,Q4_2021[[#This Row],[LGF Budget]]) -> 1993792 | U19: =IF(Summary3[[#This Row],[Project ID]]=0,0,Q4_2021[[#This Row],[Public Sector Leverage]]) -> 2734312 | V19: =IF(Summary3[[#This Row],[Project ID]]=0,0,Q4_2021[[#This Row],[Private Sector Leverage]]) -> 0 | W19: =IF(Summary3[[#This Row],[Project ID]]=0,0,Q4_2021[[#This Row],[Third Party Sector Leverage]]) -> 0 | X19: =IF(Summary3[[#This Row],[Project ID]]=0,0,Q4_2021[[#This Row],[LGF Outturn]]) -> 0 | Y19: =IF(Summary3[[#This Row],[Project ID]]=0,0,Q4_2021[[#This Row],[LGF Expenditure (as @ 31Mar21)]]) -> 1993792 | Z19: =IF(Summary3[[#This Row],[Project ID]]=0,0,Q4_2021[[#This Row],[Total non-LGF Expenditure (as @ 31Mar21)]]) -> 0 | AA19: 0 | AB19: 0 | AC19: 0 | AD19: 0 | AE19: 0 | AF19: 0 | AG19: 0 | AH19: 0 | AI19: 0 | AJ19: 0 | AK19: 0 | AL19: 0 | AM19: 0 | AN19: 0 | AO19: 0 | AP19: 0 | AQ19: 0 | AR19: 0 | AS19: 0 | AT19: 0
A20: =IFERROR(Q4_2021[[#This Row],[Project ID]],0) -> LGFLON25 | B20: =IF(Summary3[[#This Row],[Project ID]]=0,0,Q4_2021[[#This Row],[Project Name]]) -> GGF NW62 Finsbury Park | C20: =IF(Summary3[[#This Row],[Project ID]]=0,0,Q4_2021[[#This Row],[Project Description (100 words max)]]) -> By providing affordable studio and workspace for community groups disadvantaged residents in Finsbury Park will be supported to set-up and grow their own businesses, and receive business support and training. | D20: =IF(Summary3[[#This Row],[Project ID]]=0,0,Q4_2021[[#This Row],[LEP Name]]) -> London LEP | E20: =IF(Summary3[[#This Row],[Project ID]]=0,0,Q4_2021[[#This Row],[Local Authority area the project is in]]) -> London Borough of Islington | F20: =IF(Summary3[[#This Row],[Project ID]]=0,0,Q4_2021[[#This Row],[Post Code]]) -> N4 3NS | G20: =IF(Summary3[[#This Row],[Project ID]]=0,0,Q4_2021[[#This Row],[Parliamentary Constituency]]) -> Islington North | H20: =IF(Summary3[[#This Row],[Project ID]]=0,0,Q4_2021[[#This Row],[Primary Project Type]]) -> Regeneration_Public_Realm | I20: =IF(Summary3[[#This Row],[Project ID]]=0,0,Q4_2021[[#This Row],[Primary Project Activity]]) -> Other | J20: =IF(Summary3[[#This Row],[Project ID]]=0,0,Q4_2021[[#This Row],[Secondary Project Type]]) -> Other | K20: =IF(Summary3[[#This Row],[Project ID]]=0,0,Q4_2021[[#This Row],[Secondary Project Activity]]) -> 0 | L20: =IF(Summary3[[#This Row],[Project ID]]=0,0,Q4_2021[[#This Row],[Project Type]]) -> Original | M20: =IF(Summary3[[#This Row],[Project ID]]=0,0,Q4_2021[[#This Row],[Project Status]]) -> Completed – project complete | N20: =IF(Summary3[[#This Row],[Project ID]]=0,0,Q4_2021[[#This Row],[Forecasted Financial Completion Date]]) -> 2020-03-30 | O20: =IF(Summary3[[#This Row],[Project ID]]=0,0,Q4_2021[[#This Row],[Actual Financial Completion]]) -> 2021-03-30 | P20: =IF(Summary3[[#This Row],[Project ID]]=0,0,Q4_2021[[#This Row],[Forecasted Practical Completion Date]]) -> 2021-03-30 | Q20: =IF(Summary3[[#This Row],[Project ID]]=0,0,Q4_2021[[#This Row],[Actual Practical Completion Date]]) -> 2021-03-30 | R20: =IF(Summary3[[#This Row],[Project ID]]=0,0,Q4_2021[[#This Row],[Evaluation Method]]) -> closure form/partner evaluation | S20: =IF(Summary3[[#This Row],[Project ID]]=0,0,Q4_2021[[#This Row],[Total Budget]]) -> 2388721 | T20: =IF(Summary3[[#This Row],[Project ID]]=0,0,Q4_2021[[#This Row],[LGF Budget]]) -> 1030000 | U20: =IF(Summary3[[#This Row],[Project ID]]=0,0,Q4_2021[[#This Row],[Public Sector Leverage]]) -> 1358721 | V20: =IF(Summary3[[#This Row],[Project ID]]=0,0,Q4_2021[[#This Row],[Private Sector Leverage]]) -> 0 | W20: =IF(Summary3[[#This Row],[Project ID]]=0,0,Q4_2021[[#This Row],[Third Party Sector Leverage]]) -> 0 | X20: =IF(Summary3[[#This Row],[Project ID]]=0,0,Q4_2021[[#This Row],[LGF Outturn]]) -> 0 | Y20: =IF(Summary3[[#This Row],[Project ID]]=0,0,Q4_2021[[#This Row],[LGF Expenditure (as @ 31Mar21)]]) -> 1030000 | Z20: =IF(Summary3[[#This Row],[Project ID]]=0,0,Q4_2021[[#This Row],[Total non-LGF Expenditure (as @ 31Mar21)]]) -> 0 | AA20: 0 | AB20: 0 | AC20: 0 | AD20: 0 | AE20: 0 | AF20: 0 | AG20: 0 | AH20: 0 | AI20: 0 | AJ20: 0 | AK20: 0 | AL20: 0 | AM20: 0 | AN20: 0 | AO20: 0 | AP20: 0 | AQ20: 0 | AR20: 0 | AS20: 0 | AT20: 0
A21: =IFERROR(Q4_2021[[#This Row],[Project ID]],0) -> LGFLON26 | B21: =IF(Summary3[[#This Row],[Project ID]]=0,0,Q4_2021[[#This Row],[Project Name]]) -> GGF NW19 Bedford House | C21: =IF(Summary3[[#This Row],[Project ID]]=0,0,Q4_2021[[#This Row],[Project Description (100 words max)]]) -> Creating a sustainable and accessible community hub in the Holborn Community Association's 60-year-old community centre will enable a 50 per cent increase in service provision to the Holborn community and the provision of affordable workspace. | D21: =IF(Summary3[[#This Row],[Project ID]]=0,0,Q4_2021[[#This Row],[LEP Name]]) -> London LEP | E21: =IF(Summary3[[#This Row],[Project ID]]=0,0,Q4_2021[[#This Row],[Local Authority area the project is in]]) -> London Borough of Camden | F21: =IF(Summary3[[#This Row],[Project ID]]=0,0,Q4_2021[[#This Row],[Post Code]]) -> WC1N 3QW | G21: =IF(Summary3[[#This Row],[Project ID]]=0,0,Q4_2021[[#This Row],[Parliamentary Constituency]]) -> Holborn & St Pancras | H21: =IF(Summary3[[#This Row],[Project ID]]=0,0,Q4_2021[[#This Row],[Primary Project Type]]) -> Regeneration_Public_Realm | I21: =IF(Summary3[[#This Row],[Project ID]]=0,0,Q4_2021[[#This Row],[Primary Project Activity]]) -> Other | J21: =IF(Summary3[[#This Row],[Project ID]]=0,0,Q4_2021[[#This Row],[Secondary Project Type]]) -> Other | K21: =IF(Summary3[[#This Row],[Project ID]]=0,0,Q4_2021[[#This Row],[Secondary Project Activity]]) -> 0 | L21: =IF(Summary3[[#This Row],[Project ID]]=0,0,Q4_2021[[#This Row],[Project Type]]) -> Original | M21: =IF(Summary3[[#This Row],[Project ID]]=0,0,Q4_2021[[#This Row],[Project Status]]) -> Completed – project complete | N21: =IF(Summary3[[#This Row],[Project ID]]=0,0,Q4_2021[[#This Row],[Forecasted Financial Completion Date]]) -> 2021-03-30 | O21: =IF(Summary3[[#This Row],[Project ID]]=0,0,Q4_2021[[#This Row],[Actual Financial Completion]]) -> 2021-03-30 | P21: =IF(Summary3[[#This Row],[Project ID]]=0,0,Q4_2021[[#This Row],[Forecasted Practical Completion Date]]) -> 2021-03-30 | Q21: =IF(Summary3[[#This Row],[Project ID]]=0,0,Q4_2021[[#This Row],[Actual Practical Completion Date]]) -> 2021-03-30 | R21: =IF(Summary3[[#This Row],[Project ID]]=0,0,Q4_2021[[#This Row],[Evaluation Method]]) -> closure form/partner evaluation | S21: =IF(Summary3[[#This Row],[Project ID]]=0,0,Q4_2021[[#This Row],[Total Budget]]) -> 2790000 | T21: =IF(Summary3[[#This Row],[Project ID]]=0,0,Q4_2021[[#This Row],[LGF Budget]]) -> 600000 | U21: =IF(Summary3[[#This Row],[Project ID]]=0,0,Q4_2021[[#This Row],[Public Sector Leverage]]) -> 2190000 | V21: =IF(Summary3[[#This Row],[Project ID]]=0,0,Q4_2021[[#This Row],[Private Sector Leverage]]) -> 0 | W21: =IF(Summary3[[#This Row],[Project ID]]=0,0,Q4_2021[[#This Row],[Third Party Sector Leverage]]) -> 0 | X21: =IF(Summary3[[#This Row],[Project ID]]=0,0,Q4_2021[[#This Row],[LGF Outturn]]) -> 0 | Y21: =IF(Summary3[[#This Row],[Project ID]]=0,0,Q4_2021[[#This Row],[LGF Expenditure (as @ 31Mar21)]]) -> 600000 | Z21: =IF(Summary3[[#This Row],[Project ID]]=0,0,Q4_2021[[#This Row],[Total non-LGF Expenditure (as @ 31Mar21)]]) -> 0 | AA21: 0 | AB21: 0 | AC21: 0 | AD21: 0 | AE21: 0 | AF21: 0 | AG21: 0 | AH21: 0 | AI21: 0 | AJ21: 0 | AK21: 0 | AL21: 0 | AM21: 0 | AN21: 0 | AO21: 0 | AP21: 0 | AQ21: 0 | AR21: 0 | AS21: 0 | AT21: 8
A22: =IFERROR(Q4_2021[[#This Row],[Project ID]],0) -> LGFLON27 | B22: =IF(Summary3[[#This Row],[Project ID]]=0,0,Q4_2021[[#This Row],[Project Name]]) -> GGF S06 Southbank | C22: =IF(Summary3[[#This Row],[Project ID]]=0,0,Q4_2021[[#This Row],[Project Description (100 words max)]]) -> Delivering a dedicated HQ for The Southbank Centre’s new education programme, alongside an expanded and improved skate space, the undercroft project will permanently create inclusive and free-to-use community facilities for many young Londoners. | D22: =IF(Summary3[[#This Row],[Project ID]]=0,0,Q4_2021[[#This Row],[LEP Name]]) -> London LEP | E22: =IF(Summary3[[#This Row],[Project ID]]=0,0,Q4_2021[[#This Row],[Local Authority area the project is in]]) -> London borough of Lambeth | F22: =IF(Summary3[[#This Row],[Project ID]]=0,0,Q4_2021[[#This Row],[Post Code]]) -> SE1 8XX | G22: =IF(Summary3[[#This Row],[Project ID]]=0,0,Q4_2021[[#This Row],[Parliamentary Constituency]]) -> Vauxhall & Camberwell Green | H22: =IF(Summary3[[#This Row],[Project ID]]=0,0,Q4_2021[[#This Row],[Primary Project Type]]) -> Regeneration_Public_Realm | I22: =IF(Summary3[[#This Row],[Project ID]]=0,0,Q4_2021[[#This Row],[Primary Project Activity]]) -> Community regeneration projects | J22: =IF(Summary3[[#This Row],[Project ID]]=0,0,Q4_2021[[#This Row],[Secondary Project Type]]) -> Other | K22: =IF(Summary3[[#This Row],[Project ID]]=0,0,Q4_2021[[#This Row],[Secondary Project Activity]]) -> 0 | L22: =IF(Summary3[[#This Row],[Project ID]]=0,0,Q4_2021[[#This Row],[Project Type]]) -> Original | M22: =IF(Summary3[[#This Row],[Project ID]]=0,0,Q4_2021[[#This Row],[Project Status]]) -> Financially complete | N22: =IF(Summary3[[#This Row],[Project ID]]=0,0,Q4_2021[[#This Row],[Forecasted Financial Completion Date]]) -> 2021-03-30 | O22: =IF(Summary3[[#This Row],[Project ID]]=0,0,Q4_2021[[#This Row],[Actual Financial Completion]]) -> 2021-03-30 | P22: =IF(Summary3[[#This Row],[Project ID]]=0,0,Q4_2021[[#This Row],[Forecasted Practical Completion Date]]) -> 2024-10-30 | Q22: =IF(Summary3[[#This Row],[Project ID]]=0,0,Q4_2021[[#This Row],[Actual Practical Completion Date]]) -> 00:00:00 | R22: =IF(Summary3[[#This Row],[Project ID]]=0,0,Q4_2021[[#This Row],[Evaluation Method]]) -> closure form/partner evaluation | S22: =IF(Summary3[[#This Row],[Project ID]]=0,0,Q4_2021[[#This Row],[Total Budget]]) -> 700000 | T22: =IF(Summary3[[#This Row],[Project ID]]=0,0,Q4_2021[[#This Row],[LGF Budget]]) -> 700000 | U22: =IF(Summary3[[#This Row],[Project ID]]=0,0,Q4_2021[[#This Row],[Public Sector Leverage]]) -> 0 | V22: =IF(Summary3[[#This Row],[Project ID]]=0,0,Q4_2021[[#This Row],[Private Sector Leverage]]) -> 0 | W22: =IF(Summary3[[#This Row],[Project ID]]=0,0,Q4_2021[[#This Row],[Third Party Sector Leverage]]) -> 0 | X22: =IF(Summary3[[#This Row],[Project ID]]=0,0,Q4_2021[[#This Row],[LGF Outturn]]) -> 0 | Y22: =IF(Summary3[[#This Row],[Project ID]]=0,0,Q4_2021[[#This Row],[LGF Expenditure (as @ 31Mar21)]]) -> 700000 | Z22: =IF(Summary3[[#This Row],[Project ID]]=0,0,Q4_2021[[#This Row],[Total non-LGF Expenditure (as @ 31Mar21)]]) -> 0 | AA22: 0 | AB22: 0 | AC22: 0 | AD22: 0 | AE22: 0 | AF22: 0 | AG22: 0 | AH22: 0 | AI22: 0 | AJ22: 0 | AK22: 0 | AL22: 0 | AM22: 0 | AN22: 0 | AO22: 0 | AP22: 0 | AQ22: 0 | AR22: 10 | AS22: 0 | AT22: 10
A23: =IFERROR(Q4_2021[[#This Row],[Project ID]],0) -> LGFLON28 | B23: =IF(Summary3[[#This Row],[Project ID]]=0,0,Q4_2021[[#This Row],[Project Name]]) -> GGF NE22 EveryoneEveryday | C23: =IF(Summary3[[#This Row],[Project ID]]=0,0,Q4_2021[[#This Row],[Project Description (100 words max)]]) -> This participatory programme in Barking & Dagenham will be supported through the development of a warehouse which will provide a range of facilities for local users, including a metal and wood workshop, industrial kitchen facilities, fabric workspace and teaching space. | D23: =IF(Summary3[[#This Row],[Project ID]]=0,0,Q4_2021[[#This Row],[LEP Name]]) -> London LEP | E23: =IF(Summary3[[#This Row],[Project ID]]=0,0,Q4_2021[[#This Row],[Local Authority area the project is in]]) -> London Borough of Barking & Dagenham | F23: =IF(Summary3[[#This Row],[Project ID]]=0,0,Q4_2021[[#This Row],[Post Code]]) -> RM10 8YB | G23: =IF(Summary3[[#This Row],[Project ID]]=0,0,Q4_2021[[#This Row],[Parliamentary Constituency]]) -> Dagenham and Rainham | H23: =IF(Summary3[[#This Row],[Project ID]]=0,0,Q4_2021[[#This Row],[Primary Project Type]]) -> Regeneration_Public_Realm | I23: =IF(Summary3[[#This Row],[Project ID]]=0,0,Q4_2021[[#This Row],[Primary Project Activity]]) -> Community regeneration projects | J23: =IF(Summary3[[#This Row],[Project ID]]=0,0,Q4_2021[[#This Row],[Secondary Project Type]]) -> Other | K23: =IF(Summary3[[#This Row],[Project ID]]=0,0,Q4_2021[[#This Row],[Secondary Project Activity]]) -> 0 | L23: =IF(Summary3[[#This Row],[Project ID]]=0,0,Q4_2021[[#This Row],[Project Type]]) -> Original | M23: =IF(Summary3[[#This Row],[Project ID]]=0,0,Q4_2021[[#This Row],[Project Status]]) -> Completed – project complete | N23: =IF(Summary3[[#This Row],[Project ID]]=0,0,Q4_2021[[#This Row],[Forecasted Financial Completion Date]]) -> 2021-03-30 | O23: =IF(Summary3[[#This Row],[Project ID]]=0,0,Q4_2021[[#This Row],[Actual Financial Completion]]) -> 2023-03-30 | P23: =IF(Summary3[[#This Row],[Project ID]]=0,0,Q4_2021[[#This Row],[Forecasted Practical Completion Date]]) -> 2023-12-30 | Q23: =IF(Summary3[[#This Row],[Project ID]]=0,0,Q4_2021[[#This Row],[Actual Practical Completion Date]]) -> 2023-12-30 | R23: =IF(Summary3[[#This Row],[Project ID]]=0,0,Q4_2021[[#This Row],[Evaluation Method]]) -> closure form/partner evaluation | S23: =IF(Summary3[[#This Row],[Project ID]]=0,0,Q4_2021[[#This Row],[Total Budget]]) -> 1236257 | T23: =IF(Summary3[[#This Row],[Project ID]]=0,0,Q4_2021[[#This Row],[LGF Budget]]) -> 850000 | U23: =IF(Summary3[[#This Row],[Project ID]]=0,0,Q4_2021[[#This Row],[Public Sector Leverage]]) -> 386257 | V23: =IF(Summary3[[#This Row],[Project ID]]=0,0,Q4_2021[[#This Row],[Private Sector Leverage]]) -> 0 | W23: =IF(Summary3[[#This Row],[Project ID]]=0,0,Q4_2021[[#This Row],[Third Party Sector Leverage]]) -> 0 | X23: =IF(Summary3[[#This Row],[Project ID]]=0,0,Q4_2021[[#This Row],[LGF Outturn]]) -> 0 | Y23: =IF(Summary3[[#This Row],[Project ID]]=0,0,Q4_2021[[#This Row],[LGF Expenditure (as @ 31Mar21)]]) -> 599370 | Z23: =IF(Summary3[[#This Row],[Project ID]]=0,0,Q4_2021[[#This Row],[Total non-LGF Expenditure (as @ 31Mar21)]]) -> 0 | AA23: 0 | AB23: 0 | AC23: 0 | AD23: 0 | AE23: 0 | AF23: 0 | AG23: 0 | AH23: 0 | AI23: 0 | AJ23: 0 | AK23: 0 | AL23: 0 | AM23: 0 | AN23: 0 | AO23: 0 | AP23: 0 | AQ23: 0 | AR23: 0 | AS23: 0 | AT23: 0
A24: =IFERROR(Q4_2021[[#This Row],[Project ID]],0) -> LGFLON29 | B24: =IF(Summary3[[#This Row],[Project ID]]=0,0,Q4_2021[[#This Row],[Project Name]]) -> GGF NE15 UK Talent House | C24: =IF(Summary3[[#This Row],[Project ID]]=0,0,Q4_2021[[#This Row],[Project Description (100 words max)]]) -> A new home for Urban Development and East London Dance within the Sugar House Island development will provide affordable workspace, dance facilities, recording studios and teaching space; aiming to address the needs of young people from east London helping them to access opportunities in the creative industries. | D24: =IF(Summary3[[#This Row],[Project ID]]=0,0,Q4_2021[[#This Row],[LEP Name]]) -> London LEP | E24: =IF(Summary3[[#This Row],[Project ID]]=0,0,Q4_2021[[#This Row],[Local Authority area the project is in]]) -> London Borough of Newham | F24: =IF(Summary3[[#This Row],[Project ID]]=0,0,Q4_2021[[#This Row],[Post Code]]) -> E15 2QS | G24: =IF(Summary3[[#This Row],[Project ID]]=0,0,Q4_2021[[#This Row],[Parliamentary Constituency]]) -> Stratford & Bow | H24: =IF(Summary3[[#This Row],[Project ID]]=0,0,Q4_2021[[#This Row],[Primary Project Type]]) -> Innovation | I24: =IF(Summary3[[#This Row],[Project ID]]=0,0,Q4_2021[[#This Row],[Primary Project Activity]]) -> Investment in innovation spaces and centres of excellence. | J24: =IF(Summary3[[#This Row],[Project ID]]=0,0,Q4_2021[[#This Row],[Secondary Project Type]]) -> Other | K24: =IF(Summary3[[#This Row],[Project ID]]=0,0,Q4_2021[[#This Row],[Secondary Project Activity]]) -> 0 | L24: =IF(Summary3[[#This Row],[Project ID]]=0,0,Q4_2021[[#This Row],[Project Type]]) -> Original | M24: =IF(Summary3[[#This Row],[Project ID]]=0,0,Q4_2021[[#This Row],[Project Status]]) -> Financially complete | N24: =IF(Summary3[[#This Row],[Project ID]]=0,0,Q4_2021[[#This Row],[Forecasted Financial Completion Date]]) -> 2021-03-30 | O24: =IF(Summary3[[#This Row],[Project ID]]=0,0,Q4_2021[[#This Row],[Actual Financial Completion]]) -> 2021-03-30 | P24: =IF(Summary3[[#This Row],[Project ID]]=0,0,Q4_2021[[#This Row],[Forecasted Practical Completion Date]]) -> 2024-10-30 | Q24: =IF(Summary3[[#This Row],[Project ID]]=0,0,Q4_2021[[#This Row],[Actual Practical Completion Date]]) -> 00:00:00 | R24: =IF(Summary3[[#This Row],[Project ID]]=0,0,Q4_2021[[#This Row],[Evaluation Method]]) -> closure form/partner evaluation | S24: =IF(Summary3[[#This Row],[Project ID]]=0,0,Q4_2021[[#This Row],[Total Budget]]) -> 3870322 | T24: =IF(Summary3[[#This Row],[Project ID]]=0,0,Q4_2021[[#This Row],[LGF Budget]]) -> 1350000 | U24: =IF(Summary3[[#This Row],[Project ID]]=0,0,Q4_2021[[#This Row],[Public Sector Leverage]]) -> 2268290 | V24: =IF(Summary3[[#This Row],[Project ID]]=0,0,Q4_2021[[#This Row],[Private Sector Leverage]]) -> 252032 | W24: =IF(Summary3[[#This Row],[Project ID]]=0,0,Q4_2021[[#This Row],[Third Party Sector Leverage]]) -> 0 | X24: =IF(Summary3[[#This Row],[Project ID]]=0,0,Q4_2021[[#This Row],[LGF Outturn]]) -> 0 | Y24: =IF(Summary3[[#This Row],[Project ID]]=0,0,Q4_2021[[#This Row],[LGF Expenditure (as @ 31Mar21)]]) -> 300021 | Z24: =IF(Summary3[[#This Row],[Project ID]]=0,0,Q4_2021[[#This Row],[Total non-LGF Expenditure (as @ 31Mar21)]]) -> 0 | AA24: 0 | AB24: 0 | AC24: 0 | AD24: 0 | AE24: 0 | AF24: 0 | AG24: 0 | AH24: 0 | AI24: 0 | AJ24: 0 | AK24: 0 | AL24: 0 | AM24: 0 | AN24: 0 | AO24: 0 | AP24: 0 | AQ24: 0 | AR24: 0 | AS24: 0 | AT24: 0
A25: =IFERROR(Q4_2021[[#This Row],[Project ID]],0) -> LGFLON30 | B25: =IF(Summary3[[#This Row],[Project ID]]=0,0,Q4_2021[[#This Row],[Project Name]]) -> GGF S54 Waterloo Works! | C25: =IF(Summary3[[#This Row],[Project ID]]=0,0,Q4_2021[[#This Row],[Project Description (100 words max)]]) -> Creating a new Creative Digital Industry (CDI) workspace and community enterprise and skills hub, Waterloo Works will unlock a valuable public land asset within highly accessible location and bring organisations together in partnership to address the economic and equality challenges faced by local residents and SMEs in this central London location. | D25: =IF(Summary3[[#This Row],[Project ID]]=0,0,Q4_2021[[#This Row],[LEP Name]]) -> London LEP | E25: =IF(Summary3[[#This Row],[Project ID]]=0,0,Q4_2021[[#This Row],[Local Authority area the project is in]]) -> London borough of Lambeth | F25: =IF(Summary3[[#This Row],[Project ID]]=0,0,Q4_2021[[#This Row],[Post Code]]) -> SE1 8AZ | G25: =IF(Summary3[[#This Row],[Project ID]]=0,0,Q4_2021[[#This Row],[Parliamentary Constituency]]) -> Vauxhall & Camberwell Green | H25: =IF(Summary3[[#This Row],[Project ID]]=0,0,Q4_2021[[#This Row],[Primary Project Type]]) -> Regeneration_Public_Realm | I25: =IF(Summary3[[#This Row],[Project ID]]=0,0,Q4_2021[[#This Row],[Primary Project Activity]]) -> 0 | J25: =IF(Summary3[[#This Row],[Project ID]]=0,0,Q4_2021[[#This Row],[Secondary Project Type]]) -> Other | K25: =IF(Summary3[[#This Row],[Project ID]]=0,0,Q4_2021[[#This Row],[Secondary Project Activity]]) -> 0 | L25: =IF(Summary3[[#This Row],[Project ID]]=0,0,Q4_2021[[#This Row],[Project Type]]) -> Original | M25: =IF(Summary3[[#This Row],[Project ID]]=0,0,Q4_2021[[#This Row],[Project Status]]) -> Project Withdrawn - No grant funding spent | N25: =IF(Summary3[[#This Row],[Project ID]]=0,0,Q4_2021[[#This Row],[Forecasted Financial Completion Date]]) -> x | O25: =IF(Summary3[[#This Row],[Project ID]]=0,0,Q4_2021[[#This Row],[Actual Financial Completion]]) -> x | P25: =IF(Summary3[[#This Row],[Project ID]]=0,0,Q4_2021[[#This Row],[Forecasted Practical Completion Date]]) -> x | Q25: =IF(Summary3[[#This Row],[Project ID]]=0,0,Q4_2021[[#This Row],[Actual Practical Completion Date]]) -> x | R25: =IF(Summary3[[#This Row],[Project ID]]=0,0,Q4_2021[[#This Row],[Evaluation Method]]) -> x | S25: =IF(Summary3[[#This Row],[Project ID]]=0,0,Q4_2021[[#This Row],[Total Budget]]) -> 0 | T25: =IF(Summary3[[#This Row],[Project ID]]=0,0,Q4_2021[[#This Row],[LGF Budget]]) -> 0 | U25: =IF(Summary3[[#This Row],[Project ID]]=0,0,Q4_2021[[#This Row],[Public Sector Leverage]]) -> 0 | V25: =IF(Summary3[[#This Row],[Project ID]]=0,0,Q4_2021[[#This Row],[Private Sector Leverage]]) -> 0 | W25: =IF(Summary3[[#This Row],[Project ID]]=0,0,Q4_2021[[#This Row],[Third Party Sector Leverage]]) -> 0 | X25: =IF(Summary3[[#This Row],[Project ID]]=0,0,Q4_2021[[#This Row],[LGF Outturn]]) -> 0 | Y25: =IF(Summary3[[#This Row],[Project ID]]=0,0,Q4_2021[[#This Row],[LGF Expenditure (as @ 31Mar21)]]) -> 0 | Z25: =IF(Summary3[[#This Row],[Project ID]]=0,0,Q4_2021[[#This Row],[Total non-LGF Expenditure (as @ 31Mar21)]]) -> 0 | AA25: 0 | AB25: 0 | AC25: 0 | AD25: 0 | AE25: 0 | AF25: 0 | AG25: 0 | AH25: 0 | AI25: 0 | AJ25: 0 | AK25: 0 | AL25: 0 | AM25: 0 | AN25: 0 | AO25: 0 | AP25: 0 | AQ25: 0 | AR25: 0 | AS25: 0 | AT25: 0
A26: =IFERROR(Q4_2021[[#This Row],[Project ID]],0) -> LGFLON31 | B26: =IF(Summary3[[#This Row],[Project ID]]=0,0,Q4_2021[[#This Row],[Project Name]]) -> GGF S71 Livesey Exchange | C26: =IF(Summary3[[#This Row],[Project ID]]=0,0,Q4_2021[[#This Row],[Project Description (100 words max)]]) -> By bringing together and supporting local people into sustainable employment, Livesey Exchange aims to build a space along the Old Kent Road for the many local young people who have been calling for spaces that they can use to develop and grow. | D26: =IF(Summary3[[#This Row],[Project ID]]=0,0,Q4_2021[[#This Row],[LEP Name]]) -> London LEP | E26: =IF(Summary3[[#This Row],[Project ID]]=0,0,Q4_2021[[#This Row],[Local Authority area the project is in]]) -> London Borough of Southwark | F26: =IF(Summary3[[#This Row],[Project ID]]=0,0,Q4_2021[[#This Row],[Post Code]]) -> SE1 5JX | G26: =IF(Summary3[[#This Row],[Project ID]]=0,0,Q4_2021[[#This Row],[Parliamentary Constituency]]) -> Peckham | H26: =IF(Summary3[[#This Row],[Project ID]]=0,0,Q4_2021[[#This Row],[Primary Project Type]]) -> Innovation | I26: =IF(Summary3[[#This Row],[Project ID]]=0,0,Q4_2021[[#This Row],[Primary Project Activity]]) -> 0 | J26: =IF(Summary3[[#This Row],[Project ID]]=0,0,Q4_2021[[#This Row],[Secondary Project Type]]) -> Other | K26: =IF(Summary3[[#This Row],[Project ID]]=0,0,Q4_2021[[#This Row],[Secondary Project Activity]]) -> 0 | L26: =IF(Summary3[[#This Row],[Project ID]]=0,0,Q4_2021[[#This Row],[Project Type]]) -> Original | M26: =IF(Summary3[[#This Row],[Project ID]]=0,0,Q4_2021[[#This Row],[Project Status]]) -> Project Withdrawn - No grant funding spent | N26: =IF(Summary3[[#This Row],[Project ID]]=0,0,Q4_2021[[#This Row],[Forecasted Financial Completion Date]]) -> 2023-12-30 | O26: =IF(Summary3[[#This Row],[Project ID]]=0,0,Q4_2021[[#This Row],[Actual Financial Completion]]) -> 2023-12-30 | P26: =IF(Summary3[[#This Row],[Project ID]]=0,0,Q4_2021[[#This Row],[Forecasted Practical Completion Date]]) -> 2023-12-30 | Q26: =IF(Summary3[[#This Row],[Project ID]]=0,0,Q4_2021[[#This Row],[Actual Practical Completion Date]]) -> 2023-12-30 | R26: =IF(Summary3[[#This Row],[Project ID]]=0,0,Q4_2021[[#This Row],[Evaluation Method]]) -> closure form/partner evaluation | S26: =IF(Summary3[[#This Row],[Project ID]]=0,0,Q4_2021[[#This Row],[Total Budget]]) -> 0 | T26: =IF(Summary3[[#This Row],[Project ID]]=0,0,Q4_2021[[#This Row],[LGF Budget]]) -> 0 | U26: =IF(Summary3[[#This Row],[Project ID]]=0,0,Q4_2021[[#This Row],[Public Sector Leverage]]) -> 0 | V26: =IF(Summary3[[#This Row],[Project ID]]=0,0,Q4_2021[[#This Row],[Private Sector Leverage]]) -> 0 | W26: =IF(Summary3[[#This Row],[Project ID]]=0,0,Q4_2021[[#This Row],[Third Party Sector Leverage]]) -> 0 | X26: =IF(Summary3[[#This Row],[Project ID]]=0,0,Q4_2021[[#This Row],[LGF Outturn]]) -> 0 | Y26: =IF(Summary3[[#This Row],[Project ID]]=0,0,Q4_2021[[#This Row],[LGF Expenditure (as @ 31Mar21)]]) -> 0 | Z26: =IF(Summary3[[#This Row],[Project ID]]=0,0,Q4_2021[[#This Row],[Total non-LGF Expenditure (as @ 31Mar21)]]) -> 0 | AA26: 0 | AB26: 0 | AC26: 0 | AD26: 0 | AE26: 0 | AF26: 0 | AG26: 0 | AH26: 0 | AI26: 0 | AJ26: 0 | AK26: 0 | AL26: 0 | AM26: 0 | AN26: 0 | AO26: 0 | AP26: 0 | AQ26: 0 | AR26: 0 | AS26: 0 | AT26: 0
A27: =IFERROR(Q4_2021[[#This Row],[Project ID]],0) -> LGFLON32 | B27: =IF(Summary3[[#This Row],[Project ID]]=0,0,Q4_2021[[#This Row],[Project Name]]) -> GGF S58 Battersea Arts | C27: =IF(Summary3[[#This Row],[Project ID]]=0,0,Q4_2021[[#This Row],[Project Description (100 words max)]]) -> The project is to establish a new high-spec incubator hub for start-up and early-stage creative businesses within Battersea Arts Centre, a multi-purpose arts and theatre venue located in Clapham Junction. The 163m2 hub will include; an open studio for flexible working with 34 workspaces; a private office suite for 4 companies with 18 desks and flexible partitions to accommodate businesses growth; a flexible workshop with movable partitions for learning, workshops and ideas sharing, with capacity of up to 80 people; a social space and reception area, communal kitchenette and bathroom facilities, secure lockers, and bike parking facilities. Each member will be required to offer two hours of their time and skills per month to other hub members and to participants of complementary initiatives. | D27: =IF(Summary3[[#This Row],[Project ID]]=0,0,Q4_2021[[#This Row],[LEP Name]]) -> London LEP | E27: =IF(Summary3[[#This Row],[Project ID]]=0,0,Q4_2021[[#This Row],[Local Authority area the project is in]]) -> London Borough of Wandsworth | F27: =IF(Summary3[[#This Row],[Project ID]]=0,0,Q4_2021[[#This Row],[Post Code]]) -> SW11 5TN | G27: =IF(Summary3[[#This Row],[Project ID]]=0,0,Q4_2021[[#This Row],[Parliamentary Constituency]]) -> Battersea | H27: =IF(Summary3[[#This Row],[Project ID]]=0,0,Q4_2021[[#This Row],[Primary Project Type]]) -> Regeneration_Public_Realm | I27: =IF(Summary3[[#This Row],[Project ID]]=0,0,Q4_2021[[#This Row],[Primary Project Activity]]) -> Community regeneration projects | J27: =IF(Summary3[[#This Row],[Project ID]]=0,0,Q4_2021[[#This Row],[Secondary Project Type]]) -> Other | K27: =IF(Summary3[[#This Row],[Project ID]]=0,0,Q4_2021[[#This Row],[Secondary Project Activity]]) -> 0 | L27: =IF(Summary3[[#This Row],[Project ID]]=0,0,Q4_2021[[#This Row],[Project Type]]) -> Original | M27: =IF(Summary3[[#This Row],[Project ID]]=0,0,Q4_2021[[#This Row],[Project Status]]) -> Completed – project complete | N27: =IF(Summary3[[#This Row],[Project ID]]=0,0,Q4_2021[[#This Row],[Forecasted Financial Completion Date]]) -> 2020-03-30 | O27: =IF(Summary3[[#This Row],[Project ID]]=0,0,Q4_2021[[#This Row],[Actual Financial Completion]]) -> 2020-03-30 | P27: =IF(Summary3[[#This Row],[Project ID]]=0,0,Q4_2021[[#This Row],[Forecasted Practical Completion Date]]) -> 2020-03-30 | Q27: =IF(Summary3[[#This Row],[Project ID]]=0,0,Q4_2021[[#This Row],[Actual Practical Completion Date]]) -> 2020-03-30 | R27: =IF(Summary3[[#This Row],[Project ID]]=0,0,Q4_2021[[#This Row],[Evaluation Method]]) -> closure form/partner evaluation | S27: =IF(Summary3[[#This Row],[Project ID]]=0,0,Q4_2021[[#This Row],[Total Budget]]) -> 150000 | T27: =IF(Summary3[[#This Row],[Project ID]]=0,0,Q4_2021[[#This Row],[LGF Budget]]) -> 150000 | U27: =IF(Summary3[[#This Row],[Project ID]]=0,0,Q4_2021[[#This Row],[Public Sector Leverage]]) -> 0 | V27: =IF(Summary3[[#This Row],[Project ID]]=0,0,Q4_2021[[#This Row],[Private Sector Leverage]]) -> 0 | W27: =IF(Summary3[[#This Row],[Project ID]]=0,0,Q4_2021[[#This Row],[Third Party Sector Leverage]]) -> 0 | X27: =IF(Summary3[[#This Row],[Project ID]]=0,0,Q4_2021[[#This Row],[LGF Outturn]]) -> 0 | Y27: =IF(Summary3[[#This Row],[Project ID]]=0,0,Q4_2021[[#This Row],[LGF Expenditure (as @ 31Mar21)]]) -> 150000 | Z27: =IF(Summary3[[#This Row],[Project ID]]=0,0,Q4_2021[[#This Row],[Total non-LGF Expenditure (as @ 31Mar21)]]) -> 0 | AA27: 0 | AB27: 0 | AC27: 0 | AD27: 0 | AE27: 0 | AF27: 0 | AG27: 0 | AH27: 0 | AI27: 0 | AJ27: 0 | AK27: 0 | AL27: 0 | AM27: 0 | AN27: 0 | AO27: 0 | AP27: 0 | AQ27: 0 | AR27: 0 | AS27: 0 | AT27: 0
A28: =IFERROR(Q4_2021[[#This Row],[Project ID]],0) -> LGFLON33 | B28: =IF(Summary3[[#This Row],[Project ID]]=0,0,Q4_2021[[#This Row],[Project Name]]) -> GGF S16 Thamesmead Hub | C28: =IF(Summary3[[#This Row],[Project ID]]=0,0,Q4_2021[[#This Row],[Project Description (100 words max)]]) -> By taking a co-design approach to reactivate a derelict social club and a set of under-road arches, Thamesmead Community Enterprise & Learning Hub will provide flexible civic spaces, affordable enterprise space and skills and training for local communities. | D28: =IF(Summary3[[#This Row],[Project ID]]=0,0,Q4_2021[[#This Row],[LEP Name]]) -> London LEP | E28: =IF(Summary3[[#This Row],[Project ID]]=0,0,Q4_2021[[#This Row],[Local Authority area the project is in]]) -> Royal Borough of Greenwich | F28: =IF(Summary3[[#This Row],[Project ID]]=0,0,Q4_2021[[#This Row],[Post Code]]) -> SE28 8BG | G28: =IF(Summary3[[#This Row],[Project ID]]=0,0,Q4_2021[[#This Row],[Parliamentary Constituency]]) -> Erith & Thamesmead | H28: =IF(Summary3[[#This Row],[Project ID]]=0,0,Q4_2021[[#This Row],[Primary Project Type]]) -> Innovation | I28: =IF(Summary3[[#This Row],[Project ID]]=0,0,Q4_2021[[#This Row],[Primary Project Activity]]) -> Other | J28: =IF(Summary3[[#This Row],[Project ID]]=0,0,Q4_2021[[#This Row],[Secondary Project Type]]) -> Other | K28: =IF(Summary3[[#This Row],[Project ID]]=0,0,Q4_2021[[#This Row],[Secondary Project Activity]]) -> 0 | L28: =IF(Summary3[[#This Row],[Project ID]]=0,0,Q4_2021[[#This Row],[Project Type]]) -> Original | M28: =IF(Summary3[[#This Row],[Project ID]]=0,0,Q4_2021[[#This Row],[Project Status]]) -> Completed – project complete | N28: =IF(Summary3[[#This Row],[Project ID]]=0,0,Q4_2021[[#This Row],[Forecasted Financial Completion Date]]) -> 2022-12-30 | O28: =IF(Summary3[[#This Row],[Project ID]]=0,0,Q4_2021[[#This Row],[Actual Financial Completion]]) -> 2022-12-30 | P28: =IF(Summary3[[#This Row],[Project ID]]=0,0,Q4_2021[[#This Row],[Forecasted Practical Completion Date]]) -> 2022-12-30 | Q28: =IF(Summary3[[#This Row],[Project ID]]=0,0,Q4_2021[[#This Row],[Actual Practical Completion Date]]) -> 2022-12-30 | R28: =IF(Summary3[[#This Row],[Project ID]]=0,0,Q4_2021[[#This Row],[Evaluation Method]]) -> closure form/partner evaluation | S28: =IF(Summary3[[#This Row],[Project ID]]=0,0,Q4_2021[[#This Row],[Total Budget]]) -> 1150000 | T28: =IF(Summary3[[#This Row],[Project ID]]=0,0,Q4_2021[[#This Row],[LGF Budget]]) -> 1150000 | U28: =IF(Summary3[[#This Row],[Project ID]]=0,0,Q4_2021[[#This Row],[Public Sector Leverage]]) -> 0 | V28: =IF(Summary3[[#This Row],[Project ID]]=0,0,Q4_2021[[#This Row],[Private Sector Leverage]]) -> 0 | W28: =IF(Summary3[[#This Row],[Project ID]]=0,0,Q4_2021[[#This Row],[Third Party Sector Leverage]]) -> 0 | X28: =IF(Summary3[[#This Row],[Project ID]]=0,0,Q4_2021[[#This Row],[LGF Outturn]]) -> 0 | Y28: =IF(Summary3[[#This Row],[Project ID]]=0,0,Q4_2021[[#This Row],[LGF Expenditure (as @ 31Mar21)]]) -> 386131 | Z28: =IF(Summary3[[#This Row],[Project ID]]=0,0,Q4_2021[[#This Row],[Total non-LGF Expenditure (as @ 31Mar21)]]) -> 0 | AA28: 0 | AB28: 0 | AC28: 0 | AD28: 0 | AE28: 0 | AF28: 0 | AG28: 0 | AH28: 0 | AI28: 0 | AJ28: 0 | AK28: 0 | AL28: 0 | AM28: 0 | AN28: 0 | AO28: 0 | AP28: 0 | AQ28: 0 | AR28: 0 | AS28: 0 | AT28: 0
A29: =IFERROR(Q4_2021[[#This Row],[Project ID]],0) -> LGFLON34 | B29: =IF(Summary3[[#This Row],[Project ID]]=0,0,Q4_2021[[#This Row],[Project Name]]) -> GGF S18 Mountview - | C29: =IF(Summary3[[#This Row],[Project ID]]=0,0,Q4_2021[[#This Row],[Project Description (100 words max)]]) -> A world-leading drama school and public provider of high quality arts, education, skills-building and wellbeing activities, Mountview will soon have a new mixed-use cultural space in Peckham, providing an extensive offering to south London. | D29: =IF(Summary3[[#This Row],[Project ID]]=0,0,Q4_2021[[#This Row],[LEP Name]]) -> London LEP | E29: =IF(Summary3[[#This Row],[Project ID]]=0,0,Q4_2021[[#This Row],[Local Authority area the project is in]]) -> London Borough of Southwark | F29: =IF(Summary3[[#This Row],[Project ID]]=0,0,Q4_2021[[#This Row],[Post Code]]) -> SE15 5JT | G29: =IF(Summary3[[#This Row],[Project ID]]=0,0,Q4_2021[[#This Row],[Parliamentary Constituency]]) -> Peckham | H29: =IF(Summary3[[#This Row],[Project ID]]=0,0,Q4_2021[[#This Row],[Primary Project Type]]) -> Other | I29: =IF(Summary3[[#This Row],[Project ID]]=0,0,Q4_2021[[#This Row],[Primary Project Activity]]) -> 0 | J29: =IF(Summary3[[#This Row],[Project ID]]=0,0,Q4_2021[[#This Row],[Secondary Project Type]]) -> Other | K29: =IF(Summary3[[#This Row],[Project ID]]=0,0,Q4_2021[[#This Row],[Secondary Project Activity]]) -> 0 | L29: =IF(Summary3[[#This Row],[Project ID]]=0,0,Q4_2021[[#This Row],[Project Type]]) -> Original | M29: =IF(Summary3[[#This Row],[Project ID]]=0,0,Q4_2021[[#This Row],[Project Status]]) -> Completed – project complete | N29: =IF(Summary3[[#This Row],[Project ID]]=0,0,Q4_2021[[#This Row],[Forecasted Financial Completion Date]]) -> 2022-12-30 | O29: =IF(Summary3[[#This Row],[Project ID]]=0,0,Q4_2021[[#This Row],[Actual Financial Completion]]) -> 2022-12-30 | P29: =IF(Summary3[[#This Row],[Project ID]]=0,0,Q4_2021[[#This Row],[Forecasted Practical Completion Date]]) -> 2022-12-30 | Q29: =IF(Summary3[[#This Row],[Project ID]]=0,0,Q4_2021[[#This Row],[Actual Practical Completion Date]]) -> 2022-12-30 | R29: =IF(Summary3[[#This Row],[Project ID]]=0,0,Q4_2021[[#This Row],[Evaluation Method]]) -> closure form/partner evaluation | S29: =IF(Summary3[[#This Row],[Project ID]]=0,0,Q4_2021[[#This Row],[Total Budget]]) -> 843543 | T29: =IF(Summary3[[#This Row],[Project ID]]=0,0,Q4_2021[[#This Row],[LGF Budget]]) -> 843543 | U29: =IF(Summary3[[#This Row],[Project ID]]=0,0,Q4_2021[[#This Row],[Public Sector Leverage]]) -> 0 | V29: =IF(Summary3[[#This Row],[Project ID]]=0,0,Q4_2021[[#This Row],[Private Sector Leverage]]) -> 0 | W29: =IF(Summary3[[#This Row],[Project ID]]=0,0,Q4_2021[[#This Row],[Third Party Sector Leverage]]) -> 0 | X29: =IF(Summary3[[#This Row],[Project ID]]=0,0,Q4_2021[[#This Row],[LGF Outturn]]) -> 0 | Y29: =IF(Summary3[[#This Row],[Project ID]]=0,0,Q4_2021[[#This Row],[LGF Expenditure (as @ 31Mar21)]]) -> 843543 | Z29: =IF(Summary3[[#This Row],[Project ID]]=0,0,Q4_2021[[#This Row],[Total non-LGF Expenditure (as @ 31Mar21)]]) -> 0 | AA29: 0 | AB29: 0 | AC29: 0 | AD29: 0 | AE29: 0 | AF29: 0 | AG29: 0 | AH29: 0 | AI29: 0 | AJ29: 0 | AK29: 0 | AL29: 0 | AM29: 0 | AN29: 0 | AO29: 0 | AP29: 0 | AQ29: 0 | AR29: 0 | AS29: 0 | AT29: 0
A30: =IFERROR(Q4_2021[[#This Row],[Project ID]],0) -> LGFLON35 | B30: =IF(Summary3[[#This Row],[Project ID]]=0,0,Q4_2021[[#This Row],[Project Name]]) -> GGF NW56 Scrubs Lane | C30: =IF(Summary3[[#This Row],[Project ID]]=0,0,Q4_2021[[#This Row],[Project Description (100 words max)]]) -> A range of activation projects along Scrubs Lane and at Willesden Junction will improve public realm, wayfinding and legibility, promoting local businesses and creativity, improving bio-diversity and amplifying local heritage. | D30: =IF(Summary3[[#This Row],[Project ID]]=0,0,Q4_2021[[#This Row],[LEP Name]]) -> London LEP | E30: =IF(Summary3[[#This Row],[Project ID]]=0,0,Q4_2021[[#This Row],[Local Authority area the project is in]]) -> London Borough of Hammersmith & Fulham | F30: =IF(Summary3[[#This Row],[Project ID]]=0,0,Q4_2021[[#This Row],[Post Code]]) -> NW10 6QU | G30: =IF(Summary3[[#This Row],[Project ID]]=0,0,Q4_2021[[#This Row],[Parliamentary Constituency]]) -> Ealing Central & Acton | H30: =IF(Summary3[[#This Row],[Project ID]]=0,0,Q4_2021[[#This Row],[Primary Project Type]]) -> Regeneration_Public_Realm | I30: =IF(Summary3[[#This Row],[Project ID]]=0,0,Q4_2021[[#This Row],[Primary Project Activity]]) -> Community regeneration projects | J30: =IF(Summary3[[#This Row],[Project ID]]=0,0,Q4_2021[[#This Row],[Secondary Project Type]]) -> Other | K30: =IF(Summary3[[#This Row],[Project ID]]=0,0,Q4_2021[[#This Row],[Secondary Project Activity]]) -> 0 | L30: =IF(Summary3[[#This Row],[Project ID]]=0,0,Q4_2021[[#This Row],[Project Type]]) -> Original | M30: =IF(Summary3[[#This Row],[Project ID]]=0,0,Q4_2021[[#This Row],[Project Status]]) -> Financially complete | N30: =IF(Summary3[[#This Row],[Project ID]]=0,0,Q4_2021[[#This Row],[Forecasted Financial Completion Date]]) -> 2021-03-30 | O30: =IF(Summary3[[#This Row],[Project ID]]=0,0,Q4_2021[[#This Row],[Actual Financial Completion]]) -> 2021-03-30 | P30: =IF(Summary3[[#This Row],[Project ID]]=0,0,Q4_2021[[#This Row],[Forecasted Practical Completion Date]]) -> 2025-06-30 | Q30: =IF(Summary3[[#This Row],[Project ID]]=0,0,Q4_2021[[#This Row],[Actual Practical Completion Date]]) -> 00:00:00 | R30: =IF(Summary3[[#This Row],[Project ID]]=0,0,Q4_2021[[#This Row],[Evaluation Method]]) -> closure form/partner evaluation | S30: =IF(Summary3[[#This Row],[Project ID]]=0,0,Q4_2021[[#This Row],[Total Budget]]) -> 1311790 | T30: =IF(Summary3[[#This Row],[Project ID]]=0,0,Q4_2021[[#This Row],[LGF Budget]]) -> 750000 | U30: =IF(Summary3[[#This Row],[Project ID]]=0,0,Q4_2021[[#This Row],[Public Sector Leverage]]) -> 0 | V30: =IF(Summary3[[#This Row],[Project ID]]=0,0,Q4_2021[[#This Row],[Private Sector Leverage]]) -> 0 | W30: =IF(Summary3[[#This Row],[Project ID]]=0,0,Q4_2021[[#This Row],[Third Party Sector Leverage]]) -> 561790 | X30: =IF(Summary3[[#This Row],[Project ID]]=0,0,Q4_2021[[#This Row],[LGF Outturn]]) -> 0 | Y30: =IF(Summary3[[#This Row],[Project ID]]=0,0,Q4_2021[[#This Row],[LGF Expenditure (as @ 31Mar21)]]) -> 750000 | Z30: =IF(Summary3[[#This Row],[Project ID]]=0,0,Q4_2021[[#This Row],[Total non-LGF Expenditure (as @ 31Mar21)]]) -> 0 | AA30: 0 | AB30: 0 | AC30: 0 | AD30: 0 | AE30: 0 | AF30: 0 | AG30: 0 | AH30: 0 | AI30: 0 | AJ30: 0 | AK30: 0 | AL30: 0 | AM30: 0 | AN30: 0 | AO30: 0 | AP30: 0 | AQ30: 0 | AR30: 0 | AS30: 0 | AT30: 0
A31: =IFERROR(Q4_2021[[#This Row],[Project ID]],0) -> LGFLON36 | B31: =IF(Summary3[[#This Row],[Project ID]]=0,0,Q4_2021[[#This Row],[Project Name]]) -> GGF NW61 Somerset House | C31: =IF(Summary3[[#This Row],[Project ID]]=0,0,Q4_2021[[#This Row],[Project Description (100 words max)]]) -> For the provision of affordable space, bursaries for targeted groups, and opportunity to connect creative communities with digital expertise. It will target micro-creative businesses, recent graduates developing ideas for new creative-led business and social enterprises. | D31: =IF(Summary3[[#This Row],[Project ID]]=0,0,Q4_2021[[#This Row],[LEP Name]]) -> London LEP | E31: =IF(Summary3[[#This Row],[Project ID]]=0,0,Q4_2021[[#This Row],[Local Authority area the project is in]]) -> City of Westminster | F31: =IF(Summary3[[#This Row],[Project ID]]=0,0,Q4_2021[[#This Row],[Post Code]]) -> WC2R 1LA | G31: =IF(Summary3[[#This Row],[Project ID]]=0,0,Q4_2021[[#This Row],[Parliamentary Constituency]]) -> Cities of London & Westminster | H31: =IF(Summary3[[#This Row],[Project ID]]=0,0,Q4_2021[[#This Row],[Primary Project Type]]) -> Regeneration_Public_Realm | I31: =IF(Summary3[[#This Row],[Project ID]]=0,0,Q4_2021[[#This Row],[Primary Project Activity]]) -> Other | J31: =IF(Summary3[[#This Row],[Project ID]]=0,0,Q4_2021[[#This Row],[Secondary Project Type]]) -> Other | K31: =IF(Summary3[[#This Row],[Project ID]]=0,0,Q4_2021[[#This Row],[Secondary Project Activity]]) -> 0 | L31: =IF(Summary3[[#This Row],[Project ID]]=0,0,Q4_2021[[#This Row],[Project Type]]) -> Original | M31: =IF(Summary3[[#This Row],[Project ID]]=0,0,Q4_2021[[#This Row],[Project Status]]) -> Completed – project complete | N31: =IF(Summary3[[#This Row],[Project ID]]=0,0,Q4_2021[[#This Row],[Forecasted Financial Completion Date]]) -> 2022-09-30 | O31: =IF(Summary3[[#This Row],[Project ID]]=0,0,Q4_2021[[#This Row],[Actual Financial Completion]]) -> 2022-09-30 | P31: =IF(Summary3[[#This Row],[Project ID]]=0,0,Q4_2021[[#This Row],[Forecasted Practical Completion Date]]) -> 2022-09-30 | Q31: =IF(Summary3[[#This Row],[Project ID]]=0,0,Q4_2021[[#This Row],[Actual Practical Completion Date]]) -> 2022-09-30 | R31: =IF(Summary3[[#This Row],[Project ID]]=0,0,Q4_2021[[#This Row],[Evaluation Method]]) -> closure form/partner evaluation | S31: =IF(Summary3[[#This Row],[Project ID]]=0,0,Q4_2021[[#This Row],[Total Budget]]) -> 3384472 | T31: =IF(Summary3[[#This Row],[Project ID]]=0,0,Q4_2021[[#This Row],[LGF Budget]]) -> 501000 | U31: =IF(Summary3[[#This Row],[Project ID]]=0,0,Q4_2021[[#This Row],[Public Sector Leverage]]) -> 0 | V31: =IF(Summary3[[#This Row],[Project ID]]=0,0,Q4_2021[[#This Row],[Private Sector Leverage]]) -> 0 | W31: =IF(Summary3[[#This Row],[Project ID]]=0,0,Q4_2021[[#This Row],[Third Party Sector Leverage]]) -> 2883472 | X31: =IF(Summary3[[#This Row],[Project ID]]=0,0,Q4_2021[[#This Row],[LGF Outturn]]) -> 0 | Y31: =IF(Summary3[[#This Row],[Project ID]]=0,0,Q4_2021[[#This Row],[LGF Expenditure (as @ 31Mar21)]]) -> 501000 | Z31: =IF(Summary3[[#This Row],[Project ID]]=0,0,Q4_2021[[#This Row],[Total non-LGF Expenditure (as @ 31Mar21)]]) -> 0 | AA31: 0 | AB31: 0 | AC31: 0 | AD31: 0 | AE31: 0 | AF31: 0 | AG31: 0 | AH31: 0 | AI31: 0 | AJ31: 0 | AK31: 0 | AL31: 0 | AM31: 0 | AN31: 0 | AO31: 0 | AP31: 0 | AQ31: 0 | AR31: 0 | AS31: 0 | AT31: 0
A32: =IFERROR(Q4_2021[[#This Row],[Project ID]],0) -> LGFLON37 | B32: =IF(Summary3[[#This Row],[Project ID]]=0,0,Q4_2021[[#This Row],[Project Name]]) -> GGF S51 Plumstead HighSt | C32: =IF(Summary3[[#This Row],[Project ID]]=0,0,Q4_2021[[#This Row],[Project Description (100 words max)]]) -> A project to strengthen Plumstead High Street through shop front and public realm improvements, the development of site briefs and the provision of new affordable workspace in an historic power station building. | D32: =IF(Summary3[[#This Row],[Project ID]]=0,0,Q4_2021[[#This Row],[LEP Name]]) -> London LEP | E32: =IF(Summary3[[#This Row],[Project ID]]=0,0,Q4_2021[[#This Row],[Local Authority area the project is in]]) -> Royal Borough of Greenwich | F32: =IF(Summary3[[#This Row],[Project ID]]=0,0,Q4_2021[[#This Row],[Post Code]]) -> SE18 1SJ | G32: =IF(Summary3[[#This Row],[Project ID]]=0,0,Q4_2021[[#This Row],[Parliamentary Constituency]]) -> Erith & Thamesmead | H32: =IF(Summary3[[#This Row],[Project ID]]=0,0,Q4_2021[[#This Row],[Primary Project Type]]) -> Regeneration_Public_Realm | I32: =IF(Summary3[[#This Row],[Project ID]]=0,0,Q4_2021[[#This Row],[Primary Project Activity]]) -> Public realm investment supporting wider regeneration projects | J32: =IF(Summary3[[#This Row],[Project ID]]=0,0,Q4_2021[[#This Row],[Secondary Project Type]]) -> Other | K32: =IF(Summary3[[#This Row],[Project ID]]=0,0,Q4_2021[[#This Row],[Secondary Project Activity]]) -> 0 | L32: =IF(Summary3[[#This Row],[Project ID]]=0,0,Q4_2021[[#This Row],[Project Type]]) -> Original | M32: =IF(Summary3[[#This Row],[Project ID]]=0,0,Q4_2021[[#This Row],[Project Status]]) -> On - going delivery | N32: =IF(Summary3[[#This Row],[Project ID]]=0,0,Q4_2021[[#This Row],[Forecasted Financial Completion Date]]) -> 2025-03-30 | O32: =IF(Summary3[[#This Row],[Project ID]]=0,0,Q4_2021[[#This Row],[Actual Financial Completion]]) -> 00:00:00 | P32: =IF(Summary3[[#This Row],[Project ID]]=0,0,Q4_2021[[#This Row],[Forecasted Practical Completion Date]]) -> 2025-03-30 | Q32: =IF(Summary3[[#This Row],[Project ID]]=0,0,Q4_2021[[#This Row],[Actual Practical Completion Date]]) -> 00:00:00 | R32: =IF(Summary3[[#This Row],[Project ID]]=0,0,Q4_2021[[#This Row],[Evaluation Method]]) -> closure form/partner evaluation | S32: =IF(Summary3[[#This Row],[Project ID]]=0,0,Q4_2021[[#This Row],[Total Budget]]) -> 2723136 | T32: =IF(Summary3[[#This Row],[Project ID]]=0,0,Q4_2021[[#This Row],[LGF Budget]]) -> 2510000 | U32: =IF(Summary3[[#This Row],[Project ID]]=0,0,Q4_2021[[#This Row],[Public Sector Leverage]]) -> 213136 | V32: =IF(Summary3[[#This Row],[Project ID]]=0,0,Q4_2021[[#This Row],[Private Sector Leverage]]) -> 0 | W32: =IF(Summary3[[#This Row],[Project ID]]=0,0,Q4_2021[[#This Row],[Third Party Sector Leverage]]) -> 0 | X32: =IF(Summary3[[#This Row],[Project ID]]=0,0,Q4_2021[[#This Row],[LGF Outturn]]) -> 0 | Y32: =IF(Summary3[[#This Row],[Project ID]]=0,0,Q4_2021[[#This Row],[LGF Expenditure (as @ 31Mar21)]]) -> 0 | Z32: =IF(Summary3[[#This Row],[Project ID]]=0,0,Q4_2021[[#This Row],[Total non-LGF Expenditure (as @ 31Mar21)]]) -> 0 | AA32: 0 | AB32: 0 | AC32: 0 | AD32: 0 | AE32: 0 | AF32: 0 | AG32: 0 | AH32: 0 | AI32: 0 | AJ32: 0 | AK32: 0 | AL32: 0 | AM32: 0 | AN32: 0 | AO32: 0 | AP32: 0 | AQ32: 0 | AR32: 0 | AS32: 0 | AT32: 0
A33: =IFERROR(Q4_2021[[#This Row],[Project ID]],0) -> LGFLON38 | B33: =IF(Summary3[[#This Row],[Project ID]]=0,0,Q4_2021[[#This Row],[Project Name]]) -> GGF S72 Mission Kitchen | C33: =IF(Summary3[[#This Row],[Project ID]]=0,0,Q4_2021[[#This Row],[Project Description (100 words max)]]) -> New open workspace, offering affordable kitchen space to food start-ups and SMEs and professional training to Londoners from all walks of life, will transform New Covent Garden Market into a hub for food enterprise and make it a public destination. | D33: =IF(Summary3[[#This Row],[Project ID]]=0,0,Q4_2021[[#This Row],[LEP Name]]) -> London LEP | E33: =IF(Summary3[[#This Row],[Project ID]]=0,0,Q4_2021[[#This Row],[Local Authority area the project is in]]) -> London Borough of Lambeth | F33: =IF(Summary3[[#This Row],[Project ID]]=0,0,Q4_2021[[#This Row],[Post Code]]) -> SW8 5NX | G33: =IF(Summary3[[#This Row],[Project ID]]=0,0,Q4_2021[[#This Row],[Parliamentary Constituency]]) -> Vauxhall & Camberwell Green | H33: =IF(Summary3[[#This Row],[Project ID]]=0,0,Q4_2021[[#This Row],[Primary Project Type]]) -> Employment | I33: =IF(Summary3[[#This Row],[Project ID]]=0,0,Q4_2021[[#This Row],[Primary Project Activity]]) -> Construction of new commercial space | J33: =IF(Summary3[[#This Row],[Project ID]]=0,0,Q4_2021[[#This Row],[Secondary Project Type]]) -> Other | K33: =IF(Summary3[[#This Row],[Project ID]]=0,0,Q4_2021[[#This Row],[Secondary Project Activity]]) -> 0 | L33: =IF(Summary3[[#This Row],[Project ID]]=0,0,Q4_2021[[#This Row],[Project Type]]) -> Original | M33: =IF(Summary3[[#This Row],[Project ID]]=0,0,Q4_2021[[#This Row],[Project Status]]) -> Completed – project complete | N33: =IF(Summary3[[#This Row],[Project ID]]=0,0,Q4_2021[[#This Row],[Forecasted Financial Completion Date]]) -> 2021-11-30 | O33: =IF(Summary3[[#This Row],[Project ID]]=0,0,Q4_2021[[#This Row],[Actual Financial Completion]]) -> 2021-11-30 | P33: =IF(Summary3[[#This Row],[Project ID]]=0,0,Q4_2021[[#This Row],[Forecasted Practical Completion Date]]) -> 2021-11-30 | Q33: =IF(Summary3[[#This Row],[Project ID]]=0,0,Q4_2021[[#This Row],[Actual Practical Completion Date]]) -> 2021-11-30 | R33: =IF(Summary3[[#This Row],[Project ID]]=0,0,Q4_2021[[#This Row],[Evaluation Method]]) -> closure form/partner evaluation | S33: =IF(Summary3[[#This Row],[Project ID]]=0,0,Q4_2021[[#This Row],[Total Budget]]) -> 2997505 | T33: =IF(Summary3[[#This Row],[Project ID]]=0,0,Q4_2021[[#This Row],[LGF Budget]]) -> 2997505 | U33: =IF(Summary3[[#This Row],[Project ID]]=0,0,Q4_2021[[#This Row],[Public Sector Leverage]]) -> 0 | V33: =IF(Summary3[[#This Row],[Project ID]]=0,0,Q4_2021[[#This Row],[Private Sector Leverage]]) -> 0 | W33: =IF(Summary3[[#This Row],[Project ID]]=0,0,Q4_2021[[#This Row],[Third Party Sector Leverage]]) -> 0 | X33: =IF(Summary3[[#This Row],[Project ID]]=0,0,Q4_2021[[#This Row],[LGF Outturn]]) -> 0 | Y33: =IF(Summary3[[#This Row],[Project ID]]=0,0,Q4_2021[[#This Row],[LGF Expenditure (as @ 31Mar21)]]) -> 2997505 | Z33: =IF(Summary3[[#This Row],[Project ID]]=0,0,Q4_2021[[#This Row],[Total non-LGF Expenditure (as @ 31Mar21)]]) -> 0 | AA33: 0 | AB33: 0 | AC33: 0 | AD33: 0 | AE33: 0 | AF33: 0 | AG33: 0 | AH33: 0 | AI33: 0 | AJ33: 0 | AK33: 0 | AL33: 0 | AM33: 0 | AN33: 0 | AO33: 0 | AP33: 0 | AQ33: 0 | AR33: 0 | AS33: 0 | AT33: 0
A34: =IFERROR(Q4_2021[[#This Row],[Project ID]],0) -> LGFLON39 | B34: =IF(Summary3[[#This Row],[Project ID]]=0,0,Q4_2021[[#This Row],[Project Name]]) -> GGF NE32 The Spark | C34: =IF(Summary3[[#This Row],[Project ID]]=0,0,Q4_2021[[#This Row],[Project Description (100 words max)]]) -> Investment in interlinked projects in Redbridge town centre will include the refurbishment of the listed town hall as artist workspace; conversion of a car park into a covered market; the refurbishment of a warehouse; and fit out of a space within a Salvation Army scheme. | D34: =IF(Summary3[[#This Row],[Project ID]]=0,0,Q4_2021[[#This Row],[LEP Name]]) -> London LEP | E34: =IF(Summary3[[#This Row],[Project ID]]=0,0,Q4_2021[[#This Row],[Local Authority area the project is in]]) -> London Borough of Redbridge | F34: =IF(Summary3[[#This Row],[Project ID]]=0,0,Q4_2021[[#This Row],[Post Code]]) -> IG1 1DD | G34: =IF(Summary3[[#This Row],[Project ID]]=0,0,Q4_2021[[#This Row],[Parliamentary Constituency]]) -> Ilford south | H34: =IF(Summary3[[#This Row],[Project ID]]=0,0,Q4_2021[[#This Row],[Primary Project Type]]) -> Innovation | I34: =IF(Summary3[[#This Row],[Project ID]]=0,0,Q4_2021[[#This Row],[Primary Project Activity]]) -> Other | J34: =IF(Summary3[[#This Row],[Project ID]]=0,0,Q4_2021[[#This Row],[Secondary Project Type]]) -> Other | K34: =IF(Summary3[[#This Row],[Project ID]]=0,0,Q4_2021[[#This Row],[Secondary Project Activity]]) -> 0 | L34: =IF(Summary3[[#This Row],[Project ID]]=0,0,Q4_2021[[#This Row],[Project Type]]) -> Original | M34: =IF(Summary3[[#This Row],[Project ID]]=0,0,Q4_2021[[#This Row],[Project Status]]) -> Financially complete | N34: =IF(Summary3[[#This Row],[Project ID]]=0,0,Q4_2021[[#This Row],[Forecasted Financial Completion Date]]) -> 2024-03-30 | O34: =IF(Summary3[[#This Row],[Project ID]]=0,0,Q4_2021[[#This Row],[Actual Financial Completion]]) -> 2024-03-30 | P34: =IF(Summary3[[#This Row],[Project ID]]=0,0,Q4_2021[[#This Row],[Forecasted Practical Completion Date]]) -> 2025-03-30 | Q34: =IF(Summary3[[#This Row],[Project ID]]=0,0,Q4_2021[[#This Row],[Actual Practical Completion Date]]) -> 00:00:00 | R34: =IF(Summary3[[#This Row],[Project ID]]=0,0,Q4_2021[[#This Row],[Evaluation Method]]) -> closure form/partner evaluation | S34: =IF(Summary3[[#This Row],[Project ID]]=0,0,Q4_2021[[#This Row],[Total Budget]]) -> 4833888 | T34: =IF(Summary3[[#This Row],[Project ID]]=0,0,Q4_2021[[#This Row],[LGF Budget]]) -> 1800000 | U34: =IF(Summary3[[#This Row],[Project ID]]=0,0,Q4_2021[[#This Row],[Public Sector Leverage]]) -> 0 | V34: =IF(Summary3[[#This Row],[Project ID]]=0,0,Q4_2021[[#This Row],[Private Sector Leverage]]) -> 0 | W34: =IF(Summary3[[#This Row],[Project ID]]=0,0,Q4_2021[[#This Row],[Third Party Sector Leverage]]) -> 3033888 | X34: =IF(Summary3[[#This Row],[Project ID]]=0,0,Q4_2021[[#This Row],[LGF Outturn]]) -> 0 | Y34: =IF(Summary3[[#This Row],[Project ID]]=0,0,Q4_2021[[#This Row],[LGF Expenditure (as @ 31Mar21)]]) -> 0 | Z34: =IF(Summary3[[#This Row],[Project ID]]=0,0,Q4_2021[[#This Row],[Total non-LGF Expenditure (as @ 31Mar21)]]) -> 0 | AA34: 0 | AB34: 0 | AC34: 0 | AD34: 0 | AE34: 0 | AF34: 0 | AG34: 0 | AH34: 0 | AI34: 0 | AJ34: 0 | AK34: 0 | AL34: 0 | AM34: 0 | AN34: 0 | AO34: 0 | AP34: 0 | AQ34: 0 | AR34: 0 | AS34: 0 | AT34: 0
A35: =IFERROR(Q4_2021[[#This Row],[Project ID]],0) -> LGFLON40 | B35: =IF(Summary3[[#This Row],[Project ID]]=0,0,Q4_2021[[#This Row],[Project Name]]) -> GGF NE43 Fashion Academy | C35: =IF(Summary3[[#This Row],[Project ID]]=0,0,Q4_2021[[#This Row],[Project Description (100 words max)]]) -> London Borough of Haringey, in partnership with Fashion Enter, will establish a Tailoring Academy for London to provide essential skills related to the fashion industry, which are currently in short supply. | D35: =IF(Summary3[[#This Row],[Project ID]]=0,0,Q4_2021[[#This Row],[LEP Name]]) -> London LEP | E35: =IF(Summary3[[#This Row],[Project ID]]=0,0,Q4_2021[[#This Row],[Local Authority area the project is in]]) -> London Borough of Haringey | F35: =IF(Summary3[[#This Row],[Project ID]]=0,0,Q4_2021[[#This Row],[Post Code]]) -> N4 1LZ | G35: =IF(Summary3[[#This Row],[Project ID]]=0,0,Q4_2021[[#This Row],[Parliamentary Constituency]]) -> Tottenham | H35: =IF(Summary3[[#This Row],[Project ID]]=0,0,Q4_2021[[#This Row],[Primary Project Type]]) -> Other | I35: =IF(Summary3[[#This Row],[Project ID]]=0,0,Q4_2021[[#This Row],[Primary Project Activity]]) -> 0 | J35: =IF(Summary3[[#This Row],[Project ID]]=0,0,Q4_2021[[#This Row],[Secondary Project Type]]) -> Other | K35: =IF(Summary3[[#This Row],[Project ID]]=0,0,Q4_2021[[#This Row],[Secondary Project Activity]]) -> 0 | L35: =IF(Summary3[[#This Row],[Project ID]]=0,0,Q4_2021[[#This Row],[Project Type]]) -> Original | M35: =IF(Summary3[[#This Row],[Project ID]]=0,0,Q4_2021[[#This Row],[Project Status]]) -> Completed – project complete | N35: =IF(Summary3[[#This Row],[Project ID]]=0,0,Q4_2021[[#This Row],[Forecasted Financial Completion Date]]) -> 2019-03-30 | O35: =IF(Summary3[[#This Row],[Project ID]]=0,0,Q4_2021[[#This Row],[Actual Financial Completion]]) -> 2019-03-30 | P35: =IF(Summary3[[#This Row],[Project ID]]=0,0,Q4_2021[[#This Row],[Forecasted Practical Completion Date]]) -> 2019-03-30 | Q35: =IF(Summary3[[#This Row],[Project ID]]=0,0,Q4_2021[[#This Row],[Actual Practical Completion Date]]) -> 2019-03-30 | R35: =IF(Summary3[[#This Row],[Project ID]]=0,0,Q4_2021[[#This Row],[Evaluation Method]]) -> closure form/partner evaluation | S35: =IF(Summary3[[#This Row],[Project ID]]=0,0,Q4_2021[[#This Row],[Total Budget]]) -> 430000 | T35: =IF(Summary3[[#This Row],[Project ID]]=0,0,Q4_2021[[#This Row],[LGF Budget]]) -> 430000 | U35: =IF(Summary3[[#This Row],[Project ID]]=0,0,Q4_2021[[#This Row],[Public Sector Leverage]]) -> 0 | V35: =IF(Summary3[[#This Row],[Project ID]]=0,0,Q4_2021[[#This Row],[Private Sector Leverage]]) -> 0 | W35: =IF(Summary3[[#This Row],[Project ID]]=0,0,Q4_2021[[#This Row],[Third Party Sector Leverage]]) -> 0 | X35: =IF(Summary3[[#This Row],[Project ID]]=0,0,Q4_2021[[#This Row],[LGF Outturn]]) -> 0 | Y35: =IF(Summary3[[#This Row],[Project ID]]=0,0,Q4_2021[[#This Row],[LGF Expenditure (as @ 31Mar21)]]) -> 430000 | Z35: =IF(Summary3[[#This Row],[Project ID]]=0,0,Q4_2021[[#This Row],[Total non-LGF Expenditure (as @ 31Mar21)]]) -> 0 | AA35: 0 | AB35: 0 | AC35: 0 | AD35: 0 | AE35: 0 | AF35: 0 | AG35: 0 | AH35: 0 | AI35: 0 | AJ35: 0 | AK35: 0 | AL35: 0 | AM35: 0 | AN35: 0 | AO35: 0 | AP35: 0 | AQ35: 0 | AR35: 0 | AS35: 0 | AT35: 0
A36: =IFERROR(Q4_2021[[#This Row],[Project ID]],0) -> LGFLON41 | B36: =IF(Summary3[[#This Row],[Project ID]]=0,0,Q4_2021[[#This Row],[Project Name]]) -> GGF NE50 Bridge Library | C36: =IF(Summary3[[#This Row],[Project ID]]=0,0,Q4_2021[[#This Row],[Project Description (100 words max)]]) -> The construction of a conservatory café and exhibition area, a children’s play area and a series of flexible indoor and outdoor spaces which can be adapted for a range of community activities will transform the Grade II-listed library. | D36: =IF(Summary3[[#This Row],[Project ID]]=0,0,Q4_2021[[#This Row],[LEP Name]]) -> London LEP | E36: =IF(Summary3[[#This Row],[Project ID]]=0,0,Q4_2021[[#This Row],[Local Authority area the project is in]]) -> London Borough of Waltham Forest | F36: =IF(Summary3[[#This Row],[Project ID]]=0,0,Q4_2021[[#This Row],[Post Code]]) -> E10 7HU | G36: =IF(Summary3[[#This Row],[Project ID]]=0,0,Q4_2021[[#This Row],[Parliamentary Constituency]]) -> Walthamstow | H36: =IF(Summary3[[#This Row],[Project ID]]=0,0,Q4_2021[[#This Row],[Primary Project Type]]) -> Innovation | I36: =IF(Summary3[[#This Row],[Project ID]]=0,0,Q4_2021[[#This Row],[Primary Project Activity]]) -> Other | J36: =IF(Summary3[[#This Row],[Project ID]]=0,0,Q4_2021[[#This Row],[Secondary Project Type]]) -> Other | K36: =IF(Summary3[[#This Row],[Project ID]]=0,0,Q4_2021[[#This Row],[Secondary Project Activity]]) -> 0 | L36: =IF(Summary3[[#This Row],[Project ID]]=0,0,Q4_2021[[#This Row],[Project Type]]) -> Original | M36: =IF(Summary3[[#This Row],[Project ID]]=0,0,Q4_2021[[#This Row],[Project Status]]) -> Financially complete | N36: =IF(Summary3[[#This Row],[Project ID]]=0,0,Q4_2021[[#This Row],[Forecasted Financial Completion Date]]) -> 2023-03-30 | O36: =IF(Summary3[[#This Row],[Project ID]]=0,0,Q4_2021[[#This Row],[Actual Financial Completion]]) -> 2023-03-30 | P36: =IF(Summary3[[#This Row],[Project ID]]=0,0,Q4_2021[[#This Row],[Forecasted Practical Completion Date]]) -> 2024-10-20 | Q36: =IF(Summary3[[#This Row],[Project ID]]=0,0,Q4_2021[[#This Row],[Actual Practical Completion Date]]) -> 00:00:00 | R36: =IF(Summary3[[#This Row],[Project ID]]=0,0,Q4_2021[[#This Row],[Evaluation Method]]) -> closure form/partner evaluation | S36: =IF(Summary3[[#This Row],[Project ID]]=0,0,Q4_2021[[#This Row],[Total Budget]]) -> 410300 | T36: =IF(Summary3[[#This Row],[Project ID]]=0,0,Q4_2021[[#This Row],[LGF Budget]]) -> 410300 | U36: =IF(Summary3[[#This Row],[Project ID]]=0,0,Q4_2021[[#This Row],[Public Sector Leverage]]) -> 0 | V36: =IF(Summary3[[#This Row],[Project ID]]=0,0,Q4_2021[[#This Row],[Private Sector Leverage]]) -> 0 | W36: =IF(Summary3[[#This Row],[Project ID]]=0,0,Q4_2021[[#This Row],[Third Party Sector Leverage]]) -> 0 | X36: =IF(Summary3[[#This Row],[Project ID]]=0,0,Q4_2021[[#This Row],[LGF Outturn]]) -> 0 | Y36: =IF(Summary3[[#This Row],[Project ID]]=0,0,Q4_2021[[#This Row],[LGF Expenditure (as @ 31Mar21)]]) -> 410300 | Z36: =IF(Summary3[[#This Row],[Project ID]]=0,0,Q4_2021[[#This Row],[Total non-LGF Expenditure (as @ 31Mar21)]]) -> 0 | AA36: 0 | AB36: 0 | AC36: 0 | AD36: 0 | AE36: 0 | AF36: 0 | AG36: 0 | AH36: 0 | AI36: 0 | AJ36: 0 | AK36: 0 | AL36: 0 | AM36: 0 | AN36: 0 | AO36: 0 | AP36: 0 | AQ36: 0 | AR36: 0 | AS36: 0 | AT36: 0
A37: =IFERROR(Q4_2021[[#This Row],[Project ID]],0) -> LGFLON42 | B37: =IF(Summary3[[#This Row],[Project ID]]=0,0,Q4_2021[[#This Row],[Project Name]]) -> GGF NW63 VIY | C37: =IF(Summary3[[#This Row],[Project ID]]=0,0,Q4_2021[[#This Row],[Project Description (100 words max)]]) -> Working with 35 grassroots community arts, cultural and music spaces which are within areas of deprivation, VIY will support community volunteers and skilled tradesmen to carry out improvement works. | D37: =IF(Summary3[[#This Row],[Project ID]]=0,0,Q4_2021[[#This Row],[LEP Name]]) -> London LEP | E37: =IF(Summary3[[#This Row],[Project ID]]=0,0,Q4_2021[[#This Row],[Local Authority area the project is in]]) -> London Borough of Camden | F37: =IF(Summary3[[#This Row],[Project ID]]=0,0,Q4_2021[[#This Row],[Post Code]]) -> EC1N 8DX | G37: =IF(Summary3[[#This Row],[Project ID]]=0,0,Q4_2021[[#This Row],[Parliamentary Constituency]]) -> Holborn and St Pancras | H37: =IF(Summary3[[#This Row],[Project ID]]=0,0,Q4_2021[[#This Row],[Primary Project Type]]) -> Employment | I37: =IF(Summary3[[#This Row],[Project ID]]=0,0,Q4_2021[[#This Row],[Primary Project Activity]]) -> Other | J37: =IF(Summary3[[#This Row],[Project ID]]=0,0,Q4_2021[[#This Row],[Secondary Project Type]]) -> Other | K37: =IF(Summary3[[#This Row],[Project ID]]=0,0,Q4_2021[[#This Row],[Secondary Project Activity]]) -> 0 | L37: =IF(Summary3[[#This Row],[Project ID]]=0,0,Q4_2021[[#This Row],[Project Type]]) -> Original | M37: =IF(Summary3[[#This Row],[Project ID]]=0,0,Q4_2021[[#This Row],[Project Status]]) -> Completed – project complete | N37: =IF(Summary3[[#This Row],[Project ID]]=0,0,Q4_2021[[#This Row],[Forecasted Financial Completion Date]]) -> 2021-03-30 | O37: =IF(Summary3[[#This Row],[Project ID]]=0,0,Q4_2021[[#This Row],[Actual Financial Completion]]) -> 2021-03-30 | P37: =IF(Summary3[[#This Row],[Project ID]]=0,0,Q4_2021[[#This Row],[Forecasted Practical Completion Date]]) -> 2021-03-30 | Q37: =IF(Summary3[[#This Row],[Project ID]]=0,0,Q4_2021[[#This Row],[Actual Practical Completion Date]]) -> 2021-03-30 | R37: =IF(Summary3[[#This Row],[Project ID]]=0,0,Q4_2021[[#This Row],[Evaluation Method]]) -> closure form/partner evaluation | S37: =IF(Summary3[[#This Row],[Project ID]]=0,0,Q4_2021[[#This Row],[Total Budget]]) -> 420000 | T37: =IF(Summary3[[#This Row],[Project ID]]=0,0,Q4_2021[[#This Row],[LGF Budget]]) -> 200000 | U37: =IF(Summary3[[#This Row],[Project ID]]=0,0,Q4_2021[[#This Row],[Public Sector Leverage]]) -> 220000 | V37: =IF(Summary3[[#This Row],[Project ID]]=0,0,Q4_2021[[#This Row],[Private Sector Leverage]]) -> 0 | W37: =IF(Summary3[[#This Row],[Project ID]]=0,0,Q4_2021[[#This Row],[Third Party Sector Leverage]]) -> 0 | X37: =IF(Summary3[[#This Row],[Project ID]]=0,0,Q4_2021[[#This Row],[LGF Outturn]]) -> 0 | Y37: =IF(Summary3[[#This Row],[Project ID]]=0,0,Q4_2021[[#This Row],[LGF Expenditure (as @ 31Mar21)]]) -> 200000 | Z37: =IF(Summary3[[#This Row],[Project ID]]=0,0,Q4_2021[[#This Row],[Total non-LGF Expenditure (as @ 31Mar21)]]) -> 0 | AA37: 0 | AB37: 0 | AC37: 0 | AD37: 0 | AE37: 0 | AF37: 0 | AG37: 0 | AH37: 0 | AI37: 0 | AJ37: 0 | AK37: 0 | AL37: 0 | AM37: 0 | AN37: 0 | AO37: 0 | AP37: 0 | AQ37: 0 | AR37: 0 | AS37: 0 | AT37: 0
A38: =IFERROR(Q4_2021[[#This Row],[Project ID]],0) -> LGFLON43 | B38: =IF(Summary3[[#This Row],[Project ID]]=0,0,Q4_2021[[#This Row],[Project Name]]) -> GGF NE07 Hackney Wkspace | C38: =IF(Summary3[[#This Row],[Project ID]]=0,0,Q4_2021[[#This Row],[Project Description (100 words max)]]) -> A project to support the refurbishment of three Hackney-owned buildings to provide affordable workspace for creative industries, alongside landscape improvements, an outdoor multi-use games area and classroom. The grant will also contribute towards establishing an on-site digital fabrication facility producing mobile studio ‘pods.’ The project will generate 1750m2 of improved commercial space, 10 work experience placements, 40 traineeships and 10 new jobs. | D38: =IF(Summary3[[#This Row],[Project ID]]=0,0,Q4_2021[[#This Row],[LEP Name]]) -> London LEP | E38: =IF(Summary3[[#This Row],[Project ID]]=0,0,Q4_2021[[#This Row],[Local Authority area the project is in]]) -> London Borough of Newham | F38: =IF(Summary3[[#This Row],[Project ID]]=0,0,Q4_2021[[#This Row],[Post Code]]) -> E6 6DS | G38: =IF(Summary3[[#This Row],[Project ID]]=0,0,Q4_2021[[#This Row],[Parliamentary Constituency]]) -> East Ham | H38: =IF(Summary3[[#This Row],[Project ID]]=0,0,Q4_2021[[#This Row],[Primary Project Type]]) -> Innovation | I38: =IF(Summary3[[#This Row],[Project ID]]=0,0,Q4_2021[[#This Row],[Primary Project Activity]]) -> Other | J38: =IF(Summary3[[#This Row],[Project ID]]=0,0,Q4_2021[[#This Row],[Secondary Project Type]]) -> Other | K38: =IF(Summary3[[#This Row],[Project ID]]=0,0,Q4_2021[[#This Row],[Secondary Project Activity]]) -> 0 | L38: =IF(Summary3[[#This Row],[Project ID]]=0,0,Q4_2021[[#This Row],[Project Type]]) -> Original | M38: =IF(Summary3[[#This Row],[Project ID]]=0,0,Q4_2021[[#This Row],[Project Status]]) -> Completed – project complete | N38: =IF(Summary3[[#This Row],[Project ID]]=0,0,Q4_2021[[#This Row],[Forecasted Financial Completion Date]]) -> 2021-03-30 | O38: =IF(Summary3[[#This Row],[Project ID]]=0,0,Q4_2021[[#This Row],[Actual Financial Completion]]) -> 2021-03-30 | P38: =IF(Summary3[[#This Row],[Project ID]]=0,0,Q4_2021[[#This Row],[Forecasted Practical Completion Date]]) -> 2021-03-30 | Q38: =IF(Summary3[[#This Row],[Project ID]]=0,0,Q4_2021[[#This Row],[Actual Practical Completion Date]]) -> 2021-03-30 | R38: =IF(Summary3[[#This Row],[Project ID]]=0,0,Q4_2021[[#This Row],[Evaluation Method]]) -> closure form/partner evaluation | S38: =IF(Summary3[[#This Row],[Project ID]]=0,0,Q4_2021[[#This Row],[Total Budget]]) -> 1152000 | T38: =IF(Summary3[[#This Row],[Project ID]]=0,0,Q4_2021[[#This Row],[LGF Budget]]) -> 450000 | U38: =IF(Summary3[[#This Row],[Project ID]]=0,0,Q4_2021[[#This Row],[Public Sector Leverage]]) -> 702000 | V38: =IF(Summary3[[#This Row],[Project ID]]=0,0,Q4_2021[[#This Row],[Private Sector Leverage]]) -> 0 | W38: =IF(Summary3[[#This Row],[Project ID]]=0,0,Q4_2021[[#This Row],[Third Party Sector Leverage]]) -> 0 | X38: =IF(Summary3[[#This Row],[Project ID]]=0,0,Q4_2021[[#This Row],[LGF Outturn]]) -> 0 | Y38: =IF(Summary3[[#This Row],[Project ID]]=0,0,Q4_2021[[#This Row],[LGF Expenditure (as @ 31Mar21)]]) -> 450000 | Z38: =IF(Summary3[[#This Row],[Project ID]]=0,0,Q4_2021[[#This Row],[Total non-LGF Expenditure (as @ 31Mar21)]]) -> 0 | AA38: 0 | AB38: 3 | AC38: 0 | AD38: 0 | AE38: 0 | AF38: 0 | AG38: 0 | AH38: 0 | AI38: 0 | AJ38: 0 | AK38: 0 | AL38: 0 | AM38: 0 | AN38: 0 | AO38: 0 | AP38: 0 | AQ38: 0 | AR38: 0 | AS38: 0 | AT38: 0
A39: =IFERROR(Q4_2021[[#This Row],[Project ID]],0) -> LGFLON44 | B39: =IF(Summary3[[#This Row],[Project ID]]=0,0,Q4_2021[[#This Row],[Project Name]]) -> GGF NW04 Lyon Road | C39: =IF(Summary3[[#This Row],[Project ID]]=0,0,Q4_2021[[#This Row],[Project Description (100 words max)]]) -> The transformation of an existing public car park in Harrow town centre into a multi-function public space- improving the general environment for pedestrians and providing the opportunity for markets and particularly food markets. | D39: =IF(Summary3[[#This Row],[Project ID]]=0,0,Q4_2021[[#This Row],[LEP Name]]) -> London LEP | E39: =IF(Summary3[[#This Row],[Project ID]]=0,0,Q4_2021[[#This Row],[Local Authority area the project is in]]) -> London Borough of Harrow | F39: =IF(Summary3[[#This Row],[Project ID]]=0,0,Q4_2021[[#This Row],[Post Code]]) -> HA1 2EN | G39: =IF(Summary3[[#This Row],[Project ID]]=0,0,Q4_2021[[#This Row],[Parliamentary Constituency]]) -> Harrow West | H39: =IF(Summary3[[#This Row],[Project ID]]=0,0,Q4_2021[[#This Row],[Primary Project Type]]) -> Culture_Tourism | I39: =IF(Summary3[[#This Row],[Project ID]]=0,0,Q4_2021[[#This Row],[Primary Project Activity]]) -> Other | J39: =IF(Summary3[[#This Row],[Project ID]]=0,0,Q4_2021[[#This Row],[Secondary Project Type]]) -> Other | K39: =IF(Summary3[[#This Row],[Project ID]]=0,0,Q4_2021[[#This Row],[Secondary Project Activity]]) -> 0 | L39: =IF(Summary3[[#This Row],[Project ID]]=0,0,Q4_2021[[#This Row],[Project Type]]) -> Original | M39: =IF(Summary3[[#This Row],[Project ID]]=0,0,Q4_2021[[#This Row],[Project Status]]) -> Financially complete | N39: =IF(Summary3[[#This Row],[Project ID]]=0,0,Q4_2021[[#This Row],[Forecasted Financial Completion Date]]) -> 2023-03-30 | O39: =IF(Summary3[[#This Row],[Project ID]]=0,0,Q4_2021[[#This Row],[Actual Financial Completion]]) -> 2023-03-30 | P39: =IF(Summary3[[#This Row],[Project ID]]=0,0,Q4_2021[[#This Row],[Forecasted Practical Completion Date]]) -> 2024-04-01 | Q39: =IF(Summary3[[#This Row],[Project ID]]=0,0,Q4_2021[[#This Row],[Actual Practical Completion Date]]) -> 00:00:00 | R39: =IF(Summary3[[#This Row],[Project ID]]=0,0,Q4_2021[[#This Row],[Evaluation Method]]) -> closure form/partner evaluation | S39: =IF(Summary3[[#This Row],[Project ID]]=0,0,Q4_2021[[#This Row],[Total Budget]]) -> 1137500 | T39: =IF(Summary3[[#This Row],[Project ID]]=0,0,Q4_2021[[#This Row],[LGF Budget]]) -> 485000 | U39: =IF(Summary3[[#This Row],[Project ID]]=0,0,Q4_2021[[#This Row],[Public Sector Leverage]]) -> 652500 | V39: =IF(Summary3[[#This Row],[Project ID]]=0,0,Q4_2021[[#This Row],[Private Sector Leverage]]) -> 0 | W39: =IF(Summary3[[#This Row],[Project ID]]=0,0,Q4_2021[[#This Row],[Third Party Sector Leverage]]) -> 0 | X39: =IF(Summary3[[#This Row],[Project ID]]=0,0,Q4_2021[[#This Row],[LGF Outturn]]) -> 0 | Y39: =IF(Summary3[[#This Row],[Project ID]]=0,0,Q4_2021[[#This Row],[LGF Expenditure (as @ 31Mar21)]]) -> 485000 | Z39: =IF(Summary3[[#This Row],[Project ID]]=0,0,Q4_2021[[#This Row],[Total non-LGF Expenditure (as @ 31Mar21)]]) -> 0 | AA39: 0 | AB39: 0 | AC39: 0 | AD39: 0 | AE39: 0 | AF39: 0 | AG39: 0 | AH39: 0 | AI39: 0 | AJ39: 0 | AK39: 0 | AL39: 0 | AM39: 0 | AN39: 0 | AO39: 0 | AP39: 0 | AQ39: 0 | AR39: 0 | AS39: 0 | AT39: 0
A40: =IFERROR(Q4_2021[[#This Row],[Project ID]],0) -> LGFLON45 | B40: =IF(Summary3[[#This Row],[Project ID]]=0,0,Q4_2021[[#This Row],[Project Name]]) -> GGF NW48 Nourish FoodHub | C40: =IF(Summary3[[#This Row],[Project ID]]=0,0,Q4_2021[[#This Row],[Project Description (100 words max)]]) -> A holistic programme of growing and greening, providing business improvements and an affordable workspace across two estates in Hammersmith & Fulham, Nourish will create a community food hub and a facility to provide nutritional education. | D40: =IF(Summary3[[#This Row],[Project ID]]=0,0,Q4_2021[[#This Row],[LEP Name]]) -> London LEP | E40: =IF(Summary3[[#This Row],[Project ID]]=0,0,Q4_2021[[#This Row],[Local Authority area the project is in]]) -> London Borough of Hammersmith & Fulham | F40: =IF(Summary3[[#This Row],[Project ID]]=0,0,Q4_2021[[#This Row],[Post Code]]) -> W11 4SS | G40: =IF(Summary3[[#This Row],[Project ID]]=0,0,Q4_2021[[#This Row],[Parliamentary Constituency]]) -> Hammersmtih & Chiswick | H40: =IF(Summary3[[#This Row],[Project ID]]=0,0,Q4_2021[[#This Row],[Primary Project Type]]) -> Regeneration_Public_Realm | I40: =IF(Summary3[[#This Row],[Project ID]]=0,0,Q4_2021[[#This Row],[Primary Project Activity]]) -> Community regeneration projects | J40: =IF(Summary3[[#This Row],[Project ID]]=0,0,Q4_2021[[#This Row],[Secondary Project Type]]) -> Other | K40: =IF(Summary3[[#This Row],[Project ID]]=0,0,Q4_2021[[#This Row],[Secondary Project Activity]]) -> 0 | L40: =IF(Summary3[[#This Row],[Project ID]]=0,0,Q4_2021[[#This Row],[Project Type]]) -> Original | M40: =IF(Summary3[[#This Row],[Project ID]]=0,0,Q4_2021[[#This Row],[Project Status]]) -> Completed – project complete | N40: =IF(Summary3[[#This Row],[Project ID]]=0,0,Q4_2021[[#This Row],[Forecasted Financial Completion Date]]) -> 2022-03-30 | O40: =IF(Summary3[[#This Row],[Project ID]]=0,0,Q4_2021[[#This Row],[Actual Financial Completion]]) -> 2022-03-30 | P40: =IF(Summary3[[#This Row],[Project ID]]=0,0,Q4_2021[[#This Row],[Forecasted Practical Completion Date]]) -> 2022-03-30 | Q40: =IF(Summary3[[#This Row],[Project ID]]=0,0,Q4_2021[[#This Row],[Actual Practical Completion Date]]) -> 2022-03-30 | R40: =IF(Summary3[[#This Row],[Project ID]]=0,0,Q4_2021[[#This Row],[Evaluation Method]]) -> closure form/partner evaluation | S40: =IF(Summary3[[#This Row],[Project ID]]=0,0,Q4_2021[[#This Row],[Total Budget]]) -> 2025985 | T40: =IF(Summary3[[#This Row],[Project ID]]=0,0,Q4_2021[[#This Row],[LGF Budget]]) -> 1100000 | U40: =IF(Summary3[[#This Row],[Project ID]]=0,0,Q4_2021[[#This Row],[Public Sector Leverage]]) -> 925985 | V40: =IF(Summary3[[#This Row],[Project ID]]=0,0,Q4_2021[[#This Row],[Private Sector Leverage]]) -> 0 | W40: =IF(Summary3[[#This Row],[Project ID]]=0,0,Q4_2021[[#This Row],[Third Party Sector Leverage]]) -> 0 | X40: =IF(Summary3[[#This Row],[Project ID]]=0,0,Q4_2021[[#This Row],[LGF Outturn]]) -> 0 | Y40: =IF(Summary3[[#This Row],[Project ID]]=0,0,Q4_2021[[#This Row],[LGF Expenditure (as @ 31Mar21)]]) -> 1100000 | Z40: =IF(Summary3[[#This Row],[Project ID]]=0,0,Q4_2021[[#This Row],[Total non-LGF Expenditure (as @ 31Mar21)]]) -> 0 | AA40: 0 | AB40: 0 | AC40: 0 | AD40: 0 | AE40: 0 | AF40: 0 | AG40: 0 | AH40: 0 | AI40: 0 | AJ40: 0 | AK40: 0 | AL40: 0 | AM40: 0 | AN40: 0 | AO40: 0 | AP40: 0 | AQ40: 0 | AR40: 0 | AS40: 0 | AT40: 0
A41: =IFERROR(Q4_2021[[#This Row],[Project ID]],0) -> LGFLON46 | B41: =IF(Summary3[[#This Row],[Project ID]]=0,0,Q4_2021[[#This Row],[Project Name]]) -> GGF NW32 Queens Crescent | C41: =IF(Summary3[[#This Row],[Project ID]]=0,0,Q4_2021[[#This Row],[Project Description (100 words max)]]) -> A range of high street improvement works in Camden will help better serve the Gospel Oak community through public realm improvements. These will support existing shops and markets, and provide green infrastructure. | D41: =IF(Summary3[[#This Row],[Project ID]]=0,0,Q4_2021[[#This Row],[LEP Name]]) -> London LEP | E41: =IF(Summary3[[#This Row],[Project ID]]=0,0,Q4_2021[[#This Row],[Local Authority area the project is in]]) -> London Borough of Camden | F41: =IF(Summary3[[#This Row],[Project ID]]=0,0,Q4_2021[[#This Row],[Post Code]]) -> NW5 3QH | G41: =IF(Summary3[[#This Row],[Project ID]]=0,0,Q4_2021[[#This Row],[Parliamentary Constituency]]) -> Holborn and St Pancras | H41: =IF(Summary3[[#This Row],[Project ID]]=0,0,Q4_2021[[#This Row],[Primary Project Type]]) -> Regeneration_Public_Realm | I41: =IF(Summary3[[#This Row],[Project ID]]=0,0,Q4_2021[[#This Row],[Primary Project Activity]]) -> Public realm investment supporting wider regeneration projects | J41: =IF(Summary3[[#This Row],[Project ID]]=0,0,Q4_2021[[#This Row],[Secondary Project Type]]) -> Other | K41: =IF(Summary3[[#This Row],[Project ID]]=0,0,Q4_2021[[#This Row],[Secondary Project Activity]]) -> 0 | L41: =IF(Summary3[[#This Row],[Project ID]]=0,0,Q4_2021[[#This Row],[Project Type]]) -> Original | M41: =IF(Summary3[[#This Row],[Project ID]]=0,0,Q4_2021[[#This Row],[Project Status]]) -> Financially complete | N41: =IF(Summary3[[#This Row],[Project ID]]=0,0,Q4_2021[[#This Row],[Forecasted Financial Completion Date]]) -> 2024-03-30 | O41: =IF(Summary3[[#This Row],[Project ID]]=0,0,Q4_2021[[#This Row],[Actual Financial Completion]]) -> 2024-03-30 | P41: =IF(Summary3[[#This Row],[Project ID]]=0,0,Q4_2021[[#This Row],[Forecasted Practical Completion Date]]) -> 2025-03-30 | Q41: =IF(Summary3[[#This Row],[Project ID]]=0,0,Q4_2021[[#This Row],[Actual Practical Completion Date]]) -> 00:00:00 | R41: =IF(Summary3[[#This Row],[Project ID]]=0,0,Q4_2021[[#This Row],[Evaluation Method]]) -> closure form/partner evaluation | S41: =IF(Summary3[[#This Row],[Project ID]]=0,0,Q4_2021[[#This Row],[Total Budget]]) -> 2189120 | T41: =IF(Summary3[[#This Row],[Project ID]]=0,0,Q4_2021[[#This Row],[LGF Budget]]) -> 1100000 | U41: =IF(Summary3[[#This Row],[Project ID]]=0,0,Q4_2021[[#This Row],[Public Sector Leverage]]) -> 0 | V41: =IF(Summary3[[#This Row],[Project ID]]=0,0,Q4_2021[[#This Row],[Private Sector Leverage]]) -> 0 | W41: =IF(Summary3[[#This Row],[Project ID]]=0,0,Q4_2021[[#This Row],[Third Party Sector Leverage]]) -> 1089120 | X41: =IF(Summary3[[#This Row],[Project ID]]=0,0,Q4_2021[[#This Row],[LGF Outturn]]) -> 0 | Y41: =IF(Summary3[[#This Row],[Project ID]]=0,0,Q4_2021[[#This Row],[LGF Expenditure (as @ 31Mar21)]]) -> 0 | Z41: =IF(Summary3[[#This Row],[Project ID]]=0,0,Q4_2021[[#This Row],[Total non-LGF Expenditure (as @ 31Mar21)]]) -> 0 | AA41: 0 | AB41: 0 | AC41: 0 | AD41: 0 | AE41: 0 | AF41: 0 | AG41: 0 | AH41: 0 | AI41: 0 | AJ41: 0 | AK41: 0 | AL41: 0 | AM41: 0 | AN41: 0 | AO41: 0 | AP41: 0 | AQ41: 0 | AR41: 0 | AS41: 0 | AT41: 0
A42: =IFERROR(Q4_2021[[#This Row],[Project ID]],0) -> LGFLON47 | B42: =IF(Summary3[[#This Row],[Project ID]]=0,0,Q4_2021[[#This Row],[Project Name]]) -> GGF NW40 Estate of Play | C42: =IF(Summary3[[#This Row],[Project ID]]=0,0,Q4_2021[[#This Row],[Project Description (100 words max)]]) -> The refurbishment and expansion of Kensal House Estate’s community rooms will meet the ambition of expanding high quality, cultural, youth and intergenerational community led activities which empower the local neighbourhood. | D42: =IF(Summary3[[#This Row],[Project ID]]=0,0,Q4_2021[[#This Row],[LEP Name]]) -> London LEP | E42: =IF(Summary3[[#This Row],[Project ID]]=0,0,Q4_2021[[#This Row],[Local Authority area the project is in]]) -> Royal borough of Kensington & Chelsea | F42: =IF(Summary3[[#This Row],[Project ID]]=0,0,Q4_2021[[#This Row],[Post Code]]) -> W10 5BQ | G42: =IF(Summary3[[#This Row],[Project ID]]=0,0,Q4_2021[[#This Row],[Parliamentary Constituency]]) -> Kensington & Bayswater | H42: =IF(Summary3[[#This Row],[Project ID]]=0,0,Q4_2021[[#This Row],[Primary Project Type]]) -> Innovation | I42: =IF(Summary3[[#This Row],[Project ID]]=0,0,Q4_2021[[#This Row],[Primary Project Activity]]) -> Other | J42: =IF(Summary3[[#This Row],[Project ID]]=0,0,Q4_2021[[#This Row],[Secondary Project Type]]) -> Other | K42: =IF(Summary3[[#This Row],[Project ID]]=0,0,Q4_2021[[#This Row],[Secondary Project Activity]]) -> 0 | L42: =IF(Summary3[[#This Row],[Project ID]]=0,0,Q4_2021[[#This Row],[Project Type]]) -> Original | M42: =IF(Summary3[[#This Row],[Project ID]]=0,0,Q4_2021[[#This Row],[Project Status]]) -> Financially complete | N42: =IF(Summary3[[#This Row],[Project ID]]=0,0,Q4_2021[[#This Row],[Forecasted Financial Completion Date]]) -> 2024-06-30 | O42: =IF(Summary3[[#This Row],[Project ID]]=0,0,Q4_2021[[#This Row],[Actual Financial Completion]]) -> 2024-03-30 | P42: =IF(Summary3[[#This Row],[Project ID]]=0,0,Q4_2021[[#This Row],[Forecasted Practical Completion Date]]) -> 2025-03-30 | Q42: =IF(Summary3[[#This Row],[Project ID]]=0,0,Q4_2021[[#This Row],[Actual Practical Completion Date]]) -> 00:00:00 | R42: =IF(Summary3[[#This Row],[Project ID]]=0,0,Q4_2021[[#This Row],[Evaluation Method]]) -> closure form/partner evaluation | S42: =IF(Summary3[[#This Row],[Project ID]]=0,0,Q4_2021[[#This Row],[Total Budget]]) -> 2919857 | T42: =IF(Summary3[[#This Row],[Project ID]]=0,0,Q4_2021[[#This Row],[LGF Budget]]) -> 899700 | U42: =IF(Summary3[[#This Row],[Project ID]]=0,0,Q4_2021[[#This Row],[Public Sector Leverage]]) -> 0 | V42: =IF(Summary3[[#This Row],[Project ID]]=0,0,Q4_2021[[#This Row],[Private Sector Leverage]]) -> 0 | W42: =IF(Summary3[[#This Row],[Project ID]]=0,0,Q4_2021[[#This Row],[Third Party Sector Leverage]]) -> 2020157 | X42: =IF(Summary3[[#This Row],[Project ID]]=0,0,Q4_2021[[#This Row],[LGF Outturn]]) -> 0 | Y42: =IF(Summary3[[#This Row],[Project ID]]=0,0,Q4_2021[[#This Row],[LGF Expenditure (as @ 31Mar21)]]) -> 0 | Z42: =IF(Summary3[[#This Row],[Project ID]]=0,0,Q4_2021[[#This Row],[Total non-LGF Expenditure (as @ 31Mar21)]]) -> 0 | AA42: 0 | AB42: 0 | AC42: 0 | AD42: 0 | AE42: 0 | AF42: 0 | AG42: 0 | AH42: 0 | AI42: 0 | AJ42: 0 | AK42: 0 | AL42: 0 | AM42: 0 | AN42: 0 | AO42: 0 | AP42: 0 | AQ42: 0 | AR42: 0 | AS42: 0 | AT42: 0
A43: =IFERROR(Q4_2021[[#This Row],[Project ID]],0) -> LGFLON48 | B43: =IF(Summary3[[#This Row],[Project ID]]=0,0,Q4_2021[[#This Row],[Project Name]]) -> GGF S28 198 CAL | C43: =IF(Summary3[[#This Row],[Project ID]]=0,0,Q4_2021[[#This Row],[Project Description (100 words max)]]) -> The redevelopment of the 198 Contemporary Arts and Learning centre in Herne Hill will increase and improve space for the creation of visual arts, industry skills training and provide a new community resource. | D43: =IF(Summary3[[#This Row],[Project ID]]=0,0,Q4_2021[[#This Row],[LEP Name]]) -> London LEP | E43: =IF(Summary3[[#This Row],[Project ID]]=0,0,Q4_2021[[#This Row],[Local Authority area the project is in]]) -> London Borough of Southwark | F43: =IF(Summary3[[#This Row],[Project ID]]=0,0,Q4_2021[[#This Row],[Post Code]]) -> SE24 0JT | G43: =IF(Summary3[[#This Row],[Project ID]]=0,0,Q4_2021[[#This Row],[Parliamentary Constituency]]) -> Dulwich & West Norwood | H43: =IF(Summary3[[#This Row],[Project ID]]=0,0,Q4_2021[[#This Row],[Primary Project Type]]) -> Regeneration_Public_Realm | I43: =IF(Summary3[[#This Row],[Project ID]]=0,0,Q4_2021[[#This Row],[Primary Project Activity]]) -> Community regeneration projects | J43: =IF(Summary3[[#This Row],[Project ID]]=0,0,Q4_2021[[#This Row],[Secondary Project Type]]) -> Other | K43: =IF(Summary3[[#This Row],[Project ID]]=0,0,Q4_2021[[#This Row],[Secondary Project Activity]]) -> 0 | L43: =IF(Summary3[[#This Row],[Project ID]]=0,0,Q4_2021[[#This Row],[Project Type]]) -> Original | M43: =IF(Summary3[[#This Row],[Project ID]]=0,0,Q4_2021[[#This Row],[Project Status]]) -> Completed – project complete | N43: =IF(Summary3[[#This Row],[Project ID]]=0,0,Q4_2021[[#This Row],[Forecasted Financial Completion Date]]) -> 2021-03-30 | O43: =IF(Summary3[[#This Row],[Project ID]]=0,0,Q4_2021[[#This Row],[Actual Financial Completion]]) -> 2021-03-30 | P43: =IF(Summary3[[#This Row],[Project ID]]=0,0,Q4_2021[[#This Row],[Forecasted Practical Completion Date]]) -> 2021-03-30 | Q43: =IF(Summary3[[#This Row],[Project ID]]=0,0,Q4_2021[[#This Row],[Actual Practical Completion Date]]) -> 2021-03-30 | R43: =IF(Summary3[[#This Row],[Project ID]]=0,0,Q4_2021[[#This Row],[Evaluation Method]]) -> closure form/partner evaluation | S43: =IF(Summary3[[#This Row],[Project ID]]=0,0,Q4_2021[[#This Row],[Total Budget]]) -> 653343 | T43: =IF(Summary3[[#This Row],[Project ID]]=0,0,Q4_2021[[#This Row],[LGF Budget]]) -> 475000 | U43: =IF(Summary3[[#This Row],[Project ID]]=0,0,Q4_2021[[#This Row],[Public Sector Leverage]]) -> 178343 | V43: =IF(Summary3[[#This Row],[Project ID]]=0,0,Q4_2021[[#This Row],[Private Sector Leverage]]) -> 0 | W43: =IF(Summary3[[#This Row],[Project ID]]=0,0,Q4_2021[[#This Row],[Third Party Sector Leverage]]) -> 0 | X43: =IF(Summary3[[#This Row],[Project ID]]=0,0,Q4_2021[[#This Row],[LGF Outturn]]) -> 0 | Y43: =IF(Summary3[[#This Row],[Project ID]]=0,0,Q4_2021[[#This Row],[LGF Expenditure (as @ 31Mar21)]]) -> 240342 | Z43: =IF(Summary3[[#This Row],[Project ID]]=0,0,Q4_2021[[#This Row],[Total non-LGF Expenditure (as @ 31Mar21)]]) -> 0 | AA43: 0 | AB43: 0 | AC43: 0 | AD43: 0 | AE43: 0 | AF43: 0 | AG43: 0 | AH43: 0 | AI43: 0 | AJ43: 0 | AK43: 0 | AL43: 0 | AM43: 0 | AN43: 0 | AO43: 0 | AP43: 0 | AQ43: 0 | AR43: 0 | AS43: 0 | AT43: 0
A44: =IFERROR(Q4_2021[[#This Row],[Project ID]],0) -> LGFLON49 | B44: =IF(Summary3[[#This Row],[Project ID]]=0,0,Q4_2021[[#This Row],[Project Name]]) -> LRF Richmond | C44: =IF(Summary3[[#This Row],[Project ID]]=0,0,Q4_2021[[#This Row],[Project Description (100 words max)]]) -> The project will transform the rear annex to a 1970s Magistrates Court in the town centre, owned by the neighbouring Richmond Adult and Community College (RACC). The main space will accommodate office activities and the ground floor undercroft carpark will be turned over to creative making uses. The project will benefit from having the college next door, with the independence of a separate access | D44: =IF(Summary3[[#This Row],[Project ID]]=0,0,Q4_2021[[#This Row],[LEP Name]]) -> London LEP | E44: =IF(Summary3[[#This Row],[Project ID]]=0,0,Q4_2021[[#This Row],[Local Authority area the project is in]]) -> London Borough of Richmond Upon Thames | F44: =IF(Summary3[[#This Row],[Project ID]]=0,0,Q4_2021[[#This Row],[Post Code]]) -> TW9 2RG | G44: =IF(Summary3[[#This Row],[Project ID]]=0,0,Q4_2021[[#This Row],[Parliamentary Constituency]]) -> Richmond Park | H44: =IF(Summary3[[#This Row],[Project ID]]=0,0,Q4_2021[[#This Row],[Primary Project Type]]) -> Regeneration_Public_Realm | I44: =IF(Summary3[[#This Row],[Project ID]]=0,0,Q4_2021[[#This Row],[Primary Project Activity]]) -> 0 | J44: =IF(Summary3[[#This Row],[Project ID]]=0,0,Q4_2021[[#This Row],[Secondary Project Type]]) -> Other | K44: =IF(Summary3[[#This Row],[Project ID]]=0,0,Q4_2021[[#This Row],[Secondary Project Activity]]) -> 0 | L44: =IF(Summary3[[#This Row],[Project ID]]=0,0,Q4_2021[[#This Row],[Project Type]]) -> Original | M44: =IF(Summary3[[#This Row],[Project ID]]=0,0,Q4_2021[[#This Row],[Project Status]]) -> Project Withdrawn - No grant funding spent | N44: =IF(Summary3[[#This Row],[Project ID]]=0,0,Q4_2021[[#This Row],[Forecasted Financial Completion Date]]) -> 2018-03-30 | O44: =IF(Summary3[[#This Row],[Project ID]]=0,0,Q4_2021[[#This Row],[Actual Financial Completion]]) -> 2018-03-30 | P44: =IF(Summary3[[#This Row],[Project ID]]=0,0,Q4_2021[[#This Row],[Forecasted Practical Completion Date]]) -> 2018-03-30 | Q44: =IF(Summary3[[#This Row],[Project ID]]=0,0,Q4_2021[[#This Row],[Actual Practical Completion Date]]) -> 2018-03-30 | R44: =IF(Summary3[[#This Row],[Project ID]]=0,0,Q4_2021[[#This Row],[Evaluation Method]]) -> closure form/partner evaluation | S44: =IF(Summary3[[#This Row],[Project ID]]=0,0,Q4_2021[[#This Row],[Total Budget]]) -> 0 | T44: =IF(Summary3[[#This Row],[Project ID]]=0,0,Q4_2021[[#This Row],[LGF Budget]]) -> 0 | U44: =IF(Summary3[[#This Row],[Project ID]]=0,0,Q4_2021[[#This Row],[Public Sector Leverage]]) -> 0 | V44: =IF(Summary3[[#This Row],[Project ID]]=0,0,Q4_2021[[#This Row],[Private Sector Leverage]]) -> 0 | W44: =IF(Summary3[[#This Row],[Project ID]]=0,0,Q4_2021[[#This Row],[Third Party Sector Leverage]]) -> 0 | X44: =IF(Summary3[[#This Row],[Project ID]]=0,0,Q4_2021[[#This Row],[LGF Outturn]]) -> 0 | Y44: =IF(Summary3[[#This Row],[Project ID]]=0,0,Q4_2021[[#This Row],[LGF Expenditure (as @ 31Mar21)]]) -> 0 | Z44: =IF(Summary3[[#This Row],[Project ID]]=0,0,Q4_2021[[#This Row],[Total non-LGF Expenditure (as @ 31Mar21)]]) -> 0 | AA44: 0 | AB44: 0 | AC44: 0 | AD44: 0 | AE44: 0 | AF44: 0 | AG44: 0 | AH44: 0 | AI44: 0 | AJ44: 0 | AK44: 0 | AL44: 0 | AM44: 0 | AN44: 0 | AO44: 0 | AP44: 0 | AQ44: 0 | AR44: 0 | AS44: 0 | AT44: 0
A45: =IFERROR(Q4_2021[[#This Row],[Project ID]],0) -> LGFLON50 | B45: =IF(Summary3[[#This Row],[Project ID]]=0,0,Q4_2021[[#This Row],[Project Name]]) -> LRF/GGF ERITH | C45: =IF(Summary3[[#This Row],[Project ID]]=0,0,Q4_2021[[#This Row],[Project Description (100 words max)]]) -> A holistic programme of inter-related regeneration projects for Erith Town Centre to set a tone for development quality, provide a mix of town centre uses, training and work opportunities and resolve some of the connectivity issues currently blighting the town. Projects include a meanwhile use strategy, identity strategy, a local development framework, environmental and wayfinding improvements, design briefs for development sites, renovation of the Carnegie Building into a community and workspace hub and a town centre stewardship and governance strategy. The project complements investment from the Growing Places Fund to support development of a number of town centre sites. | D45: =IF(Summary3[[#This Row],[Project ID]]=0,0,Q4_2021[[#This Row],[LEP Name]]) -> London LEP | E45: =IF(Summary3[[#This Row],[Project ID]]=0,0,Q4_2021[[#This Row],[Local Authority area the project is in]]) -> London Borough of Bexley | F45: =IF(Summary3[[#This Row],[Project ID]]=0,0,Q4_2021[[#This Row],[Post Code]]) -> DA8 | G45: =IF(Summary3[[#This Row],[Project ID]]=0,0,Q4_2021[[#This Row],[Parliamentary Constituency]]) -> Erith & Thamesmead | H45: =IF(Summary3[[#This Row],[Project ID]]=0,0,Q4_2021[[#This Row],[Primary Project Type]]) -> Digital_Broadband_Infrastructure | I45: =IF(Summary3[[#This Row],[Project ID]]=0,0,Q4_2021[[#This Row],[Primary Project Activity]]) -> Other | J45: =IF(Summary3[[#This Row],[Project ID]]=0,0,Q4_2021[[#This Row],[Secondary Project Type]]) -> Other | K45: =IF(Summary3[[#This Row],[Project ID]]=0,0,Q4_2021[[#This Row],[Secondary Project Activity]]) -> 0 | L45: =IF(Summary3[[#This Row],[Project ID]]=0,0,Q4_2021[[#This Row],[Project Type]]) -> Original | M45: =IF(Summary3[[#This Row],[Project ID]]=0,0,Q4_2021[[#This Row],[Project Status]]) -> Completed – project complete | N45: =IF(Summary3[[#This Row],[Project ID]]=0,0,Q4_2021[[#This Row],[Forecasted Financial Completion Date]]) -> 2018-04-01 | O45: =IF(Summary3[[#This Row],[Project ID]]=0,0,Q4_2021[[#This Row],[Actual Financial Completion]]) -> 2018-04-01 | P45: =IF(Summary3[[#This Row],[Project ID]]=0,0,Q4_2021[[#This Row],[Forecasted Practical Completion Date]]) -> 2018-04-01 | Q45: =IF(Summary3[[#This Row],[Project ID]]=0,0,Q4_2021[[#This Row],[Actual Practical Completion Date]]) -> 2018-04-01 | R45: =IF(Summary3[[#This Row],[Project ID]]=0,0,Q4_2021[[#This Row],[Evaluation Method]]) -> closure form/partner evaluation | S45: =IF(Summary3[[#This Row],[Project ID]]=0,0,Q4_2021[[#This Row],[Total Budget]]) -> 3811600 | T45: =IF(Summary3[[#This Row],[Project ID]]=0,0,Q4_2021[[#This Row],[LGF Budget]]) -> 1850000 | U45: =IF(Summary3[[#This Row],[Project ID]]=0,0,Q4_2021[[#This Row],[Public Sector Leverage]]) -> 1961600 | V45: =IF(Summary3[[#This Row],[Project ID]]=0,0,Q4_2021[[#This Row],[Private Sector Leverage]]) -> 0 | W45: =IF(Summary3[[#This Row],[Project ID]]=0,0,Q4_2021[[#This Row],[Third Party Sector Leverage]]) -> 0 | X45: =IF(Summary3[[#This Row],[Project ID]]=0,0,Q4_2021[[#This Row],[LGF Outturn]]) -> 0 | Y45: =IF(Summary3[[#This Row],[Project ID]]=0,0,Q4_2021[[#This Row],[LGF Expenditure (as @ 31Mar21)]]) -> 0 | Z45: =IF(Summary3[[#This Row],[Project ID]]=0,0,Q4_2021[[#This Row],[Total non-LGF Expenditure (as @ 31Mar21)]]) -> 0 | AA45: 0 | AB45: 0 | AC45: 0 | AD45: 0 | AE45: 0 | AF45: 0 | AG45: 0 | AH45: 0 | AI45: 0 | AJ45: 0 | AK45: 0 | AL45: 0 | AM45: 0 | AN45: 0 | AO45: 0 | AP45: 0 | AQ45: 0 | AR45: 0 | AS45: 0 | AT45: 0
A46: =IFERROR(Q4_2021[[#This Row],[Project ID]],0) -> LGFLON51 | B46: =IF(Summary3[[#This Row],[Project ID]]=0,0,Q4_2021[[#This Row],[Project Name]]) -> LRF UXBRIDGE T/CNTRE | C46: =IF(Summary3[[#This Row],[Project ID]]=0,0,Q4_2021[[#This Row],[Project Description (100 words max)]]) -> Uxbridge is a metropolitan centre experiencing growth in new office and retail developments. The project will make improvements and bring activity to the eastern end of the High Street to connect it to new housing and a theatre on the former RAF site, and make it function as an extension of the town centre. Proposals include public realm in front of the Civic Centre, lighting and active frontages for blank areas such as the side of the civic centre on the high street, enhancements to Vine Street in front of a 30s department store, and lighting and sound installations for the roundabout underpasses. Shopfront grants, business support and apprenticeships will be focused on these areas, and opportunities for temporary markets will also be explored. | D46: =IF(Summary3[[#This Row],[Project ID]]=0,0,Q4_2021[[#This Row],[LEP Name]]) -> London LEP | E46: =IF(Summary3[[#This Row],[Project ID]]=0,0,Q4_2021[[#This Row],[Local Authority area the project is in]]) -> London Borough of Hillingdon | F46: =IF(Summary3[[#This Row],[Project ID]]=0,0,Q4_2021[[#This Row],[Post Code]]) -> UB8 1LU | G46: =IF(Summary3[[#This Row],[Project ID]]=0,0,Q4_2021[[#This Row],[Parliamentary Constituency]]) -> Uxbridge & South Ruislip | H46: =IF(Summary3[[#This Row],[Project ID]]=0,0,Q4_2021[[#This Row],[Primary Project Type]]) -> Regeneration_Public_Realm | I46: =IF(Summary3[[#This Row],[Project ID]]=0,0,Q4_2021[[#This Row],[Primary Project Activity]]) -> 0 | J46: =IF(Summary3[[#This Row],[Project ID]]=0,0,Q4_2021[[#This Row],[Secondary Project Type]]) -> Other | K46: =IF(Summary3[[#This Row],[Project ID]]=0,0,Q4_2021[[#This Row],[Secondary Project Activity]]) -> 0 | L46: =IF(Summary3[[#This Row],[Project ID]]=0,0,Q4_2021[[#This Row],[Project Type]]) -> Original | M46: =IF(Summary3[[#This Row],[Project ID]]=0,0,Q4_2021[[#This Row],[Project Status]]) -> Project Withdrawn - No grant funding spent | N46: =IF(Summary3[[#This Row],[Project ID]]=0,0,Q4_2021[[#This Row],[Forecasted Financial Completion Date]]) -> 2018-03-30 | O46: =IF(Summary3[[#This Row],[Project ID]]=0,0,Q4_2021[[#This Row],[Actual Financial Completion]]) -> 2018-03-30 | P46: =IF(Summary3[[#This Row],[Project ID]]=0,0,Q4_2021[[#This Row],[Forecasted Practical Completion Date]]) -> 2018-03-30 | Q46: =IF(Summary3[[#This Row],[Project ID]]=0,0,Q4_2021[[#This Row],[Actual Practical Completion Date]]) -> 2018-03-30 | R46: =IF(Summary3[[#This Row],[Project ID]]=0,0,Q4_2021[[#This Row],[Evaluation Method]]) -> closure form/partner evaluation | S46: =IF(Summary3[[#This Row],[Project ID]]=0,0,Q4_2021[[#This Row],[Total Budget]]) -> 0 | T46: =IF(Summary3[[#This Row],[Project ID]]=0,0,Q4_2021[[#This Row],[LGF Budget]]) -> 0 | U46: =IF(Summary3[[#This Row],[Project ID]]=0,0,Q4_2021[[#This Row],[Public Sector Leverage]]) -> 0 | V46: =IF(Summary3[[#This Row],[Project ID]]=0,0,Q4_2021[[#This Row],[Private Sector Leverage]]) -> 0 | W46: =IF(Summary3[[#This Row],[Project ID]]=0,0,Q4_2021[[#This Row],[Third Party Sector Leverage]]) -> 0 | X46: =IF(Summary3[[#This Row],[Project ID]]=0,0,Q4_2021[[#This Row],[LGF Outturn]]) -> 0 | Y46: =IF(Summary3[[#This Row],[Project ID]]=0,0,Q4_2021[[#This Row],[LGF Expenditure (as @ 31Mar21)]]) -> 0 | Z46: =IF(Summary3[[#This Row],[Project ID]]=0,0,Q4_2021[[#This Row],[Total non-LGF Expenditure (as @ 31Mar21)]]) -> 0 | AA46: 0 | AB46: 0 | AC46: 0 | AD46: 0 | AE46: 0 | AF46: 0 | AG46: 0 | AH46: 0 | AI46: 0 | AJ46: 0 | AK46: 0 | AL46: 0 | AM46: 0 | AN46: 0 | AO46: 0 | AP46: 0 | AQ46: 0 | AR46: 0 | AS46: 0 | AT46: 0
A47: =IFERROR(Q4_2021[[#This Row],[Project ID]],0) -> LGFLON52 | B47: =IF(Summary3[[#This Row],[Project ID]]=0,0,Q4_2021[[#This Row],[Project Name]]) -> LRF BATTERSEA (project closed) outputs at closure | C47: =IF(Summary3[[#This Row],[Project ID]]=0,0,Q4_2021[[#This Row],[Project Description (100 words max)]]) -> The project is to establish a new high-spec incubator hub for start-up and early-stage creative businesses within Battersea Arts Centre, a multi-purpose arts and theatre venue located in Clapham Junction. The 163m2 hub will include; an open studio for flexible working with 34 workspaces; a private office suite for 4 companies with 18 desks and flexible partitions to accommodate businesses growth; a flexible workshop with movable partitions for learning, workshops and ideas sharing, with capacity of up to 80 people; a social space and reception area, communal kitchenette and bathroom facilities, secure lockers, and bike parking facilities. Each member will be required to offer two hours of their time and skills per month to other hub members and to participants of complementary initiatives. | D47: =IF(Summary3[[#This Row],[Project ID]]=0,0,Q4_2021[[#This Row],[LEP Name]]) -> London LEP | E47: =IF(Summary3[[#This Row],[Project ID]]=0,0,Q4_2021[[#This Row],[Local Authority area the project is in]]) -> London Borough of Wandsworth | F47: =IF(Summary3[[#This Row],[Project ID]]=0,0,Q4_2021[[#This Row],[Post Code]]) -> SW11 5TN | G47: =IF(Summary3[[#This Row],[Project ID]]=0,0,Q4_2021[[#This Row],[Parliamentary Constituency]]) -> Battersea | H47: =IF(Summary3[[#This Row],[Project ID]]=0,0,Q4_2021[[#This Row],[Primary Project Type]]) -> Regeneration_Public_Realm | I47: =IF(Summary3[[#This Row],[Project ID]]=0,0,Q4_2021[[#This Row],[Primary Project Activity]]) -> 0 | J47: =IF(Summary3[[#This Row],[Project ID]]=0,0,Q4_2021[[#This Row],[Secondary Project Type]]) -> Other | K47: =IF(Summary3[[#This Row],[Project ID]]=0,0,Q4_2021[[#This Row],[Secondary Project Activity]]) -> 0 | L47: =IF(Summary3[[#This Row],[Project ID]]=0,0,Q4_2021[[#This Row],[Project Type]]) -> Original | M47: =IF(Summary3[[#This Row],[Project ID]]=0,0,Q4_2021[[#This Row],[Project Status]]) -> Project Withdrawn - No grant funding spent | N47: =IF(Summary3[[#This Row],[Project ID]]=0,0,Q4_2021[[#This Row],[Forecasted Financial Completion Date]]) -> 2019-10-31 | O47: =IF(Summary3[[#This Row],[Project ID]]=0,0,Q4_2021[[#This Row],[Actual Financial Completion]]) -> 2019-10-31 | P47: =IF(Summary3[[#This Row],[Project ID]]=0,0,Q4_2021[[#This Row],[Forecasted Practical Completion Date]]) -> 2019-10-31 | Q47: =IF(Summary3[[#This Row],[Project ID]]=0,0,Q4_2021[[#This Row],[Actual Practical Completion Date]]) -> 2019-10-31 | R47: =IF(Summary3[[#This Row],[Project ID]]=0,0,Q4_2021[[#This Row],[Evaluation Method]]) -> closure form/partner evaluation | S47: =IF(Summary3[[#This Row],[Project ID]]=0,0,Q4_2021[[#This Row],[Total Budget]]) -> 0 | T47: =IF(Summary3[[#This Row],[Project ID]]=0,0,Q4_2021[[#This Row],[LGF Budget]]) -> 0 | U47: =IF(Summary3[[#This Row],[Project ID]]=0,0,Q4_2021[[#This Row],[Public Sector Leverage]]) -> 0 | V47: =IF(Summary3[[#This Row],[Project ID]]=0,0,Q4_2021[[#This Row],[Private Sector Leverage]]) -> 0 | W47: =IF(Summary3[[#This Row],[Project ID]]=0,0,Q4_2021[[#This Row],[Third Party Sector Leverage]]) -> 0 | X47: =IF(Summary3[[#This Row],[Project ID]]=0,0,Q4_2021[[#This Row],[LGF Outturn]]) -> 0 | Y47: =IF(Summary3[[#This Row],[Project ID]]=0,0,Q4_2021[[#This Row],[LGF Expenditure (as @ 31Mar21)]]) -> 0 | Z47: =IF(Summary3[[#This Row],[Project ID]]=0,0,Q4_2021[[#This Row],[Total non-LGF Expenditure (as @ 31Mar21)]]) -> 0 | AA47: 0 | AB47: 0 | AC47: 0 | AD47: 0 | AE47: 0 | AF47: 0 | AG47: 0 | AH47: 0 | AI47: 0 | AJ47: 0 | AK47: 0 | AL47: 0 | AM47: 0 | AN47: 0 | AO47: 0 | AP47: 0 | AQ47: 0 | AR47: 0 | AS47: 0 | AT47: 0
A48: =IFERROR(Q4_2021[[#This Row],[Project ID]],0) -> LGFLON53 | B48: =IF(Summary3[[#This Row],[Project ID]]=0,0,Q4_2021[[#This Row],[Project Name]]) -> LRF CRWD FUNDING RD3 | C48: =IF(Summary3[[#This Row],[Project ID]]=0,0,Q4_2021[[#This Row],[Project Description (100 words max)]]) -> Crowd Funding small regeneration community led projects | D48: =IF(Summary3[[#This Row],[Project ID]]=0,0,Q4_2021[[#This Row],[LEP Name]]) -> London LEP | E48: =IF(Summary3[[#This Row],[Project ID]]=0,0,Q4_2021[[#This Row],[Local Authority area the project is in]]) -> Royal Borough of Greenwich | F48: =IF(Summary3[[#This Row],[Project ID]]=0,0,Q4_2021[[#This Row],[Post Code]]) -> SE122AA | G48: =IF(Summary3[[#This Row],[Project ID]]=0,0,Q4_2021[[#This Row],[Parliamentary Constituency]]) -> Eltham & Chislehurst | H48: =IF(Summary3[[#This Row],[Project ID]]=0,0,Q4_2021[[#This Row],[Primary Project Type]]) -> Regeneration_Public_Realm | I48: =IF(Summary3[[#This Row],[Project ID]]=0,0,Q4_2021[[#This Row],[Primary Project Activity]]) -> Community regeneration projects | J48: =IF(Summary3[[#This Row],[Project ID]]=0,0,Q4_2021[[#This Row],[Secondary Project Type]]) -> Other | K48: =IF(Summary3[[#This Row],[Project ID]]=0,0,Q4_2021[[#This Row],[Secondary Project Activity]]) -> 0 | L48: =IF(Summary3[[#This Row],[Project ID]]=0,0,Q4_2021[[#This Row],[Project Type]]) -> Original | M48: =IF(Summary3[[#This Row],[Project ID]]=0,0,Q4_2021[[#This Row],[Project Status]]) -> Completed – project complete | N48: =IF(Summary3[[#This Row],[Project ID]]=0,0,Q4_2021[[#This Row],[Forecasted Financial Completion Date]]) -> 2020-03-30 | O48: =IF(Summary3[[#This Row],[Project ID]]=0,0,Q4_2021[[#This Row],[Actual Financial Completion]]) -> 2020-03-30 | P48: =IF(Summary3[[#This Row],[Project ID]]=0,0,Q4_2021[[#This Row],[Forecasted Practical Completion Date]]) -> 2020-03-30 | Q48: =IF(Summary3[[#This Row],[Project ID]]=0,0,Q4_2021[[#This Row],[Actual Practical Completion Date]]) -> 2020-03-30 | R48: =IF(Summary3[[#This Row],[Project ID]]=0,0,Q4_2021[[#This Row],[Evaluation Method]]) -> closure form/partner evaluation | S48: =IF(Summary3[[#This Row],[Project ID]]=0,0,Q4_2021[[#This Row],[Total Budget]]) -> 225000 | T48: =IF(Summary3[[#This Row],[Project ID]]=0,0,Q4_2021[[#This Row],[LGF Budget]]) -> 225000 | U48: =IF(Summary3[[#This Row],[Project ID]]=0,0,Q4_2021[[#This Row],[Public Sector Leverage]]) -> 0 | V48: =IF(Summary3[[#This Row],[Project ID]]=0,0,Q4_2021[[#This Row],[Private Sector Leverage]]) -> 0 | W48: =IF(Summary3[[#This Row],[Project ID]]=0,0,Q4_2021[[#This Row],[Third Party Sector Leverage]]) -> 0 | X48: =IF(Summary3[[#This Row],[Project ID]]=0,0,Q4_2021[[#This Row],[LGF Outturn]]) -> 0 | Y48: =IF(Summary3[[#This Row],[Project ID]]=0,0,Q4_2021[[#This Row],[LGF Expenditure (as @ 31Mar21)]]) -> 0 | Z48: =IF(Summary3[[#This Row],[Project ID]]=0,0,Q4_2021[[#This Row],[Total non-LGF Expenditure (as @ 31Mar21)]]) -> 0 | AA48: 0 | AB48: 0 | AC48: 0 | AD48: 0 | AE48: 0 | AF48: 0 | AG48: 0 | AH48: 0 | AI48: 0 | AJ48: 0 | AK48: 0 | AL48: 0 | AM48: 0 | AN48: 0 | AO48: 0 | AP48: 0 | AQ48: 0 | AR48: 0 | AS48: 0 | AT48: 0
A49: =IFERROR(Q4_2021[[#This Row],[Project ID]],0) -> LGFLON54 | B49: =IF(Summary3[[#This Row],[Project ID]]=0,0,Q4_2021[[#This Row],[Project Name]]) -> LRF LOUGHBOROUGH JUN | C49: =IF(Summary3[[#This Row],[Project ID]]=0,0,Q4_2021[[#This Row],[Project Description (100 words max)]]) -> This workspace project by LB Lambeth, in partnership with Network Rail and Meanwhile Space CIC, will create a new building on a borough-owned site built from containers including studio space, makerspace, coworking offices and shared workshops/food production, and horticultural research. The project will also run an “Arch Recycling” competition, to design and build self-contained structures which offer security, insulation and are waterproof to be inserted into arches, which can bring arches into use that would require significant investment, but are not available for enough time to warrant a significant outlay for their refurbishment. | D49: =IF(Summary3[[#This Row],[Project ID]]=0,0,Q4_2021[[#This Row],[LEP Name]]) -> London LEP | E49: =IF(Summary3[[#This Row],[Project ID]]=0,0,Q4_2021[[#This Row],[Local Authority area the project is in]]) -> London Borough of Lambeth | F49: =IF(Summary3[[#This Row],[Project ID]]=0,0,Q4_2021[[#This Row],[Post Code]]) -> SW9 | G49: =IF(Summary3[[#This Row],[Project ID]]=0,0,Q4_2021[[#This Row],[Parliamentary Constituency]]) -> Vauxhall & Camberwell Green | H49: =IF(Summary3[[#This Row],[Project ID]]=0,0,Q4_2021[[#This Row],[Primary Project Type]]) -> Regeneration_Public_Realm | I49: =IF(Summary3[[#This Row],[Project ID]]=0,0,Q4_2021[[#This Row],[Primary Project Activity]]) -> Other | J49: =IF(Summary3[[#This Row],[Project ID]]=0,0,Q4_2021[[#This Row],[Secondary Project Type]]) -> Other | K49: =IF(Summary3[[#This Row],[Project ID]]=0,0,Q4_2021[[#This Row],[Secondary Project Activity]]) -> 0 | L49: =IF(Summary3[[#This Row],[Project ID]]=0,0,Q4_2021[[#This Row],[Project Type]]) -> Original | M49: =IF(Summary3[[#This Row],[Project ID]]=0,0,Q4_2021[[#This Row],[Project Status]]) -> Completed – project complete | N49: =IF(Summary3[[#This Row],[Project ID]]=0,0,Q4_2021[[#This Row],[Forecasted Financial Completion Date]]) -> 2023-06-30 | O49: =IF(Summary3[[#This Row],[Project ID]]=0,0,Q4_2021[[#This Row],[Actual Financial Completion]]) -> 2023-06-30 | P49: =IF(Summary3[[#This Row],[Project ID]]=0,0,Q4_2021[[#This Row],[Forecasted Practical Completion Date]]) -> 2023-06-30 | Q49: =IF(Summary3[[#This Row],[Project ID]]=0,0,Q4_2021[[#This Row],[Actual Practical Completion Date]]) -> 2023-06-30 | R49: =IF(Summary3[[#This Row],[Project ID]]=0,0,Q4_2021[[#This Row],[Evaluation Method]]) -> closure form/partner evaluation | S49: =IF(Summary3[[#This Row],[Project ID]]=0,0,Q4_2021[[#This Row],[Total Budget]]) -> 3362482 | T49: =IF(Summary3[[#This Row],[Project ID]]=0,0,Q4_2021[[#This Row],[LGF Budget]]) -> 1681241 | U49: =IF(Summary3[[#This Row],[Project ID]]=0,0,Q4_2021[[#This Row],[Public Sector Leverage]]) -> 1681241 | V49: =IF(Summary3[[#This Row],[Project ID]]=0,0,Q4_2021[[#This Row],[Private Sector Leverage]]) -> 0 | W49: =IF(Summary3[[#This Row],[Project ID]]=0,0,Q4_2021[[#This Row],[Third Party Sector Leverage]]) -> 0 | X49: =IF(Summary3[[#This Row],[Project ID]]=0,0,Q4_2021[[#This Row],[LGF Outturn]]) -> 0 | Y49: =IF(Summary3[[#This Row],[Project ID]]=0,0,Q4_2021[[#This Row],[LGF Expenditure (as @ 31Mar21)]]) -> 0 | Z49: =IF(Summary3[[#This Row],[Project ID]]=0,0,Q4_2021[[#This Row],[Total non-LGF Expenditure (as @ 31Mar21)]]) -> 0 | AA49: 0 | AB49: 0 | AC49: 0 | AD49: 0 | AE49: 0 | AF49: 0 | AG49: 0 | AH49: 0 | AI49: 0 | AJ49: 0 | AK49: 0 | AL49: 0 | AM49: 0 | AN49: 0 | AO49: 0 | AP49: 0 | AQ49: 0 | AR49: 0 | AS49: 0 | AT49: 0
A50: =IFERROR(Q4_2021[[#This Row],[Project ID]],0) -> LGFLON55 | B50: =IF(Summary3[[#This Row],[Project ID]]=0,0,Q4_2021[[#This Row],[Project Name]]) -> LRF POPLAR | C50: =IF(Summary3[[#This Row],[Project ID]]=0,0,Q4_2021[[#This Row],[Project Description (100 words max)]]) -> To create a new fashion hub with affordable workspace, incubation space, garment manufacturing facilities, maker-space, event space and move-on space. Objectives: -to secure and create affordable workspace -support inclusive sustainable growth -to pilot change in local area as well as for the fashion industry | D50: =IF(Summary3[[#This Row],[Project ID]]=0,0,Q4_2021[[#This Row],[LEP Name]]) -> London LEP | E50: =IF(Summary3[[#This Row],[Project ID]]=0,0,Q4_2021[[#This Row],[Local Authority area the project is in]]) -> London Borough of Tower Hamlets | F50: =IF(Summary3[[#This Row],[Project ID]]=0,0,Q4_2021[[#This Row],[Post Code]]) -> E14 6DA | G50: =IF(Summary3[[#This Row],[Project ID]]=0,0,Q4_2021[[#This Row],[Parliamentary Constituency]]) -> Poplar & Limehouse | H50: =IF(Summary3[[#This Row],[Project ID]]=0,0,Q4_2021[[#This Row],[Primary Project Type]]) -> Regeneration_Public_Realm | I50: =IF(Summary3[[#This Row],[Project ID]]=0,0,Q4_2021[[#This Row],[Primary Project Activity]]) -> Other | J50: =IF(Summary3[[#This Row],[Project ID]]=0,0,Q4_2021[[#This Row],[Secondary Project Type]]) -> Other | K50: =IF(Summary3[[#This Row],[Project ID]]=0,0,Q4_2021[[#This Row],[Secondary Project Activity]]) -> 0 | L50: =IF(Summary3[[#This Row],[Project ID]]=0,0,Q4_2021[[#This Row],[Project Type]]) -> Original | M50: =IF(Summary3[[#This Row],[Project ID]]=0,0,Q4_2021[[#This Row],[Project Status]]) -> Completed – project complete | N50: =IF(Summary3[[#This Row],[Project ID]]=0,0,Q4_2021[[#This Row],[Forecasted Financial Completion Date]]) -> 2018-04-01 | O50: =IF(Summary3[[#This Row],[Project ID]]=0,0,Q4_2021[[#This Row],[Actual Financial Completion]]) -> 2021-04-01 | P50: =IF(Summary3[[#This Row],[Project ID]]=0,0,Q4_2021[[#This Row],[Forecasted Practical Completion Date]]) -> 2018-04-01 | Q50: =IF(Summary3[[#This Row],[Project ID]]=0,0,Q4_2021[[#This Row],[Actual Practical Completion Date]]) -> 2021-04-01 | R50: =IF(Summary3[[#This Row],[Project ID]]=0,0,Q4_2021[[#This Row],[Evaluation Method]]) -> closure form/partner evaluation | S50: =IF(Summary3[[#This Row],[Project ID]]=0,0,Q4_2021[[#This Row],[Total Budget]]) -> 3909706 | T50: =IF(Summary3[[#This Row],[Project ID]]=0,0,Q4_2021[[#This Row],[LGF Budget]]) -> 1779250 | U50: =IF(Summary3[[#This Row],[Project ID]]=0,0,Q4_2021[[#This Row],[Public Sector Leverage]]) -> 2130456 | V50: =IF(Summary3[[#This Row],[Project ID]]=0,0,Q4_2021[[#This Row],[Private Sector Leverage]]) -> 0 | W50: =IF(Summary3[[#This Row],[Project ID]]=0,0,Q4_2021[[#This Row],[Third Party Sector Leverage]]) -> 0 | X50: =IF(Summary3[[#This Row],[Project ID]]=0,0,Q4_2021[[#This Row],[LGF Outturn]]) -> 0 | Y50: =IF(Summary3[[#This Row],[Project ID]]=0,0,Q4_2021[[#This Row],[LGF Expenditure (as @ 31Mar21)]]) -> 1124738 | Z50: =IF(Summary3[[#This Row],[Project ID]]=0,0,Q4_2021[[#This Row],[Total non-LGF Expenditure (as @ 31Mar21)]]) -> 0 | AA50: 0 | AB50: 0 | AC50: 0 | AD50: 0 | AE50: 0 | AF50: 0 | AG50: 0 | AH50: 0 | AI50: 0 | AJ50: 0 | AK50: 0 | AL50: 0 | AM50: 0 | AN50: 0 | AO50: 0 | AP50: 0 | AQ50: 0 | AR50: 0 | AS50: 0 | AT50: 0
A51: =IFERROR(Q4_2021[[#This Row],[Project ID]],0) -> LGFLON56 | B51: =IF(Summary3[[#This Row],[Project ID]]=0,0,Q4_2021[[#This Row],[Project Name]]) -> LRF MERIDIAN WATER W | C51: =IF(Summary3[[#This Row],[Project ID]]=0,0,Q4_2021[[#This Row],[Project Description (100 words max)]]) -> The vaired London Regeneration Fund project will pay for the refurbishment and extension of the former VOSA site as the new home for Building Bloqs, as well as acquiring 4 Antony Way to be repurposes as artist studios. GLA money will primarily pay for the acquisition of 4 Antony Way, Bloqs' current premises. The project will deliver similar outputs to those originally agreed under the LRF agreement, although tweaked to factor in the change in premises. Original project description The London Regeneration Fund is providing £1.35m and LB Enfield £1.3m to transform two industrial sheds in Meridian Water, into open workshops for makers and studios for artists, with shared facilities for outreach and training. Meridian Works represents the first major statement of the place Meridian Water will become and a revival of the areas artisan heritage. By working with specialist operators, Building BloQs and ACAVA, to create a regionally significant cluster of makers and creatives it addresses space and affordability issues. By providing training and job opportunities for local residents it helps connect existing and emerging communities. | D51: =IF(Summary3[[#This Row],[Project ID]]=0,0,Q4_2021[[#This Row],[LEP Name]]) -> London LEP | E51: =IF(Summary3[[#This Row],[Project ID]]=0,0,Q4_2021[[#This Row],[Local Authority area the project is in]]) -> London Borough of Enfield | F51: =IF(Summary3[[#This Row],[Project ID]]=0,0,Q4_2021[[#This Row],[Post Code]]) -> N18 3HF | G51: =IF(Summary3[[#This Row],[Project ID]]=0,0,Q4_2021[[#This Row],[Parliamentary Constituency]]) -> Edmonton & Winchmore Hill | H51: =IF(Summary3[[#This Row],[Project ID]]=0,0,Q4_2021[[#This Row],[Primary Project Type]]) -> Employment | I51: =IF(Summary3[[#This Row],[Project ID]]=0,0,Q4_2021[[#This Row],[Primary Project Activity]]) -> Site remediation for new commercial space | J51: =IF(Summary3[[#This Row],[Project ID]]=0,0,Q4_2021[[#This Row],[Secondary Project Type]]) -> Other | K51: =IF(Summary3[[#This Row],[Project ID]]=0,0,Q4_2021[[#This Row],[Secondary Project Activity]]) -> 0 | L51: =IF(Summary3[[#This Row],[Project ID]]=0,0,Q4_2021[[#This Row],[Project Type]]) -> Original | M51: =IF(Summary3[[#This Row],[Project ID]]=0,0,Q4_2021[[#This Row],[Project Status]]) -> Completed – project complete | N51: =IF(Summary3[[#This Row],[Project ID]]=0,0,Q4_2021[[#This Row],[Forecasted Financial Completion Date]]) -> 2018-03-30 | O51: =IF(Summary3[[#This Row],[Project ID]]=0,0,Q4_2021[[#This Row],[Actual Financial Completion]]) -> 2018-03-30 | P51: =IF(Summary3[[#This Row],[Project ID]]=0,0,Q4_2021[[#This Row],[Forecasted Practical Completion Date]]) -> 2018-03-30 | Q51: =IF(Summary3[[#This Row],[Project ID]]=0,0,Q4_2021[[#This Row],[Actual Practical Completion Date]]) -> 2018-03-30 | R51: =IF(Summary3[[#This Row],[Project ID]]=0,0,Q4_2021[[#This Row],[Evaluation Method]]) -> closure form/partner evaluation | S51: =IF(Summary3[[#This Row],[Project ID]]=0,0,Q4_2021[[#This Row],[Total Budget]]) -> 2700000 | T51: =IF(Summary3[[#This Row],[Project ID]]=0,0,Q4_2021[[#This Row],[LGF Budget]]) -> 1350000 | U51: =IF(Summary3[[#This Row],[Project ID]]=0,0,Q4_2021[[#This Row],[Public Sector Leverage]]) -> 1350000 | V51: =IF(Summary3[[#This Row],[Project ID]]=0,0,Q4_2021[[#This Row],[Private Sector Leverage]]) -> 0 | W51: =IF(Summary3[[#This Row],[Project ID]]=0,0,Q4_2021[[#This Row],[Third Party Sector Leverage]]) -> 0 | X51: =IF(Summary3[[#This Row],[Project ID]]=0,0,Q4_2021[[#This Row],[LGF Outturn]]) -> 0 | Y51: =IF(Summary3[[#This Row],[Project ID]]=0,0,Q4_2021[[#This Row],[LGF Expenditure (as @ 31Mar21)]]) -> 0 | Z51: =IF(Summary3[[#This Row],[Project ID]]=0,0,Q4_2021[[#This Row],[Total non-LGF Expenditure (as @ 31Mar21)]]) -> 0 | AA51: 0 | AB51: 0 | AC51: 0 | AD51: 0 | AE51: 0 | AF51: 0 | AG51: 0 | AH51: 0 | AI51: 0 | AJ51: 0 | AK51: 0 | AL51: 0 | AM51: 0 | AN51: 0 | AO51: 0 | AP51: 0 | AQ51: 0 | AR51: 0 | AS51: 0 | AT51: 0
A52: =IFERROR(Q4_2021[[#This Row],[Project ID]],0) -> LGFLON57 | B52: =IF(Summary3[[#This Row],[Project ID]]=0,0,Q4_2021[[#This Row],[Project Name]]) -> LRF HARROW TOWN CENT | C52: =IF(Summary3[[#This Row],[Project ID]]=0,0,Q4_2021[[#This Row],[Project Description (100 words max)]]) -> This group of projects focuses on regenerating Wealdstone through the creation of a new business and community infrastructure. The proposal is linked to the future relocation of Harrow Civic Centre to Wealdstone. The first project will intensify workspace usage at Artisan Place for new businesses, by fitting out the old Windsor & Newton offices to create a creative/tech workspace with ground floor cafe/co-working area and 'grow-up' space on upper floors. The second project will deliver a new town square for Wealdstone for events/markets and to reinvigorate business/community partnership. Works will include public realm and shop-front improvements, and establishing a new market. The third project will focus on business survival and growth, including establishing a Wealdstone town team. | D52: =IF(Summary3[[#This Row],[Project ID]]=0,0,Q4_2021[[#This Row],[LEP Name]]) -> London LEP | E52: =IF(Summary3[[#This Row],[Project ID]]=0,0,Q4_2021[[#This Row],[Local Authority area the project is in]]) -> London Borough of Harrow | F52: =IF(Summary3[[#This Row],[Project ID]]=0,0,Q4_2021[[#This Row],[Post Code]]) -> HA1 1AT | G52: =IF(Summary3[[#This Row],[Project ID]]=0,0,Q4_2021[[#This Row],[Parliamentary Constituency]]) -> Harrow West | H52: =IF(Summary3[[#This Row],[Project ID]]=0,0,Q4_2021[[#This Row],[Primary Project Type]]) -> Regeneration_Public_Realm | I52: =IF(Summary3[[#This Row],[Project ID]]=0,0,Q4_2021[[#This Row],[Primary Project Activity]]) -> 0 | J52: =IF(Summary3[[#This Row],[Project ID]]=0,0,Q4_2021[[#This Row],[Secondary Project Type]]) -> Other | K52: =IF(Summary3[[#This Row],[Project ID]]=0,0,Q4_2021[[#This Row],[Secondary Project Activity]]) -> 0 | L52: =IF(Summary3[[#This Row],[Project ID]]=0,0,Q4_2021[[#This Row],[Project Type]]) -> Original | M52: =IF(Summary3[[#This Row],[Project ID]]=0,0,Q4_2021[[#This Row],[Project Status]]) -> Project Withdrawn - No grant funding spent | N52: =IF(Summary3[[#This Row],[Project ID]]=0,0,Q4_2021[[#This Row],[Forecasted Financial Completion Date]]) -> 2018-03-31 | O52: =IF(Summary3[[#This Row],[Project ID]]=0,0,Q4_2021[[#This Row],[Actual Financial Completion]]) -> 2018-03-31 | P52: =IF(Summary3[[#This Row],[Project ID]]=0,0,Q4_2021[[#This Row],[Forecasted Practical Completion Date]]) -> 2018-03-31 | Q52: =IF(Summary3[[#This Row],[Project ID]]=0,0,Q4_2021[[#This Row],[Actual Practical Completion Date]]) -> 2018-03-31 | R52: =IF(Summary3[[#This Row],[Project ID]]=0,0,Q4_2021[[#This Row],[Evaluation Method]]) -> closure form/partner evaluation | S52: =IF(Summary3[[#This Row],[Project ID]]=0,0,Q4_2021[[#This Row],[Total Budget]]) -> 0 | T52: =IF(Summary3[[#This Row],[Project ID]]=0,0,Q4_2021[[#This Row],[LGF Budget]]) -> 0 | U52: =IF(Summary3[[#This Row],[Project ID]]=0,0,Q4_2021[[#This Row],[Public Sector Leverage]]) -> 0 | V52: =IF(Summary3[[#This Row],[Project ID]]=0,0,Q4_2021[[#This Row],[Private Sector Leverage]]) -> 0 | W52: =IF(Summary3[[#This Row],[Project ID]]=0,0,Q4_2021[[#This Row],[Third Party Sector Leverage]]) -> 0 | X52: =IF(Summary3[[#This Row],[Project ID]]=0,0,Q4_2021[[#This Row],[LGF Outturn]]) -> 0 | Y52: =IF(Summary3[[#This Row],[Project ID]]=0,0,Q4_2021[[#This Row],[LGF Expenditure (as @ 31Mar21)]]) -> 0 | Z52: =IF(Summary3[[#This Row],[Project ID]]=0,0,Q4_2021[[#This Row],[Total non-LGF Expenditure (as @ 31Mar21)]]) -> 0 | AA52: 0 | AB52: 0 | AC52: 0 | AD52: 0 | AE52: 0 | AF52: 0 | AG52: 0 | AH52: 0 | AI52: 0 | AJ52: 0 | AK52: 0 | AL52: 0 | AM52: 0 | AN52: 0 | AO52: 0 | AP52: 0 | AQ52: 0 | AR52: 0 | AS52: 0 | AT52: 0
A53: =IFERROR(Q4_2021[[#This Row],[Project ID]],0) -> LGFLON58 | B53: =IF(Summary3[[#This Row],[Project ID]]=0,0,Q4_2021[[#This Row],[Project Name]]) -> LRF ROYAL DOCKS SILV | C53: =IF(Summary3[[#This Row],[Project ID]]=0,0,Q4_2021[[#This Row],[Project Description (100 words max)]]) -> The project will create a local arts hub in the Carlsberg & Tetley Building activating the Victoria Dock and Thameside West area with an array of cultural events. Creative professionals and new enterprises will be supported with priority given to existing local businesses whilst also attracting creative professionals and SMEs. The project would run for 7-10 years with a plan to move established businesses into the long term development by Quintain. The area under the DLR will be developed into a pavilion with seating to create an outdoor area, with improved public realm forging connections to the adjacent and existing Waterfront Studios. | D53: =IF(Summary3[[#This Row],[Project ID]]=0,0,Q4_2021[[#This Row],[LEP Name]]) -> London LEP | E53: =IF(Summary3[[#This Row],[Project ID]]=0,0,Q4_2021[[#This Row],[Local Authority area the project is in]]) -> London Borough of Newham | F53: =IF(Summary3[[#This Row],[Project ID]]=0,0,Q4_2021[[#This Row],[Post Code]]) -> E16 2SQ | G53: =IF(Summary3[[#This Row],[Project ID]]=0,0,Q4_2021[[#This Row],[Parliamentary Constituency]]) -> West Ham & Beckton | H53: =IF(Summary3[[#This Row],[Project ID]]=0,0,Q4_2021[[#This Row],[Primary Project Type]]) -> Employment | I53: =IF(Summary3[[#This Row],[Project ID]]=0,0,Q4_2021[[#This Row],[Primary Project Activity]]) -> Site remediation for new commercial space | J53: =IF(Summary3[[#This Row],[Project ID]]=0,0,Q4_2021[[#This Row],[Secondary Project Type]]) -> Other | K53: =IF(Summary3[[#This Row],[Project ID]]=0,0,Q4_2021[[#This Row],[Secondary Project Activity]]) -> 0 | L53: =IF(Summary3[[#This Row],[Project ID]]=0,0,Q4_2021[[#This Row],[Project Type]]) -> Original | M53: =IF(Summary3[[#This Row],[Project ID]]=0,0,Q4_2021[[#This Row],[Project Status]]) -> Project Withdrawn - No grant funding spent | N53: =IF(Summary3[[#This Row],[Project ID]]=0,0,Q4_2021[[#This Row],[Forecasted Financial Completion Date]]) -> 2018-03-31 | O53: =IF(Summary3[[#This Row],[Project ID]]=0,0,Q4_2021[[#This Row],[Actual Financial Completion]]) -> 2018-03-31 | P53: =IF(Summary3[[#This Row],[Project ID]]=0,0,Q4_2021[[#This Row],[Forecasted Practical Completion Date]]) -> 2018-03-31 | Q53: =IF(Summary3[[#This Row],[Project ID]]=0,0,Q4_2021[[#This Row],[Actual Practical Completion Date]]) -> 2018-03-31 | R53: =IF(Summary3[[#This Row],[Project ID]]=0,0,Q4_2021[[#This Row],[Evaluation Method]]) -> closure form/partner evaluation | S53: =IF(Summary3[[#This Row],[Project ID]]=0,0,Q4_2021[[#This Row],[Total Budget]]) -> 0 | T53: =IF(Summary3[[#This Row],[Project ID]]=0,0,Q4_2021[[#This Row],[LGF Budget]]) -> 0 | U53: =IF(Summary3[[#This Row],[Project ID]]=0,0,Q4_2021[[#This Row],[Public Sector Leverage]]) -> 0 | V53: =IF(Summary3[[#This Row],[Project ID]]=0,0,Q4_2021[[#This Row],[Private Sector Leverage]]) -> 0 | W53: =IF(Summary3[[#This Row],[Project ID]]=0,0,Q4_2021[[#This Row],[Third Party Sector Leverage]]) -> 0 | X53: =IF(Summary3[[#This Row],[Project ID]]=0,0,Q4_2021[[#This Row],[LGF Outturn]]) -> 0 | Y53: =IF(Summary3[[#This Row],[Project ID]]=0,0,Q4_2021[[#This Row],[LGF Expenditure (as @ 31Mar21)]]) -> 0 | Z53: =IF(Summary3[[#This Row],[Project ID]]=0,0,Q4_2021[[#This Row],[Total non-LGF Expenditure (as @ 31Mar21)]]) -> 0 | AA53: 0 | AB53: 0 | AC53: 0 | AD53: 0 | AE53: 0 | AF53: 0 | AG53: 0 | AH53: 0 | AI53: 0 | AJ53: 0 | AK53: 0 | AL53: 0 | AM53: 0 | AN53: 0 | AO53: 0 | AP53: 0 | AQ53: 0 | AR53: 0 | AS53: 0 | AT53: 0
A54: =IFERROR(Q4_2021[[#This Row],[Project ID]],0) -> LGFLON59 | B54: =IF(Summary3[[#This Row],[Project ID]]=0,0,Q4_2021[[#This Row],[Project Name]]) -> LRF North Woolwich (crossrail 324k) | C54: =IF(Summary3[[#This Row],[Project ID]]=0,0,Q4_2021[[#This Row],[Project Description (100 words max)]]) -> This project will refurbish, reopen and reanimate the Grade II listed Old North Woolwich Station building, and, with the support of Crossrail, develop 3,450m2 of adjacent land to create outdoor workspaces for creative enterprises alongside a new community garden open to all. The building will be a new base for the pioneering arts educational social enterprise, Open School East, and will also offer indoor studios and outdoor workspace for artists and creative businesses as well as communal public-facing spaces and a programme of engagement and activity. | D54: =IF(Summary3[[#This Row],[Project ID]]=0,0,Q4_2021[[#This Row],[LEP Name]]) -> London LEP | E54: =IF(Summary3[[#This Row],[Project ID]]=0,0,Q4_2021[[#This Row],[Local Authority area the project is in]]) -> Royal Borough of Greenwich | F54: =IF(Summary3[[#This Row],[Project ID]]=0,0,Q4_2021[[#This Row],[Post Code]]) -> SE18 6EU | G54: =IF(Summary3[[#This Row],[Project ID]]=0,0,Q4_2021[[#This Row],[Parliamentary Constituency]]) -> Greenwich and Woolwich | H54: =IF(Summary3[[#This Row],[Project ID]]=0,0,Q4_2021[[#This Row],[Primary Project Type]]) -> Rail_Transport | I54: =IF(Summary3[[#This Row],[Project ID]]=0,0,Q4_2021[[#This Row],[Primary Project Activity]]) -> Station infrastructure and facilities | J54: =IF(Summary3[[#This Row],[Project ID]]=0,0,Q4_2021[[#This Row],[Secondary Project Type]]) -> Other | K54: =IF(Summary3[[#This Row],[Project ID]]=0,0,Q4_2021[[#This Row],[Secondary Project Activity]]) -> 0 | L54: =IF(Summary3[[#This Row],[Project ID]]=0,0,Q4_2021[[#This Row],[Project Type]]) -> Original | M54: =IF(Summary3[[#This Row],[Project ID]]=0,0,Q4_2021[[#This Row],[Project Status]]) -> Completed – project complete | N54: =IF(Summary3[[#This Row],[Project ID]]=0,0,Q4_2021[[#This Row],[Forecasted Financial Completion Date]]) -> 2022-03-31 | O54: =IF(Summary3[[#This Row],[Project ID]]=0,0,Q4_2021[[#This Row],[Actual Financial Completion]]) -> 2022-03-31 | P54: =IF(Summary3[[#This Row],[Project ID]]=0,0,Q4_2021[[#This Row],[Forecasted Practical Completion Date]]) -> 2022-03-31 | Q54: =IF(Summary3[[#This Row],[Project ID]]=0,0,Q4_2021[[#This Row],[Actual Practical Completion Date]]) -> 2022-03-31 | R54: =IF(Summary3[[#This Row],[Project ID]]=0,0,Q4_2021[[#This Row],[Evaluation Method]]) -> closure form/partner evaluation | S54: =IF(Summary3[[#This Row],[Project ID]]=0,0,Q4_2021[[#This Row],[Total Budget]]) -> 960071 | T54: =IF(Summary3[[#This Row],[Project ID]]=0,0,Q4_2021[[#This Row],[LGF Budget]]) -> 362995 | U54: =IF(Summary3[[#This Row],[Project ID]]=0,0,Q4_2021[[#This Row],[Public Sector Leverage]]) -> 597076 | V54: =IF(Summary3[[#This Row],[Project ID]]=0,0,Q4_2021[[#This Row],[Private Sector Leverage]]) -> 0 | W54: =IF(Summary3[[#This Row],[Project ID]]=0,0,Q4_2021[[#This Row],[Third Party Sector Leverage]]) -> 0 | X54: =IF(Summary3[[#This Row],[Project ID]]=0,0,Q4_2021[[#This Row],[LGF Outturn]]) -> 0 | Y54: =IF(Summary3[[#This Row],[Project ID]]=0,0,Q4_2021[[#This Row],[LGF Expenditure (as @ 31Mar21)]]) -> 0 | Z54: =IF(Summary3[[#This Row],[Project ID]]=0,0,Q4_2021[[#This Row],[Total non-LGF Expenditure (as @ 31Mar21)]]) -> 0 | AA54: 0 | AB54: 0 | AC54: 0 | AD54: 0 | AE54: 0 | AF54: 0 | AG54: 0 | AH54: 0 | AI54: 0 | AJ54: 0 | AK54: 0 | AL54: 0 | AM54: 0 | AN54: 0 | AO54: 0 | AP54: 0 | AQ54: 0 | AR54: 0 | AS54: 0 | AT54: 0
A55: =IFERROR(Q4_2021[[#This Row],[Project ID]],0) -> LGFLON61 | B55: =IF(Summary3[[#This Row],[Project ID]]=0,0,Q4_2021[[#This Row],[Project Name]]) -> LRF Abbey Wood | C55: =IF(Summary3[[#This Row],[Project ID]]=0,0,Q4_2021[[#This Row],[Project Description (100 words max)]]) -> This project will help create an emerging high street in Abbey Wood, a major strategic regeneration area with Crossrail and a Housing Zone leading to over 1,800 new homes delivered in the area from 2019-2024. The project will create an Abbey Wood High Street Incubator campus, using a series of modular units, and deliver complementary public realm improvements, planting and new green space around Coralline. The project will also deliver business advice and guidance, and a monthly curated events programme. The project complements activities at the Thames Innovation Centre which provides move-on space for medium-sized enterprises. | D55: =IF(Summary3[[#This Row],[Project ID]]=0,0,Q4_2021[[#This Row],[LEP Name]]) -> London LEP | E55: =IF(Summary3[[#This Row],[Project ID]]=0,0,Q4_2021[[#This Row],[Local Authority area the project is in]]) -> Royal Borough of Greenwich | F55: =IF(Summary3[[#This Row],[Project ID]]=0,0,Q4_2021[[#This Row],[Post Code]]) -> SE28 | G55: =IF(Summary3[[#This Row],[Project ID]]=0,0,Q4_2021[[#This Row],[Parliamentary Constituency]]) -> Erith & Thamesmead | H55: =IF(Summary3[[#This Row],[Project ID]]=0,0,Q4_2021[[#This Row],[Primary Project Type]]) -> Regeneration_Public_Realm | I55: =IF(Summary3[[#This Row],[Project ID]]=0,0,Q4_2021[[#This Row],[Primary Project Activity]]) -> 0 | J55: =IF(Summary3[[#This Row],[Project ID]]=0,0,Q4_2021[[#This Row],[Secondary Project Type]]) -> Other | K55: =IF(Summary3[[#This Row],[Project ID]]=0,0,Q4_2021[[#This Row],[Secondary Project Activity]]) -> 0 | L55: =IF(Summary3[[#This Row],[Project ID]]=0,0,Q4_2021[[#This Row],[Project Type]]) -> Original | M55: =IF(Summary3[[#This Row],[Project ID]]=0,0,Q4_2021[[#This Row],[Project Status]]) -> Project Withdrawn - No grant funding spent | N55: =IF(Summary3[[#This Row],[Project ID]]=0,0,Q4_2021[[#This Row],[Forecasted Financial Completion Date]]) -> 2019-03-30 | O55: =IF(Summary3[[#This Row],[Project ID]]=0,0,Q4_2021[[#This Row],[Actual Financial Completion]]) -> 2019-03-30 | P55: =IF(Summary3[[#This Row],[Project ID]]=0,0,Q4_2021[[#This Row],[Forecasted Practical Completion Date]]) -> 2019-03-30 | Q55: =IF(Summary3[[#This Row],[Project ID]]=0,0,Q4_2021[[#This Row],[Actual Practical Completion Date]]) -> 2019-03-30 | R55: =IF(Summary3[[#This Row],[Project ID]]=0,0,Q4_2021[[#This Row],[Evaluation Method]]) -> closure form/partner evaluation | S55: =IF(Summary3[[#This Row],[Project ID]]=0,0,Q4_2021[[#This Row],[Total Budget]]) -> 0 | T55: =IF(Summary3[[#This Row],[Project ID]]=0,0,Q4_2021[[#This Row],[LGF Budget]]) -> 0 | U55: =IF(Summary3[[#This Row],[Project ID]]=0,0,Q4_2021[[#This Row],[Public Sector Leverage]]) -> 0 | V55: =IF(Summary3[[#This Row],[Project ID]]=0,0,Q4_2021[[#This Row],[Private Sector Leverage]]) -> 0 | W55: =IF(Summary3[[#This Row],[Project ID]]=0,0,Q4_2021[[#This Row],[Third Party Sector Leverage]]) -> 0 | X55: =IF(Summary3[[#This Row],[Project ID]]=0,0,Q4_2021[[#This Row],[LGF Outturn]]) -> 0 | Y55: =IF(Summary3[[#This Row],[Project ID]]=0,0,Q4_2021[[#This Row],[LGF Expenditure (as @ 31Mar21)]]) -> 0 | Z55: =IF(Summary3[[#This Row],[Project ID]]=0,0,Q4_2021[[#This Row],[Total non-LGF Expenditure (as @ 31Mar21)]]) -> 0 | AA55: 0 | AB55: 0 | AC55: 0 | AD55: 0 | AE55: 0 | AF55: 0 | AG55: 0 | AH55: 0 | AI55: 0 | AJ55: 0 | AK55: 0 | AL55: 0 | AM55: 0 | AN55: 0 | AO55: 0 | AP55: 0 | AQ55: 0 | AR55: 0 | AS55: 0 | AT55: 0
A56: =IFERROR(Q4_2021[[#This Row],[Project ID]],0) -> LGFLON62 | B56: =IF(Summary3[[#This Row],[Project ID]]=0,0,Q4_2021[[#This Row],[Project Name]]) -> LRF BLACKHORSE LANE | C56: =IF(Summary3[[#This Row],[Project ID]]=0,0,Q4_2021[[#This Row],[Project Description (100 words max)]]) -> A council-led proposal to develop the 'Blackhorse Lane Enterprise Zone' which performs an important role in reaching employment targets in the Housing Zone. The project will see 3 buildings and 2,300m2 on Blackhorse Lane refit for creative industry use. Affordable studios, co-working space and business resource centre, with improved street forecourt and frontage in Uplands House; shared workshop with private bench space in Lockwood Unit 1; and private workshops, café and yardspace in Lockwood Unit 10. There is commitment for a minimum 4 year project life, with ambition to extend. The project builds on 'Big Creative Education' and Blackhorse Workshop in developing the creative sector, and there is strong evidence of demand for creative-sector workspace in the area. | D56: =IF(Summary3[[#This Row],[Project ID]]=0,0,Q4_2021[[#This Row],[LEP Name]]) -> London LEP | E56: =IF(Summary3[[#This Row],[Project ID]]=0,0,Q4_2021[[#This Row],[Local Authority area the project is in]]) -> London Borough of Waltham | F56: =IF(Summary3[[#This Row],[Project ID]]=0,0,Q4_2021[[#This Row],[Post Code]]) -> E17 6ND | G56: =IF(Summary3[[#This Row],[Project ID]]=0,0,Q4_2021[[#This Row],[Parliamentary Constituency]]) -> Walthamstow | H56: =IF(Summary3[[#This Row],[Project ID]]=0,0,Q4_2021[[#This Row],[Primary Project Type]]) -> Regeneration_Public_Realm | I56: =IF(Summary3[[#This Row],[Project ID]]=0,0,Q4_2021[[#This Row],[Primary Project Activity]]) -> 0 | J56: =IF(Summary3[[#This Row],[Project ID]]=0,0,Q4_2021[[#This Row],[Secondary Project Type]]) -> Other | K56: =IF(Summary3[[#This Row],[Project ID]]=0,0,Q4_2021[[#This Row],[Secondary Project Activity]]) -> 0 | L56: =IF(Summary3[[#This Row],[Project ID]]=0,0,Q4_2021[[#This Row],[Project Type]]) -> Original | M56: =IF(Summary3[[#This Row],[Project ID]]=0,0,Q4_2021[[#This Row],[Project Status]]) -> Project Withdrawn - No grant funding spent | N56: =IF(Summary3[[#This Row],[Project ID]]=0,0,Q4_2021[[#This Row],[Forecasted Financial Completion Date]]) -> 2019-03-30 | O56: =IF(Summary3[[#This Row],[Project ID]]=0,0,Q4_2021[[#This Row],[Actual Financial Completion]]) -> 2019-03-30 | P56: =IF(Summary3[[#This Row],[Project ID]]=0,0,Q4_2021[[#This Row],[Forecasted Practical Completion Date]]) -> 2019-03-30 | Q56: =IF(Summary3[[#This Row],[Project ID]]=0,0,Q4_2021[[#This Row],[Actual Practical Completion Date]]) -> 2019-03-30 | R56: =IF(Summary3[[#This Row],[Project ID]]=0,0,Q4_2021[[#This Row],[Evaluation Method]]) -> closure form/partner evaluation | S56: =IF(Summary3[[#This Row],[Project ID]]=0,0,Q4_2021[[#This Row],[Total Budget]]) -> 0 | T56: =IF(Summary3[[#This Row],[Project ID]]=0,0,Q4_2021[[#This Row],[LGF Budget]]) -> 0 | U56: =IF(Summary3[[#This Row],[Project ID]]=0,0,Q4_2021[[#This Row],[Public Sector Leverage]]) -> 0 | V56: =IF(Summary3[[#This Row],[Project ID]]=0,0,Q4_2021[[#This Row],[Private Sector Leverage]]) -> 0 | W56: =IF(Summary3[[#This Row],[Project ID]]=0,0,Q4_2021[[#This Row],[Third Party Sector Leverage]]) -> 0 | X56: =IF(Summary3[[#This Row],[Project ID]]=0,0,Q4_2021[[#This Row],[LGF Outturn]]) -> 0 | Y56: =IF(Summary3[[#This Row],[Project ID]]=0,0,Q4_2021[[#This Row],[LGF Expenditure (as @ 31Mar21)]]) -> 0 | Z56: =IF(Summary3[[#This Row],[Project ID]]=0,0,Q4_2021[[#This Row],[Total non-LGF Expenditure (as @ 31Mar21)]]) -> 0 | AA56: 0 | AB56: 0 | AC56: 0 | AD56: 0 | AE56: 0 | AF56: 0 | AG56: 0 | AH56: 0 | AI56: 0 | AJ56: 0 | AK56: 0 | AL56: 0 | AM56: 0 | AN56: 0 | AO56: 0 | AP56: 0 | AQ56: 0 | AR56: 0 | AS56: 0 | AT56: 0
A57: =IFERROR(Q4_2021[[#This Row],[Project ID]],0) -> LGFLON63 | B57: =IF(Summary3[[#This Row],[Project ID]]=0,0,Q4_2021[[#This Row],[Project Name]]) -> LRF DALSTON WORKS | C57: =IF(Summary3[[#This Row],[Project ID]]=0,0,Q4_2021[[#This Row],[Project Description (100 words max)]]) -> Dalston Works is led by Hackney Cooperative Developments. The project will focus on the Bradbury Street Workspaces site and see the improvement and intensification of workspaces, shopfronts flanking the south side of Gillett Square and the adjoining HCD’s Dalston Culture House development on the west side. Proposals will greatly increase the available workspace and, given that residential values continue to rise in this area, the business model locks in provision of low threshold enterprise space and the increased revenue expands the scale of outreach, skills and training delivered annually. | D57: =IF(Summary3[[#This Row],[Project ID]]=0,0,Q4_2021[[#This Row],[LEP Name]]) -> London LEP | E57: =IF(Summary3[[#This Row],[Project ID]]=0,0,Q4_2021[[#This Row],[Local Authority area the project is in]]) -> London Borough of Hackney | F57: =IF(Summary3[[#This Row],[Project ID]]=0,0,Q4_2021[[#This Row],[Post Code]]) -> E8 1HL | G57: =IF(Summary3[[#This Row],[Project ID]]=0,0,Q4_2021[[#This Row],[Parliamentary Constituency]]) -> Hackney South & Shoreditch | H57: =IF(Summary3[[#This Row],[Project ID]]=0,0,Q4_2021[[#This Row],[Primary Project Type]]) -> Regeneration_Public_Realm | I57: =IF(Summary3[[#This Row],[Project ID]]=0,0,Q4_2021[[#This Row],[Primary Project Activity]]) -> Other | J57: =IF(Summary3[[#This Row],[Project ID]]=0,0,Q4_2021[[#This Row],[Secondary Project Type]]) -> Other | K57: =IF(Summary3[[#This Row],[Project ID]]=0,0,Q4_2021[[#This Row],[Secondary Project Activity]]) -> 0 | L57: =IF(Summary3[[#This Row],[Project ID]]=0,0,Q4_2021[[#This Row],[Project Type]]) -> Original | M57: =IF(Summary3[[#This Row],[Project ID]]=0,0,Q4_2021[[#This Row],[Project Status]]) -> Completed – project complete | N57: =IF(Summary3[[#This Row],[Project ID]]=0,0,Q4_2021[[#This Row],[Forecasted Financial Completion Date]]) -> 2018-09-30 | O57: =IF(Summary3[[#This Row],[Project ID]]=0,0,Q4_2021[[#This Row],[Actual Financial Completion]]) -> 2018-09-30 | P57: =IF(Summary3[[#This Row],[Project ID]]=0,0,Q4_2021[[#This Row],[Forecasted Practical Completion Date]]) -> 2018-09-30 | Q57: =IF(Summary3[[#This Row],[Project ID]]=0,0,Q4_2021[[#This Row],[Actual Practical Completion Date]]) -> 2018-09-30 | R57: =IF(Summary3[[#This Row],[Project ID]]=0,0,Q4_2021[[#This Row],[Evaluation Method]]) -> closure form/partner evaluation | S57: =IF(Summary3[[#This Row],[Project ID]]=0,0,Q4_2021[[#This Row],[Total Budget]]) -> 3940000 | T57: =IF(Summary3[[#This Row],[Project ID]]=0,0,Q4_2021[[#This Row],[LGF Budget]]) -> 850000 | U57: =IF(Summary3[[#This Row],[Project ID]]=0,0,Q4_2021[[#This Row],[Public Sector Leverage]]) -> 0 | V57: =IF(Summary3[[#This Row],[Project ID]]=0,0,Q4_2021[[#This Row],[Private Sector Leverage]]) -> 0 | W57: =IF(Summary3[[#This Row],[Project ID]]=0,0,Q4_2021[[#This Row],[Third Party Sector Leverage]]) -> 3090000 | X57: =IF(Summary3[[#This Row],[Project ID]]=0,0,Q4_2021[[#This Row],[LGF Outturn]]) -> 0 | Y57: =IF(Summary3[[#This Row],[Project ID]]=0,0,Q4_2021[[#This Row],[LGF Expenditure (as @ 31Mar21)]]) -> 0 | Z57: =IF(Summary3[[#This Row],[Project ID]]=0,0,Q4_2021[[#This Row],[Total non-LGF Expenditure (as @ 31Mar21)]]) -> 0 | AA57: 0 | AB57: 0 | AC57: 0 | AD57: 0 | AE57: 0 | AF57: 0 | AG57: 0 | AH57: 0 | AI57: 0 | AJ57: 0 | AK57: 0 | AL57: 0 | AM57: 0 | AN57: 0 | AO57: 0 | AP57: 0 | AQ57: 0 | AR57: 0 | AS57: 0 | AT57: 0
A58: =IFERROR(Q4_2021[[#This Row],[Project ID]],0) -> LGFLON64 | B58: =IF(Summary3[[#This Row],[Project ID]]=0,0,Q4_2021[[#This Row],[Project Name]]) -> LRF SOUTH KILBURN EN | C58: =IF(Summary3[[#This Row],[Project ID]]=0,0,Q4_2021[[#This Row],[Project Description (100 words max)]]) -> The project involves the construction, establishment and long term management of an innovative workspace / community scheme, the Enterprise Hub, which is aimed at serving both the local community and businesses by addressing the lack of good quality, small workspace provision in the borough. It will include a mix of creative workspaces, and dedicated self-contained office suites available at market and affordable rents, operated by the South Kilburn Trust. ity. The project will also include good quality community space, which can be booked and used by both the business occupiers and the local people for events and cultural gatherings. | D58: =IF(Summary3[[#This Row],[Project ID]]=0,0,Q4_2021[[#This Row],[LEP Name]]) -> London LEP | E58: =IF(Summary3[[#This Row],[Project ID]]=0,0,Q4_2021[[#This Row],[Local Authority area the project is in]]) -> London Borough of Brent | F58: =IF(Summary3[[#This Row],[Project ID]]=0,0,Q4_2021[[#This Row],[Post Code]]) -> NW6 5HE | G58: =IF(Summary3[[#This Row],[Project ID]]=0,0,Q4_2021[[#This Row],[Parliamentary Constituency]]) -> Queen's Park & Maida Vale | H58: =IF(Summary3[[#This Row],[Project ID]]=0,0,Q4_2021[[#This Row],[Primary Project Type]]) -> Regeneration_Public_Realm | I58: =IF(Summary3[[#This Row],[Project ID]]=0,0,Q4_2021[[#This Row],[Primary Project Activity]]) -> 0 | J58: =IF(Summary3[[#This Row],[Project ID]]=0,0,Q4_2021[[#This Row],[Secondary Project Type]]) -> Other | K58: =IF(Summary3[[#This Row],[Project ID]]=0,0,Q4_2021[[#This Row],[Secondary Project Activity]]) -> 0 | L58: =IF(Summary3[[#This Row],[Project ID]]=0,0,Q4_2021[[#This Row],[Project Type]]) -> Original | M58: =IF(Summary3[[#This Row],[Project ID]]=0,0,Q4_2021[[#This Row],[Project Status]]) -> Project Withdrawn - No grant funding spent | N58: =IF(Summary3[[#This Row],[Project ID]]=0,0,Q4_2021[[#This Row],[Forecasted Financial Completion Date]]) -> 2019-03-30 | O58: =IF(Summary3[[#This Row],[Project ID]]=0,0,Q4_2021[[#This Row],[Actual Financial Completion]]) -> 2019-03-30 | P58: =IF(Summary3[[#This Row],[Project ID]]=0,0,Q4_2021[[#This Row],[Forecasted Practical Completion Date]]) -> 2019-03-30 | Q58: =IF(Summary3[[#This Row],[Project ID]]=0,0,Q4_2021[[#This Row],[Actual Practical Completion Date]]) -> 2019-03-30 | R58: =IF(Summary3[[#This Row],[Project ID]]=0,0,Q4_2021[[#This Row],[Evaluation Method]]) -> closure form/partner evaluation | S58: =IF(Summary3[[#This Row],[Project ID]]=0,0,Q4_2021[[#This Row],[Total Budget]]) -> 0 | T58: =IF(Summary3[[#This Row],[Project ID]]=0,0,Q4_2021[[#This Row],[LGF Budget]]) -> 0 | U58: =IF(Summary3[[#This Row],[Project ID]]=0,0,Q4_2021[[#This Row],[Public Sector Leverage]]) -> 0 | V58: =IF(Summary3[[#This Row],[Project ID]]=0,0,Q4_2021[[#This Row],[Private Sector Leverage]]) -> 0 | W58: =IF(Summary3[[#This Row],[Project ID]]=0,0,Q4_2021[[#This Row],[Third Party Sector Leverage]]) -> 0 | X58: =IF(Summary3[[#This Row],[Project ID]]=0,0,Q4_2021[[#This Row],[LGF Outturn]]) -> 0 | Y58: =IF(Summary3[[#This Row],[Project ID]]=0,0,Q4_2021[[#This Row],[LGF Expenditure (as @ 31Mar21)]]) -> 0 | Z58: =IF(Summary3[[#This Row],[Project ID]]=0,0,Q4_2021[[#This Row],[Total non-LGF Expenditure (as @ 31Mar21)]]) -> 0 | AA58: 0 | AB58: 0 | AC58: 0 | AD58: 0 | AE58: 0 | AF58: 0 | AG58: 0 | AH58: 0 | AI58: 0 | AJ58: 0 | AK58: 0 | AL58: 0 | AM58: 0 | AN58: 0 | AO58: 0 | AP58: 0 | AQ58: 0 | AR58: 0 | AS58: 0 | AT58: 0
A59: =IFERROR(Q4_2021[[#This Row],[Project ID]],0) -> LGFLON65 | B59: =IF(Summary3[[#This Row],[Project ID]]=0,0,Q4_2021[[#This Row],[Project Name]]) -> Air Quality - Hammersmith - | C59: =IF(Summary3[[#This Row],[Project ID]]=0,0,Q4_2021[[#This Row],[Project Description (100 words max)]]) -> Hammersmith Business Low Emission Neighbourhood | D59: =IF(Summary3[[#This Row],[Project ID]]=0,0,Q4_2021[[#This Row],[LEP Name]]) -> London LEP | E59: =IF(Summary3[[#This Row],[Project ID]]=0,0,Q4_2021[[#This Row],[Local Authority area the project is in]]) -> London Borough of Hammersmith & Fulham | F59: =IF(Summary3[[#This Row],[Project ID]]=0,0,Q4_2021[[#This Row],[Post Code]]) -> W6 8AB | G59: =IF(Summary3[[#This Row],[Project ID]]=0,0,Q4_2021[[#This Row],[Parliamentary Constituency]]) -> Hammersmtih & Chiswick | H59: =IF(Summary3[[#This Row],[Project ID]]=0,0,Q4_2021[[#This Row],[Primary Project Type]]) -> Other | I59: =IF(Summary3[[#This Row],[Project ID]]=0,0,Q4_2021[[#This Row],[Primary Project Activity]]) -> 0 | J59: =IF(Summary3[[#This Row],[Project ID]]=0,0,Q4_2021[[#This Row],[Secondary Project Type]]) -> Other | K59: =IF(Summary3[[#This Row],[Project ID]]=0,0,Q4_2021[[#This Row],[Secondary Project Activity]]) -> 0 | L59: =IF(Summary3[[#This Row],[Project ID]]=0,0,Q4_2021[[#This Row],[Project Type]]) -> Original | M59: =IF(Summary3[[#This Row],[Project ID]]=0,0,Q4_2021[[#This Row],[Project Status]]) -> Completed – project complete | N59: =IF(Summary3[[#This Row],[Project ID]]=0,0,Q4_2021[[#This Row],[Forecasted Financial Completion Date]]) -> 2021-03-30 | O59: =IF(Summary3[[#This Row],[Project ID]]=0,0,Q4_2021[[#This Row],[Actual Financial Completion]]) -> 2021-03-30 | P59: =IF(Summary3[[#This Row],[Project ID]]=0,0,Q4_2021[[#This Row],[Forecasted Practical Completion Date]]) -> 2021-03-30 | Q59: =IF(Summary3[[#This Row],[Project ID]]=0,0,Q4_2021[[#This Row],[Actual Practical Completion Date]]) -> 2021-03-30 | R59: =IF(Summary3[[#This Row],[Project ID]]=0,0,Q4_2021[[#This Row],[Evaluation Method]]) -> closure form/partner evaluation | S59: =IF(Summary3[[#This Row],[Project ID]]=0,0,Q4_2021[[#This Row],[Total Budget]]) -> 366000 | T59: =IF(Summary3[[#This Row],[Project ID]]=0,0,Q4_2021[[#This Row],[LGF Budget]]) -> 196000 | U59: =IF(Summary3[[#This Row],[Project ID]]=0,0,Q4_2021[[#This Row],[Public Sector Leverage]]) -> 170000 | V59: =IF(Summary3[[#This Row],[Project ID]]=0,0,Q4_2021[[#This Row],[Private Sector Leverage]]) -> 0 | W59: =IF(Summary3[[#This Row],[Project ID]]=0,0,Q4_2021[[#This Row],[Third Party Sector Leverage]]) -> 0 | X59: =IF(Summary3[[#This Row],[Project ID]]=0,0,Q4_2021[[#This Row],[LGF Outturn]]) -> 0 | Y59: =IF(Summary3[[#This Row],[Project ID]]=0,0,Q4_2021[[#This Row],[LGF Expenditure (as @ 31Mar21)]]) -> 196000 | Z59: =IF(Summary3[[#This Row],[Project ID]]=0,0,Q4_2021[[#This Row],[Total non-LGF Expenditure (as @ 31Mar21)]]) -> 170000 | AA59: 0 | AB59: 0 | AC59: 0 | AD59: 0 | AE59: 0 | AF59: 0 | AG59: 0 | AH59: 0 | AI59: 0 | AJ59: 0 | AK59: 0 | AL59: 0 | AM59: 0 | AN59: 0 | AO59: 0 | AP59: 0 | AQ59: 0 | AR59: 0 | AS59: 0 | AT59: 0
A60: =IFERROR(Q4_2021[[#This Row],[Project ID]],0) -> LGFLON66 | B60: =IF(Summary3[[#This Row],[Project ID]]=0,0,Q4_2021[[#This Row],[Project Name]]) -> Air Quality - Homerton Business - | C60: =IF(Summary3[[#This Row],[Project ID]]=0,0,Q4_2021[[#This Row],[Project Description (100 words max)]]) -> Homerton Business Low Emission Neighbourhood | D60: =IF(Summary3[[#This Row],[Project ID]]=0,0,Q4_2021[[#This Row],[LEP Name]]) -> London LEP | E60: =IF(Summary3[[#This Row],[Project ID]]=0,0,Q4_2021[[#This Row],[Local Authority area the project is in]]) -> London Borough of Hackney | F60: =IF(Summary3[[#This Row],[Project ID]]=0,0,Q4_2021[[#This Row],[Post Code]]) -> E9 6SR | G60: =IF(Summary3[[#This Row],[Project ID]]=0,0,Q4_2021[[#This Row],[Parliamentary Constituency]]) -> Hackney South & Shoreditch | H60: =IF(Summary3[[#This Row],[Project ID]]=0,0,Q4_2021[[#This Row],[Primary Project Type]]) -> Other | I60: =IF(Summary3[[#This Row],[Project ID]]=0,0,Q4_2021[[#This Row],[Primary Project Activity]]) -> 0 | J60: =IF(Summary3[[#This Row],[Project ID]]=0,0,Q4_2021[[#This Row],[Secondary Project Type]]) -> Other | K60: =IF(Summary3[[#This Row],[Project ID]]=0,0,Q4_2021[[#This Row],[Secondary Project Activity]]) -> 0 | L60: =IF(Summary3[[#This Row],[Project ID]]=0,0,Q4_2021[[#This Row],[Project Type]]) -> Original | M60: =IF(Summary3[[#This Row],[Project ID]]=0,0,Q4_2021[[#This Row],[Project Status]]) -> Completed – project complete | N60: =IF(Summary3[[#This Row],[Project ID]]=0,0,Q4_2021[[#This Row],[Forecasted Financial Completion Date]]) -> 2021-03-30 | O60: =IF(Summary3[[#This Row],[Project ID]]=0,0,Q4_2021[[#This Row],[Actual Financial Completion]]) -> 2021-03-30 | P60: =IF(Summary3[[#This Row],[Project ID]]=0,0,Q4_2021[[#This Row],[Forecasted Practical Completion Date]]) -> 2021-03-30 | Q60: =IF(Summary3[[#This Row],[Project ID]]=0,0,Q4_2021[[#This Row],[Actual Practical Completion Date]]) -> 2021-03-30 | R60: =IF(Summary3[[#This Row],[Project ID]]=0,0,Q4_2021[[#This Row],[Evaluation Method]]) -> closure form/partner evaluation | S60: =IF(Summary3[[#This Row],[Project ID]]=0,0,Q4_2021[[#This Row],[Total Budget]]) -> 131865 | T60: =IF(Summary3[[#This Row],[Project ID]]=0,0,Q4_2021[[#This Row],[LGF Budget]]) -> 102312 | U60: =IF(Summary3[[#This Row],[Project ID]]=0,0,Q4_2021[[#This Row],[Public Sector Leverage]]) -> 29553 | V60: =IF(Summary3[[#This Row],[Project ID]]=0,0,Q4_2021[[#This Row],[Private Sector Leverage]]) -> 0 | W60: =IF(Summary3[[#This Row],[Project ID]]=0,0,Q4_2021[[#This Row],[Third Party Sector Leverage]]) -> 0 | X60: =IF(Summary3[[#This Row],[Project ID]]=0,0,Q4_2021[[#This Row],[LGF Outturn]]) -> 0 | Y60: =IF(Summary3[[#This Row],[Project ID]]=0,0,Q4_2021[[#This Row],[LGF Expenditure (as @ 31Mar21)]]) -> 102312 | Z60: =IF(Summary3[[#This Row],[Project ID]]=0,0,Q4_2021[[#This Row],[Total non-LGF Expenditure (as @ 31Mar21)]]) -> 29553 | AA60: 0 | AB60: 0 | AC60: 0 | AD60: 0 | AE60: 0 | AF60: 0 | AG60: 0 | AH60: 0 | AI60: 0 | AJ60: 0 | AK60: 0 | AL60: 0 | AM60: 0 | AN60: 0 | AO60: 0 | AP60: 0 | AQ60: 0 | AR60: 0 | AS60: 0 | AT60: 0
A61: =IFERROR(Q4_2021[[#This Row],[Project ID]],0) -> LGFLON67 | B61: =IF(Summary3[[#This Row],[Project ID]]=0,0,Q4_2021[[#This Row],[Project Name]]) -> Air Quality - Archway Business - | C61: =IF(Summary3[[#This Row],[Project ID]]=0,0,Q4_2021[[#This Row],[Project Description (100 words max)]]) -> Archway Business Low Emission Neighbourhood | D61: =IF(Summary3[[#This Row],[Project ID]]=0,0,Q4_2021[[#This Row],[LEP Name]]) -> London LEP | E61: =IF(Summary3[[#This Row],[Project ID]]=0,0,Q4_2021[[#This Row],[Local Authority area the project is in]]) -> London Borough of Islington | F61: =IF(Summary3[[#This Row],[Project ID]]=0,0,Q4_2021[[#This Row],[Post Code]]) -> N19 5RQ | G61: =IF(Summary3[[#This Row],[Project ID]]=0,0,Q4_2021[[#This Row],[Parliamentary Constituency]]) -> Islington North | H61: =IF(Summary3[[#This Row],[Project ID]]=0,0,Q4_2021[[#This Row],[Primary Project Type]]) -> Other | I61: =IF(Summary3[[#This Row],[Project ID]]=0,0,Q4_2021[[#This Row],[Primary Project Activity]]) -> 0 | J61: =IF(Summary3[[#This Row],[Project ID]]=0,0,Q4_2021[[#This Row],[Secondary Project Type]]) -> Other | K61: =IF(Summary3[[#This Row],[Project ID]]=0,0,Q4_2021[[#This Row],[Secondary Project Activity]]) -> 0 | L61: =IF(Summary3[[#This Row],[Project ID]]=0,0,Q4_2021[[#This Row],[Project Type]]) -> Original | M61: =IF(Summary3[[#This Row],[Project ID]]=0,0,Q4_2021[[#This Row],[Project Status]]) -> Completed – project complete | N61: =IF(Summary3[[#This Row],[Project ID]]=0,0,Q4_2021[[#This Row],[Forecasted Financial Completion Date]]) -> 2021-03-30 | O61: =IF(Summary3[[#This Row],[Project ID]]=0,0,Q4_2021[[#This Row],[Actual Financial Completion]]) -> 2021-03-30 | P61: =IF(Summary3[[#This Row],[Project ID]]=0,0,Q4_2021[[#This Row],[Forecasted Practical Completion Date]]) -> 2021-03-30 | Q61: =IF(Summary3[[#This Row],[Project ID]]=0,0,Q4_2021[[#This Row],[Actual Practical Completion Date]]) -> 2021-03-30 | R61: =IF(Summary3[[#This Row],[Project ID]]=0,0,Q4_2021[[#This Row],[Evaluation Method]]) -> closure form/partner evaluation | S61: =IF(Summary3[[#This Row],[Project ID]]=0,0,Q4_2021[[#This Row],[Total Budget]]) -> 395873 | T61: =IF(Summary3[[#This Row],[Project ID]]=0,0,Q4_2021[[#This Row],[LGF Budget]]) -> 159657 | U61: =IF(Summary3[[#This Row],[Project ID]]=0,0,Q4_2021[[#This Row],[Public Sector Leverage]]) -> 236216 | V61: =IF(Summary3[[#This Row],[Project ID]]=0,0,Q4_2021[[#This Row],[Private Sector Leverage]]) -> 0 | W61: =IF(Summary3[[#This Row],[Project ID]]=0,0,Q4_2021[[#This Row],[Third Party Sector Leverage]]) -> 0 | X61: =IF(Summary3[[#This Row],[Project ID]]=0,0,Q4_2021[[#This Row],[LGF Outturn]]) -> 0 | Y61: =IF(Summary3[[#This Row],[Project ID]]=0,0,Q4_2021[[#This Row],[LGF Expenditure (as @ 31Mar21)]]) -> 159657 | Z61: =IF(Summary3[[#This Row],[Project ID]]=0,0,Q4_2021[[#This Row],[Total non-LGF Expenditure (as @ 31Mar21)]]) -> 236216 | AA61: 0 | AB61: 0 | AC61: 0 | AD61: 0 | AE61: 0 | AF61: 0 | AG61: 0 | AH61: 0 | AI61: 0 | AJ61: 0 | AK61: 0 | AL61: 0 | AM61: 0 | AN61: 0 | AO61: 0 | AP61: 0 | AQ61: 0 | AR61: 0 | AS61: 0 | AT61: 0
A62: =IFERROR(Q4_2021[[#This Row],[Project ID]],0) -> LGFLON68 | B62: =IF(Summary3[[#This Row],[Project ID]]=0,0,Q4_2021[[#This Row],[Project Name]]) -> Air Quality - Northbank Business - | C62: =IF(Summary3[[#This Row],[Project ID]]=0,0,Q4_2021[[#This Row],[Project Description (100 words max)]]) -> Northbank Business Low Emission Neighbourhood | D62: =IF(Summary3[[#This Row],[Project ID]]=0,0,Q4_2021[[#This Row],[LEP Name]]) -> London LEP | E62: =IF(Summary3[[#This Row],[Project ID]]=0,0,Q4_2021[[#This Row],[Local Authority area the project is in]]) -> City of Westminster | F62: =IF(Summary3[[#This Row],[Project ID]]=0,0,Q4_2021[[#This Row],[Post Code]]) -> WC2R 1LA | G62: =IF(Summary3[[#This Row],[Project ID]]=0,0,Q4_2021[[#This Row],[Parliamentary Constituency]]) -> Cities of London & Westminster | H62: =IF(Summary3[[#This Row],[Project ID]]=0,0,Q4_2021[[#This Row],[Primary Project Type]]) -> Other | I62: =IF(Summary3[[#This Row],[Project ID]]=0,0,Q4_2021[[#This Row],[Primary Project Activity]]) -> 0 | J62: =IF(Summary3[[#This Row],[Project ID]]=0,0,Q4_2021[[#This Row],[Secondary Project Type]]) -> Other | K62: =IF(Summary3[[#This Row],[Project ID]]=0,0,Q4_2021[[#This Row],[Secondary Project Activity]]) -> 0 | L62: =IF(Summary3[[#This Row],[Project ID]]=0,0,Q4_2021[[#This Row],[Project Type]]) -> Original | M62: =IF(Summary3[[#This Row],[Project ID]]=0,0,Q4_2021[[#This Row],[Project Status]]) -> Completed – project complete | N62: =IF(Summary3[[#This Row],[Project ID]]=0,0,Q4_2021[[#This Row],[Forecasted Financial Completion Date]]) -> 2021-03-30 | O62: =IF(Summary3[[#This Row],[Project ID]]=0,0,Q4_2021[[#This Row],[Actual Financial Completion]]) -> 2021-03-30 | P62: =IF(Summary3[[#This Row],[Project ID]]=0,0,Q4_2021[[#This Row],[Forecasted Practical Completion Date]]) -> 2021-03-30 | Q62: =IF(Summary3[[#This Row],[Project ID]]=0,0,Q4_2021[[#This Row],[Actual Practical Completion Date]]) -> 2021-03-30 | R62: =IF(Summary3[[#This Row],[Project ID]]=0,0,Q4_2021[[#This Row],[Evaluation Method]]) -> closure form/partner evaluation | S62: =IF(Summary3[[#This Row],[Project ID]]=0,0,Q4_2021[[#This Row],[Total Budget]]) -> 478000 | T62: =IF(Summary3[[#This Row],[Project ID]]=0,0,Q4_2021[[#This Row],[LGF Budget]]) -> 389000 | U62: =IF(Summary3[[#This Row],[Project ID]]=0,0,Q4_2021[[#This Row],[Public Sector Leverage]]) -> 89000 | V62: =IF(Summary3[[#This Row],[Project ID]]=0,0,Q4_2021[[#This Row],[Private Sector Leverage]]) -> 0 | W62: =IF(Summary3[[#This Row],[Project ID]]=0,0,Q4_2021[[#This Row],[Third Party Sector Leverage]]) -> 0 | X62: =IF(Summary3[[#This Row],[Project ID]]=0,0,Q4_2021[[#This Row],[LGF Outturn]]) -> 0 | Y62: =IF(Summary3[[#This Row],[Project ID]]=0,0,Q4_2021[[#This Row],[LGF Expenditure (as @ 31Mar21)]]) -> 389000 | Z62: =IF(Summary3[[#This Row],[Project ID]]=0,0,Q4_2021[[#This Row],[Total non-LGF Expenditure (as @ 31Mar21)]]) -> 89000 | AA62: 0 | AB62: 0 | AC62: 0 | AD62: 0 | AE62: 0 | AF62: 0 | AG62: 0 | AH62: 0 | AI62: 0 | AJ62: 0 | AK62: 0 | AL62: 0 | AM62: 0 | AN62: 0 | AO62: 0 | AP62: 0 | AQ62: 0 | AR62: 0 | AS62: 0 | AT62: 0
A63: =IFERROR(Q4_2021[[#This Row],[Project ID]],0) -> LGFLON69 | B63: =IF(Summary3[[#This Row],[Project ID]]=0,0,Q4_2021[[#This Row],[Project Name]]) -> Air Quality - Borough High Street - | C63: =IF(Summary3[[#This Row],[Project ID]]=0,0,Q4_2021[[#This Row],[Project Description (100 words max)]]) -> Borough High Street Business Low Emission Neighbourhood | D63: =IF(Summary3[[#This Row],[Project ID]]=0,0,Q4_2021[[#This Row],[LEP Name]]) -> London LEP | E63: =IF(Summary3[[#This Row],[Project ID]]=0,0,Q4_2021[[#This Row],[Local Authority area the project is in]]) -> London Borough of Southwark | F63: =IF(Summary3[[#This Row],[Project ID]]=0,0,Q4_2021[[#This Row],[Post Code]]) -> SE1 0FD | G63: =IF(Summary3[[#This Row],[Project ID]]=0,0,Q4_2021[[#This Row],[Parliamentary Constituency]]) -> Bermondsey & Old Southwark | H63: =IF(Summary3[[#This Row],[Project ID]]=0,0,Q4_2021[[#This Row],[Primary Project Type]]) -> Other | I63: =IF(Summary3[[#This Row],[Project ID]]=0,0,Q4_2021[[#This Row],[Primary Project Activity]]) -> 0 | J63: =IF(Summary3[[#This Row],[Project ID]]=0,0,Q4_2021[[#This Row],[Secondary Project Type]]) -> Other | K63: =IF(Summary3[[#This Row],[Project ID]]=0,0,Q4_2021[[#This Row],[Secondary Project Activity]]) -> 0 | L63: =IF(Summary3[[#This Row],[Project ID]]=0,0,Q4_2021[[#This Row],[Project Type]]) -> Original | M63: =IF(Summary3[[#This Row],[Project ID]]=0,0,Q4_2021[[#This Row],[Project Status]]) -> Completed – project complete | N63: =IF(Summary3[[#This Row],[Project ID]]=0,0,Q4_2021[[#This Row],[Forecasted Financial Completion Date]]) -> 2021-03-30 | O63: =IF(Summary3[[#This Row],[Project ID]]=0,0,Q4_2021[[#This Row],[Actual Financial Completion]]) -> 2021-03-30 | P63: =IF(Summary3[[#This Row],[Project ID]]=0,0,Q4_2021[[#This Row],[Forecasted Practical Completion Date]]) -> 2021-03-30 | Q63: =IF(Summary3[[#This Row],[Project ID]]=0,0,Q4_2021[[#This Row],[Actual Practical Completion Date]]) -> 2021-03-30 | R63: =IF(Summary3[[#This Row],[Project ID]]=0,0,Q4_2021[[#This Row],[Evaluation Method]]) -> closure form/partner evaluation | S63: =IF(Summary3[[#This Row],[Project ID]]=0,0,Q4_2021[[#This Row],[Total Budget]]) -> 201002 | T63: =IF(Summary3[[#This Row],[Project ID]]=0,0,Q4_2021[[#This Row],[LGF Budget]]) -> 128687 | U63: =IF(Summary3[[#This Row],[Project ID]]=0,0,Q4_2021[[#This Row],[Public Sector Leverage]]) -> 72315 | V63: =IF(Summary3[[#This Row],[Project ID]]=0,0,Q4_2021[[#This Row],[Private Sector Leverage]]) -> 0 | W63: =IF(Summary3[[#This Row],[Project ID]]=0,0,Q4_2021[[#This Row],[Third Party Sector Leverage]]) -> 0 | X63: =IF(Summary3[[#This Row],[Project ID]]=0,0,Q4_2021[[#This Row],[LGF Outturn]]) -> 0 | Y63: =IF(Summary3[[#This Row],[Project ID]]=0,0,Q4_2021[[#This Row],[LGF Expenditure (as @ 31Mar21)]]) -> 128687 | Z63: =IF(Summary3[[#This Row],[Project ID]]=0,0,Q4_2021[[#This Row],[Total non-LGF Expenditure (as @ 31Mar21)]]) -> 72315 | AA63: 0 | AB63: 0 | AC63: 0 | AD63: 0 | AE63: 0 | AF63: 0 | AG63: 0 | AH63: 0 | AI63: 0 | AJ63: 0 | AK63: 0 | AL63: 0 | AM63: 0 | AN63: 0 | AO63: 0 | AP63: 0 | AQ63: 0 | AR63: 0 | AS63: 0 | AT63: 0
A64: =IFERROR(Q4_2021[[#This Row],[Project ID]],0) -> LGFLON70 | B64: =IF(Summary3[[#This Row],[Project ID]]=0,0,Q4_2021[[#This Row],[Project Name]]) -> Air Quality - Euston Business - | C64: =IF(Summary3[[#This Row],[Project ID]]=0,0,Q4_2021[[#This Row],[Project Description (100 words max)]]) -> Euston Business Low Emission Neighbourhood | D64: =IF(Summary3[[#This Row],[Project ID]]=0,0,Q4_2021[[#This Row],[LEP Name]]) -> London LEP | E64: =IF(Summary3[[#This Row],[Project ID]]=0,0,Q4_2021[[#This Row],[Local Authority area the project is in]]) -> London Borough of Camden | F64: =IF(Summary3[[#This Row],[Project ID]]=0,0,Q4_2021[[#This Row],[Post Code]]) -> NW1 8NJ | G64: =IF(Summary3[[#This Row],[Project ID]]=0,0,Q4_2021[[#This Row],[Parliamentary Constituency]]) -> Holborn and St Pancras | H64: =IF(Summary3[[#This Row],[Project ID]]=0,0,Q4_2021[[#This Row],[Primary Project Type]]) -> Other | I64: =IF(Summary3[[#This Row],[Project ID]]=0,0,Q4_2021[[#This Row],[Primary Project Activity]]) -> 0 | J64: =IF(Summary3[[#This Row],[Project ID]]=0,0,Q4_2021[[#This Row],[Secondary Project Type]]) -> Other | K64: =IF(Summary3[[#This Row],[Project ID]]=0,0,Q4_2021[[#This Row],[Secondary Project Activity]]) -> 0 | L64: =IF(Summary3[[#This Row],[Project ID]]=0,0,Q4_2021[[#This Row],[Project Type]]) -> Original | M64: =IF(Summary3[[#This Row],[Project ID]]=0,0,Q4_2021[[#This Row],[Project Status]]) -> Completed – project complete | N64: =IF(Summary3[[#This Row],[Project ID]]=0,0,Q4_2021[[#This Row],[Forecasted Financial Completion Date]]) -> 2021-03-30 | O64: =IF(Summary3[[#This Row],[Project ID]]=0,0,Q4_2021[[#This Row],[Actual Financial Completion]]) -> 2021-03-30 | P64: =IF(Summary3[[#This Row],[Project ID]]=0,0,Q4_2021[[#This Row],[Forecasted Practical Completion Date]]) -> 2021-03-30 | Q64: =IF(Summary3[[#This Row],[Project ID]]=0,0,Q4_2021[[#This Row],[Actual Practical Completion Date]]) -> 2021-03-30 | R64: =IF(Summary3[[#This Row],[Project ID]]=0,0,Q4_2021[[#This Row],[Evaluation Method]]) -> closure form/partner evaluation | S64: =IF(Summary3[[#This Row],[Project ID]]=0,0,Q4_2021[[#This Row],[Total Budget]]) -> 199037 | T64: =IF(Summary3[[#This Row],[Project ID]]=0,0,Q4_2021[[#This Row],[LGF Budget]]) -> 93687 | U64: =IF(Summary3[[#This Row],[Project ID]]=0,0,Q4_2021[[#This Row],[Public Sector Leverage]]) -> 105350 | V64: =IF(Summary3[[#This Row],[Project ID]]=0,0,Q4_2021[[#This Row],[Private Sector Leverage]]) -> 0 | W64: =IF(Summary3[[#This Row],[Project ID]]=0,0,Q4_2021[[#This Row],[Third Party Sector Leverage]]) -> 0 | X64: =IF(Summary3[[#This Row],[Project ID]]=0,0,Q4_2021[[#This Row],[LGF Outturn]]) -> 0 | Y64: =IF(Summary3[[#This Row],[Project ID]]=0,0,Q4_2021[[#This Row],[LGF Expenditure (as @ 31Mar21)]]) -> 93687 | Z64: =IF(Summary3[[#This Row],[Project ID]]=0,0,Q4_2021[[#This Row],[Total non-LGF Expenditure (as @ 31Mar21)]]) -> 105350 | AA64: 0 | AB64: 0 | AC64: 0 | AD64: 0 | AE64: 0 | AF64: 0 | AG64: 0 | AH64: 0 | AI64: 0 | AJ64: 0 | AK64: 0 | AL64: 0 | AM64: 0 | AN64: 0 | AO64: 0 | AP64: 0 | AQ64: 0 | AR64: 0 | AS64: 0 | AT64: 0
A65: =IFERROR(Q4_2021[[#This Row],[Project ID]],0) -> LGFLON71 | B65: =IF(Summary3[[#This Row],[Project ID]]=0,0,Q4_2021[[#This Row],[Project Name]]) -> Digital - Strand 2: Digital Bootcamp | C65: =IF(Summary3[[#This Row],[Project ID]]=0,0,Q4_2021[[#This Row],[Project Description (100 words max)]]) -> Digital Bootcamp offers a range of digital and soft skills training, coupled with work experience in the tech sector. | D65: =IF(Summary3[[#This Row],[Project ID]]=0,0,Q4_2021[[#This Row],[LEP Name]]) -> London LEP | E65: =IF(Summary3[[#This Row],[Project ID]]=0,0,Q4_2021[[#This Row],[Local Authority area the project is in]]) -> Royal Borough of Greenwich | F65: =IF(Summary3[[#This Row],[Project ID]]=0,0,Q4_2021[[#This Row],[Post Code]]) -> SE122AA | G65: =IF(Summary3[[#This Row],[Project ID]]=0,0,Q4_2021[[#This Row],[Parliamentary Constituency]]) -> Eltham & Chislehurst | H65: =IF(Summary3[[#This Row],[Project ID]]=0,0,Q4_2021[[#This Row],[Primary Project Type]]) -> Innovation | I65: =IF(Summary3[[#This Row],[Project ID]]=0,0,Q4_2021[[#This Row],[Primary Project Activity]]) -> Other | J65: =IF(Summary3[[#This Row],[Project ID]]=0,0,Q4_2021[[#This Row],[Secondary Project Type]]) -> Other | K65: =IF(Summary3[[#This Row],[Project ID]]=0,0,Q4_2021[[#This Row],[Secondary Project Activity]]) -> 0 | L65: =IF(Summary3[[#This Row],[Project ID]]=0,0,Q4_2021[[#This Row],[Project Type]]) -> Original | M65: =IF(Summary3[[#This Row],[Project ID]]=0,0,Q4_2021[[#This Row],[Project Status]]) -> Completed – project complete | N65: =IF(Summary3[[#This Row],[Project ID]]=0,0,Q4_2021[[#This Row],[Forecasted Financial Completion Date]]) -> 2021-03-31 | O65: =IF(Summary3[[#This Row],[Project ID]]=0,0,Q4_2021[[#This Row],[Actual Financial Completion]]) -> 2022-03-31 | P65: =IF(Summary3[[#This Row],[Project ID]]=0,0,Q4_2021[[#This Row],[Forecasted Practical Completion Date]]) -> 2022-03-31 | Q65: =IF(Summary3[[#This Row],[Project ID]]=0,0,Q4_2021[[#This Row],[Actual Practical Completion Date]]) -> 2022-03-31 | R65: =IF(Summary3[[#This Row],[Project ID]]=0,0,Q4_2021[[#This Row],[Evaluation Method]]) -> closure form/partner evaluation | S65: =IF(Summary3[[#This Row],[Project ID]]=0,0,Q4_2021[[#This Row],[Total Budget]]) -> 2538200 | T65: =IF(Summary3[[#This Row],[Project ID]]=0,0,Q4_2021[[#This Row],[LGF Budget]]) -> 1418200 | U65: =IF(Summary3[[#This Row],[Project ID]]=0,0,Q4_2021[[#This Row],[Public Sector Leverage]]) -> 1120000 | V65: =IF(Summary3[[#This Row],[Project ID]]=0,0,Q4_2021[[#This Row],[Private Sector Leverage]]) -> 0 | W65: =IF(Summary3[[#This Row],[Project ID]]=0,0,Q4_2021[[#This Row],[Third Party Sector Leverage]]) -> 0 | X65: =IF(Summary3[[#This Row],[Project ID]]=0,0,Q4_2021[[#This Row],[LGF Outturn]]) -> 0 | Y65: =IF(Summary3[[#This Row],[Project ID]]=0,0,Q4_2021[[#This Row],[LGF Expenditure (as @ 31Mar21)]]) -> 1418200 | Z65: =IF(Summary3[[#This Row],[Project ID]]=0,0,Q4_2021[[#This Row],[Total non-LGF Expenditure (as @ 31Mar21)]]) -> 560000 | AA65: 0 | AB65: 0 | AC65: 0 | AD65: 0 | AE65: 0 | AF65: 0 | AG65: 0 | AH65: 0 | AI65: 0 | AJ65: 0 | AK65: 0 | AL65: 0 | AM65: 0 | AN65: 0 | AO65: 0 | AP65: 0 | AQ65: 0 | AR65: 0 | AS65: 0 | AT65: 0
A66: =IFERROR(Q4_2021[[#This Row],[Project ID]],0) -> LGFLON72 | B66: =IF(Summary3[[#This Row],[Project ID]]=0,0,Q4_2021[[#This Row],[Project Name]]) -> Digital - Strand 2.2: Young Entrepreneurs | C66: =IF(Summary3[[#This Row],[Project ID]]=0,0,Q4_2021[[#This Row],[Project Description (100 words max)]]) -> Young Entrepreneurs will prepare, coach and support young people in the planning and development of a startup. | D66: =IF(Summary3[[#This Row],[Project ID]]=0,0,Q4_2021[[#This Row],[LEP Name]]) -> London LEP | E66: =IF(Summary3[[#This Row],[Project ID]]=0,0,Q4_2021[[#This Row],[Local Authority area the project is in]]) -> Royal Borough of Greenwich | F66: =IF(Summary3[[#This Row],[Project ID]]=0,0,Q4_2021[[#This Row],[Post Code]]) -> SE122AA | G66: =IF(Summary3[[#This Row],[Project ID]]=0,0,Q4_2021[[#This Row],[Parliamentary Constituency]]) -> Eltham & Chislehurst | H66: =IF(Summary3[[#This Row],[Project ID]]=0,0,Q4_2021[[#This Row],[Primary Project Type]]) -> Innovation | I66: =IF(Summary3[[#This Row],[Project ID]]=0,0,Q4_2021[[#This Row],[Primary Project Activity]]) -> Other | J66: =IF(Summary3[[#This Row],[Project ID]]=0,0,Q4_2021[[#This Row],[Secondary Project Type]]) -> Other | K66: =IF(Summary3[[#This Row],[Project ID]]=0,0,Q4_2021[[#This Row],[Secondary Project Activity]]) -> 0 | L66: =IF(Summary3[[#This Row],[Project ID]]=0,0,Q4_2021[[#This Row],[Project Type]]) -> Original | M66: =IF(Summary3[[#This Row],[Project ID]]=0,0,Q4_2021[[#This Row],[Project Status]]) -> Completed – project complete | N66: =IF(Summary3[[#This Row],[Project ID]]=0,0,Q4_2021[[#This Row],[Forecasted Financial Completion Date]]) -> 2021-03-31 | O66: =IF(Summary3[[#This Row],[Project ID]]=0,0,Q4_2021[[#This Row],[Actual Financial Completion]]) -> 2022-03-31 | P66: =IF(Summary3[[#This Row],[Project ID]]=0,0,Q4_2021[[#This Row],[Forecasted Practical Completion Date]]) -> 2022-03-31 | Q66: =IF(Summary3[[#This Row],[Project ID]]=0,0,Q4_2021[[#This Row],[Actual Practical Completion Date]]) -> 2022-03-31 | R66: =IF(Summary3[[#This Row],[Project ID]]=0,0,Q4_2021[[#This Row],[Evaluation Method]]) -> closure form/partner evaluation | S66: =IF(Summary3[[#This Row],[Project ID]]=0,0,Q4_2021[[#This Row],[Total Budget]]) -> 640000 | T66: =IF(Summary3[[#This Row],[Project ID]]=0,0,Q4_2021[[#This Row],[LGF Budget]]) -> 640000 | U66: =IF(Summary3[[#This Row],[Project ID]]=0,0,Q4_2021[[#This Row],[Public Sector Leverage]]) -> 0 | V66: =IF(Summary3[[#This Row],[Project ID]]=0,0,Q4_2021[[#This Row],[Private Sector Leverage]]) -> 0 | W66: =IF(Summary3[[#This Row],[Project ID]]=0,0,Q4_2021[[#This Row],[Third Party Sector Leverage]]) -> 0 | X66: =IF(Summary3[[#This Row],[Project ID]]=0,0,Q4_2021[[#This Row],[LGF Outturn]]) -> 0 | Y66: =IF(Summary3[[#This Row],[Project ID]]=0,0,Q4_2021[[#This Row],[LGF Expenditure (as @ 31Mar21)]]) -> 640000 | Z66: =IF(Summary3[[#This Row],[Project ID]]=0,0,Q4_2021[[#This Row],[Total non-LGF Expenditure (as @ 31Mar21)]]) -> 0 | AA66: 0 | AB66: 0 | AC66: 0 | AD66: 0 | AE66: 0 | AF66: 0 | AG66: 0 | AH66: 0 | AI66: 0 | AJ66: 0 | AK66: 0 | AL66: 0 | AM66: 0 | AN66: 0 | AO66: 0 | AP66: 0 | AQ66: 0 | AR66: 0 | AS66: 0 | AT66: 0
A67: =IFERROR(Q4_2021[[#This Row],[Project ID]],0) -> LGFLON73 | B67: =IF(Summary3[[#This Row],[Project ID]]=0,0,Q4_2021[[#This Row],[Project Name]]) -> Digital - Strand 3: Higher Level Digital Skills | C67: =IF(Summary3[[#This Row],[Project ID]]=0,0,Q4_2021[[#This Row],[Project Description (100 words max)]]) -> Higher Level Digital Skills improves the relevance of higher digital skills training (Level 4+) through improved university-SME partnerships. | D67: =IF(Summary3[[#This Row],[Project ID]]=0,0,Q4_2021[[#This Row],[LEP Name]]) -> London LEP | E67: =IF(Summary3[[#This Row],[Project ID]]=0,0,Q4_2021[[#This Row],[Local Authority area the project is in]]) -> Royal Borough of Greenwich | F67: =IF(Summary3[[#This Row],[Project ID]]=0,0,Q4_2021[[#This Row],[Post Code]]) -> SE122AA | G67: =IF(Summary3[[#This Row],[Project ID]]=0,0,Q4_2021[[#This Row],[Parliamentary Constituency]]) -> Eltham & Chislehurst | H67: =IF(Summary3[[#This Row],[Project ID]]=0,0,Q4_2021[[#This Row],[Primary Project Type]]) -> Innovation | I67: =IF(Summary3[[#This Row],[Project ID]]=0,0,Q4_2021[[#This Row],[Primary Project Activity]]) -> Other | J67: =IF(Summary3[[#This Row],[Project ID]]=0,0,Q4_2021[[#This Row],[Secondary Project Type]]) -> Other | K67: =IF(Summary3[[#This Row],[Project ID]]=0,0,Q4_2021[[#This Row],[Secondary Project Activity]]) -> 0 | L67: =IF(Summary3[[#This Row],[Project ID]]=0,0,Q4_2021[[#This Row],[Project Type]]) -> Original | M67: =IF(Summary3[[#This Row],[Project ID]]=0,0,Q4_2021[[#This Row],[Project Status]]) -> Completed – project complete | N67: =IF(Summary3[[#This Row],[Project ID]]=0,0,Q4_2021[[#This Row],[Forecasted Financial Completion Date]]) -> 2021-03-31 | O67: =IF(Summary3[[#This Row],[Project ID]]=0,0,Q4_2021[[#This Row],[Actual Financial Completion]]) -> 2022-03-31 | P67: =IF(Summary3[[#This Row],[Project ID]]=0,0,Q4_2021[[#This Row],[Forecasted Practical Completion Date]]) -> 2022-03-31 | Q67: =IF(Summary3[[#This Row],[Project ID]]=0,0,Q4_2021[[#This Row],[Actual Practical Completion Date]]) -> 2022-03-31 | R67: =IF(Summary3[[#This Row],[Project ID]]=0,0,Q4_2021[[#This Row],[Evaluation Method]]) -> closure form/partner evaluation | S67: =IF(Summary3[[#This Row],[Project ID]]=0,0,Q4_2021[[#This Row],[Total Budget]]) -> 2000000 | T67: =IF(Summary3[[#This Row],[Project ID]]=0,0,Q4_2021[[#This Row],[LGF Budget]]) -> 1000000 | U67: =IF(Summary3[[#This Row],[Project ID]]=0,0,Q4_2021[[#This Row],[Public Sector Leverage]]) -> 1000000 | V67: =IF(Summary3[[#This Row],[Project ID]]=0,0,Q4_2021[[#This Row],[Private Sector Leverage]]) -> 0 | W67: =IF(Summary3[[#This Row],[Project ID]]=0,0,Q4_2021[[#This Row],[Third Party Sector Leverage]]) -> 0 | X67: =IF(Summary3[[#This Row],[Project ID]]=0,0,Q4_2021[[#This Row],[LGF Outturn]]) -> 0 | Y67: =IF(Summary3[[#This Row],[Project ID]]=0,0,Q4_2021[[#This Row],[LGF Expenditure (as @ 31Mar21)]]) -> 1000000 | Z67: =IF(Summary3[[#This Row],[Project ID]]=0,0,Q4_2021[[#This Row],[Total non-LGF Expenditure (as @ 31Mar21)]]) -> 500000 | AA67: 0 | AB67: 0 | AC67: 0 | AD67: 0 | AE67: 0 | AF67: 0 | AG67: 0 | AH67: 0 | AI67: 0 | AJ67: 0 | AK67: 0 | AL67: 0 | AM67: 0 | AN67: 0 | AO67: 0 | AP67: 0 | AQ67: 0 | AR67: 0 | AS67: 0 | AT67: 0
A68: =IFERROR(Q4_2021[[#This Row],[Project ID]],0) -> LGFLON74 | B68: =IF(Summary3[[#This Row],[Project ID]]=0,0,Q4_2021[[#This Row],[Project Name]]) -> Digital - Strand 4: Capital Funding | C68: =IF(Summary3[[#This Row],[Project ID]]=0,0,Q4_2021[[#This Row],[Project Description (100 words max)]]) -> Capital Funding support delivery partners with up-to-date IT equipment. | D68: =IF(Summary3[[#This Row],[Project ID]]=0,0,Q4_2021[[#This Row],[LEP Name]]) -> London LEP | E68: =IF(Summary3[[#This Row],[Project ID]]=0,0,Q4_2021[[#This Row],[Local Authority area the project is in]]) -> Royal Borough of Greenwich | F68: =IF(Summary3[[#This Row],[Project ID]]=0,0,Q4_2021[[#This Row],[Post Code]]) -> SE122AA | G68: =IF(Summary3[[#This Row],[Project ID]]=0,0,Q4_2021[[#This Row],[Parliamentary Constituency]]) -> Eltham & Chislehurst | H68: =IF(Summary3[[#This Row],[Project ID]]=0,0,Q4_2021[[#This Row],[Primary Project Type]]) -> Innovation | I68: =IF(Summary3[[#This Row],[Project ID]]=0,0,Q4_2021[[#This Row],[Primary Project Activity]]) -> Other | J68: =IF(Summary3[[#This Row],[Project ID]]=0,0,Q4_2021[[#This Row],[Secondary Project Type]]) -> Other | K68: =IF(Summary3[[#This Row],[Project ID]]=0,0,Q4_2021[[#This Row],[Secondary Project Activity]]) -> 0 | L68: =IF(Summary3[[#This Row],[Project ID]]=0,0,Q4_2021[[#This Row],[Project Type]]) -> Original | M68: =IF(Summary3[[#This Row],[Project ID]]=0,0,Q4_2021[[#This Row],[Project Status]]) -> Completed – project complete | N68: =IF(Summary3[[#This Row],[Project ID]]=0,0,Q4_2021[[#This Row],[Forecasted Financial Completion Date]]) -> 2021-03-31 | O68: =IF(Summary3[[#This Row],[Project ID]]=0,0,Q4_2021[[#This Row],[Actual Financial Completion]]) -> 2022-03-31 | P68: =IF(Summary3[[#This Row],[Project ID]]=0,0,Q4_2021[[#This Row],[Forecasted Practical Completion Date]]) -> 2022-03-31 | Q68: =IF(Summary3[[#This Row],[Project ID]]=0,0,Q4_2021[[#This Row],[Actual Practical Completion Date]]) -> 2022-03-31 | R68: =IF(Summary3[[#This Row],[Project ID]]=0,0,Q4_2021[[#This Row],[Evaluation Method]]) -> closure form/partner evaluation | S68: =IF(Summary3[[#This Row],[Project ID]]=0,0,Q4_2021[[#This Row],[Total Budget]]) -> 2000000 | T68: =IF(Summary3[[#This Row],[Project ID]]=0,0,Q4_2021[[#This Row],[LGF Budget]]) -> 2000000 | U68: =IF(Summary3[[#This Row],[Project ID]]=0,0,Q4_2021[[#This Row],[Public Sector Leverage]]) -> 0 | V68: =IF(Summary3[[#This Row],[Project ID]]=0,0,Q4_2021[[#This Row],[Private Sector Leverage]]) -> 0 | W68: =IF(Summary3[[#This Row],[Project ID]]=0,0,Q4_2021[[#This Row],[Third Party Sector Leverage]]) -> 0 | X68: =IF(Summary3[[#This Row],[Project ID]]=0,0,Q4_2021[[#This Row],[LGF Outturn]]) -> 0 | Y68: =IF(Summary3[[#This Row],[Project ID]]=0,0,Q4_2021[[#This Row],[LGF Expenditure (as @ 31Mar21)]]) -> 2000000 | Z68: =IF(Summary3[[#This Row],[Project ID]]=0,0,Q4_2021[[#This Row],[Total non-LGF Expenditure (as @ 31Mar21)]]) -> 0 | AA68: 0 | AB68: 0 | AC68: 0 | AD68: 0 | AE68: 0 | AF68: 0 | AG68: 0 | AH68: 0 | AI68: 0 | AJ68: 0 | AK68: 0 | AL68: 0 | AM68: 0 | AN68: 0 | AO68: 0 | AP68: 0 | AQ68: 0 | AR68: 0 | AS68: 0 | AT68: 0
A69: =IFERROR(Q4_2021[[#This Row],[Project ID]],0) -> LGFLON75 | B69: =IF(Summary3[[#This Row],[Project ID]]=0,0,Q4_2021[[#This Row],[Project Name]]) -> Digital - Strand 5: CPD for Digital Educators | C69: =IF(Summary3[[#This Row],[Project ID]]=0,0,Q4_2021[[#This Row],[Project Description (100 words max)]]) -> CPD for Digital Educators supports educators, enabling educators to improve their digital skills and confidence, share best practice and improve their career guidance offer. | D69: =IF(Summary3[[#This Row],[Project ID]]=0,0,Q4_2021[[#This Row],[LEP Name]]) -> London LEP | E69: =IF(Summary3[[#This Row],[Project ID]]=0,0,Q4_2021[[#This Row],[Local Authority area the project is in]]) -> Royal Borough of Greenwich | F69: =IF(Summary3[[#This Row],[Project ID]]=0,0,Q4_2021[[#This Row],[Post Code]]) -> SE122AA | G69: =IF(Summary3[[#This Row],[Project ID]]=0,0,Q4_2021[[#This Row],[Parliamentary Constituency]]) -> Eltham & Chislehurst | H69: =IF(Summary3[[#This Row],[Project ID]]=0,0,Q4_2021[[#This Row],[Primary Project Type]]) -> Innovation | I69: =IF(Summary3[[#This Row],[Project ID]]=0,0,Q4_2021[[#This Row],[Primary Project Activity]]) -> Other | J69: =IF(Summary3[[#This Row],[Project ID]]=0,0,Q4_2021[[#This Row],[Secondary Project Type]]) -> Other | K69: =IF(Summary3[[#This Row],[Project ID]]=0,0,Q4_2021[[#This Row],[Secondary Project Activity]]) -> 0 | L69: =IF(Summary3[[#This Row],[Project ID]]=0,0,Q4_2021[[#This Row],[Project Type]]) -> Original | M69: =IF(Summary3[[#This Row],[Project ID]]=0,0,Q4_2021[[#This Row],[Project Status]]) -> Completed – project complete | N69: =IF(Summary3[[#This Row],[Project ID]]=0,0,Q4_2021[[#This Row],[Forecasted Financial Completion Date]]) -> 2021-03-31 | O69: =IF(Summary3[[#This Row],[Project ID]]=0,0,Q4_2021[[#This Row],[Actual Financial Completion]]) -> 2022-03-31 | P69: =IF(Summary3[[#This Row],[Project ID]]=0,0,Q4_2021[[#This Row],[Forecasted Practical Completion Date]]) -> 2022-03-31 | Q69: =IF(Summary3[[#This Row],[Project ID]]=0,0,Q4_2021[[#This Row],[Actual Practical Completion Date]]) -> 2022-03-31 | R69: =IF(Summary3[[#This Row],[Project ID]]=0,0,Q4_2021[[#This Row],[Evaluation Method]]) -> closure form/partner evaluation | S69: =IF(Summary3[[#This Row],[Project ID]]=0,0,Q4_2021[[#This Row],[Total Budget]]) -> 750000 | T69: =IF(Summary3[[#This Row],[Project ID]]=0,0,Q4_2021[[#This Row],[LGF Budget]]) -> 450000 | U69: =IF(Summary3[[#This Row],[Project ID]]=0,0,Q4_2021[[#This Row],[Public Sector Leverage]]) -> 300000 | V69: =IF(Summary3[[#This Row],[Project ID]]=0,0,Q4_2021[[#This Row],[Private Sector Leverage]]) -> 0 | W69: =IF(Summary3[[#This Row],[Project ID]]=0,0,Q4_2021[[#This Row],[Third Party Sector Leverage]]) -> 0 | X69: =IF(Summary3[[#This Row],[Project ID]]=0,0,Q4_2021[[#This Row],[LGF Outturn]]) -> 0 | Y69: =IF(Summary3[[#This Row],[Project ID]]=0,0,Q4_2021[[#This Row],[LGF Expenditure (as @ 31Mar21)]]) -> 450000 | Z69: =IF(Summary3[[#This Row],[Project ID]]=0,0,Q4_2021[[#This Row],[Total non-LGF Expenditure (as @ 31Mar21)]]) -> 150000 | AA69: 0 | AB69: 0 | AC69: 0 | AD69: 0 | AE69: 0 | AF69: 0 | AG69: 0 | AH69: 0 | AI69: 0 | AJ69: 0 | AK69: 0 | AL69: 0 | AM69: 0 | AN69: 0 | AO69: 0 | AP69: 0 | AQ69: 0 | AR69: 0 | AS69: 0 | AT69: 0
A70: =IFERROR(Q4_2021[[#This Row],[Project ID]],0) -> LGFLON76 | B70: =IF(Summary3[[#This Row],[Project ID]]=0,0,Q4_2021[[#This Row],[Project Name]]) -> Digital - Evaluation | C70: =IF(Summary3[[#This Row],[Project ID]]=0,0,Q4_2021[[#This Row],[Project Description (100 words max)]]) -> Meta-evaluation project to assess the impact of the overall programme. | D70: =IF(Summary3[[#This Row],[Project ID]]=0,0,Q4_2021[[#This Row],[LEP Name]]) -> London LEP | E70: =IF(Summary3[[#This Row],[Project ID]]=0,0,Q4_2021[[#This Row],[Local Authority area the project is in]]) -> Royal Borough of Greenwich | F70: =IF(Summary3[[#This Row],[Project ID]]=0,0,Q4_2021[[#This Row],[Post Code]]) -> SE122AA | G70: =IF(Summary3[[#This Row],[Project ID]]=0,0,Q4_2021[[#This Row],[Parliamentary Constituency]]) -> Eltham & Chislehurst | H70: =IF(Summary3[[#This Row],[Project ID]]=0,0,Q4_2021[[#This Row],[Primary Project Type]]) -> Urban_Sustainable_Transport | I70: =IF(Summary3[[#This Row],[Project ID]]=0,0,Q4_2021[[#This Row],[Primary Project Activity]]) -> Other | J70: =IF(Summary3[[#This Row],[Project ID]]=0,0,Q4_2021[[#This Row],[Secondary Project Type]]) -> Other | K70: =IF(Summary3[[#This Row],[Project ID]]=0,0,Q4_2021[[#This Row],[Secondary Project Activity]]) -> 0 | L70: =IF(Summary3[[#This Row],[Project ID]]=0,0,Q4_2021[[#This Row],[Project Type]]) -> Original | M70: =IF(Summary3[[#This Row],[Project ID]]=0,0,Q4_2021[[#This Row],[Project Status]]) -> Completed – project complete | N70: =IF(Summary3[[#This Row],[Project ID]]=0,0,Q4_2021[[#This Row],[Forecasted Financial Completion Date]]) -> 2021-03-31 | O70: =IF(Summary3[[#This Row],[Project ID]]=0,0,Q4_2021[[#This Row],[Actual Financial Completion]]) -> 2022-03-31 | P70: =IF(Summary3[[#This Row],[Project ID]]=0,0,Q4_2021[[#This Row],[Forecasted Practical Completion Date]]) -> 2022-03-31 | Q70: =IF(Summary3[[#This Row],[Project ID]]=0,0,Q4_2021[[#This Row],[Actual Practical Completion Date]]) -> 2022-03-31 | R70: =IF(Summary3[[#This Row],[Project ID]]=0,0,Q4_2021[[#This Row],[Evaluation Method]]) -> closure form/partner evaluation | S70: =IF(Summary3[[#This Row],[Project ID]]=0,0,Q4_2021[[#This Row],[Total Budget]]) -> 95000 | T70: =IF(Summary3[[#This Row],[Project ID]]=0,0,Q4_2021[[#This Row],[LGF Budget]]) -> 95000 | U70: =IF(Summary3[[#This Row],[Project ID]]=0,0,Q4_2021[[#This Row],[Public Sector Leverage]]) -> 0 | V70: =IF(Summary3[[#This Row],[Project ID]]=0,0,Q4_2021[[#This Row],[Private Sector Leverage]]) -> 0 | W70: =IF(Summary3[[#This Row],[Project ID]]=0,0,Q4_2021[[#This Row],[Third Party Sector Leverage]]) -> 0 | X70: =IF(Summary3[[#This Row],[Project ID]]=0,0,Q4_2021[[#This Row],[LGF Outturn]]) -> 0 | Y70: =IF(Summary3[[#This Row],[Project ID]]=0,0,Q4_2021[[#This Row],[LGF Expenditure (as @ 31Mar21)]]) -> 95000 | Z70: =IF(Summary3[[#This Row],[Project ID]]=0,0,Q4_2021[[#This Row],[Total non-LGF Expenditure (as @ 31Mar21)]]) -> 0 | AA70: 0 | AB70: 0 | AC70: 0 | AD70: 0 | AE70: 0 | AF70: 0 | AG70: 0 | AH70: 0 | AI70: 0 | AJ70: 0 | AK70: 0 | AL70: 0 | AM70: 0 | AN70: 0 | AO70: 0 | AP70: 0 | AQ70: 0 | AR70: 0 | AS70: 0 | AT70: 0
A71: =IFERROR(Q4_2021[[#This Row],[Project ID]],0) -> LGFLON77 | B71: =IF(Summary3[[#This Row],[Project ID]]=0,0,Q4_2021[[#This Row],[Project Name]]) -> FEC NCC CISIC Havering College | C71: =IF(Summary3[[#This Row],[Project ID]]=0,0,Q4_2021[[#This Row],[Project Description (100 words max)]]) -> This project has received Skills Capital funding support for the development of a Construction & Infrastructure Skills & Innovation Centre (CISIC) at the College’s site in Rainham. | D71: =IF(Summary3[[#This Row],[Project ID]]=0,0,Q4_2021[[#This Row],[LEP Name]]) -> London LEP | E71: =IF(Summary3[[#This Row],[Project ID]]=0,0,Q4_2021[[#This Row],[Local Authority area the project is in]]) -> London Borough of Barking & Dagenham | F71: =IF(Summary3[[#This Row],[Project ID]]=0,0,Q4_2021[[#This Row],[Post Code]]) -> RM13 8GP | G71: =IF(Summary3[[#This Row],[Project ID]]=0,0,Q4_2021[[#This Row],[Parliamentary Constituency]]) -> Dagenham and Rainham | H71: =IF(Summary3[[#This Row],[Project ID]]=0,0,Q4_2021[[#This Row],[Primary Project Type]]) -> Skills_Capital | I71: =IF(Summary3[[#This Row],[Project ID]]=0,0,Q4_2021[[#This Row],[Primary Project Activity]]) -> Investment in the further education estate | J71: =IF(Summary3[[#This Row],[Project ID]]=0,0,Q4_2021[[#This Row],[Secondary Project Type]]) -> Other | K71: =IF(Summary3[[#This Row],[Project ID]]=0,0,Q4_2021[[#This Row],[Secondary Project Activity]]) -> 0 | L71: =IF(Summary3[[#This Row],[Project ID]]=0,0,Q4_2021[[#This Row],[Project Type]]) -> Original | M71: =IF(Summary3[[#This Row],[Project ID]]=0,0,Q4_2021[[#This Row],[Project Status]]) -> Financially complete | N71: =IF(Summary3[[#This Row],[Project ID]]=0,0,Q4_2021[[#This Row],[Forecasted Financial Completion Date]]) -> 00:00:00 | O71: =IF(Summary3[[#This Row],[Project ID]]=0,0,Q4_2021[[#This Row],[Actual Financial Completion]]) -> 2022-11-24 | P71: =IF(Summary3[[#This Row],[Project ID]]=0,0,Q4_2021[[#This Row],[Forecasted Practical Completion Date]]) -> 2024-09-12 | Q71: =IF(Summary3[[#This Row],[Project ID]]=0,0,Q4_2021[[#This Row],[Actual Practical Completion Date]]) -> 00:00:00 | R71: =IF(Summary3[[#This Row],[Project ID]]=0,0,Q4_2021[[#This Row],[Evaluation Method]]) -> closure form/partner evaluation | S71: =IF(Summary3[[#This Row],[Project ID]]=0,0,Q4_2021[[#This Row],[Total Budget]]) -> 12296915 | T71: =IF(Summary3[[#This Row],[Project ID]]=0,0,Q4_2021[[#This Row],[LGF Budget]]) -> 5546191 | U71: =IF(Summary3[[#This Row],[Project ID]]=0,0,Q4_2021[[#This Row],[Public Sector Leverage]]) -> 0 | V71: =IF(Summary3[[#This Row],[Project ID]]=0,0,Q4_2021[[#This Row],[Private Sector Leverage]]) -> 6750724 | W71: =IF(Summary3[[#This Row],[Project ID]]=0,0,Q4_2021[[#This Row],[Third Party Sector Leverage]]) -> 0 | X71: =IF(Summary3[[#This Row],[Project ID]]=0,0,Q4_2021[[#This Row],[LGF Outturn]]) -> 0 | Y71: =IF(Summary3[[#This Row],[Project ID]]=0,0,Q4_2021[[#This Row],[LGF Expenditure (as @ 31Mar21)]]) -> 5446191 | Z71: =IF(Summary3[[#This Row],[Project ID]]=0,0,Q4_2021[[#This Row],[Total non-LGF Expenditure (as @ 31Mar21)]]) -> 6750724 | AA71: 0 | AB71: 0 | AC71: 0 | AD71: 0 | AE71: 0 | AF71: 0 | AG71: 0 | AH71: 0 | AI71: 0 | AJ71: 0 | AK71: 0 | AL71: 0 | AM71: 0 | AN71: 0 | AO71: 0 | AP71: 0 | AQ71: 0 | AR71: 0 | AS71: 0 | AT71: 0
A72: =IFERROR(Q4_2021[[#This Row],[Project ID]],0) -> LGFLON78 | B72: =IF(Summary3[[#This Row],[Project ID]]=0,0,Q4_2021[[#This Row],[Project Name]]) -> FEC Richmond College | C72: =IF(Summary3[[#This Row],[Project ID]]=0,0,Q4_2021[[#This Row],[Project Description (100 words max)]]) -> Richmond upon Thames College’s two phases comprise phased works to create an outstanding new campus for education, skills and enterprise co-locating a completely new further education facility alongside a new free school, a special needs school and a ‘technology hub’ operated by a global media company. It will support over 24,000 learners, 4,700 apprenticeship starts and 790 learners with disabilities and learning difficulties. The initial two grant agreements for the two phase have now merged into a single one. | D72: =IF(Summary3[[#This Row],[Project ID]]=0,0,Q4_2021[[#This Row],[LEP Name]]) -> London LEP | E72: =IF(Summary3[[#This Row],[Project ID]]=0,0,Q4_2021[[#This Row],[Local Authority area the project is in]]) -> London Borough of Richmond Upon Thames | F72: =IF(Summary3[[#This Row],[Project ID]]=0,0,Q4_2021[[#This Row],[Post Code]]) -> TW2 7SJ | G72: =IF(Summary3[[#This Row],[Project ID]]=0,0,Q4_2021[[#This Row],[Parliamentary Constituency]]) -> Twickenham | H72: =IF(Summary3[[#This Row],[Project ID]]=0,0,Q4_2021[[#This Row],[Primary Project Type]]) -> Skills_Capital | I72: =IF(Summary3[[#This Row],[Project ID]]=0,0,Q4_2021[[#This Row],[Primary Project Activity]]) -> Investment in the further education estate | J72: =IF(Summary3[[#This Row],[Project ID]]=0,0,Q4_2021[[#This Row],[Secondary Project Type]]) -> Other | K72: =IF(Summary3[[#This Row],[Project ID]]=0,0,Q4_2021[[#This Row],[Secondary Project Activity]]) -> 0 | L72: =IF(Summary3[[#This Row],[Project ID]]=0,0,Q4_2021[[#This Row],[Project Type]]) -> Repackagaed | M72: =IF(Summary3[[#This Row],[Project ID]]=0,0,Q4_2021[[#This Row],[Project Status]]) -> On - going delivery | N72: =IF(Summary3[[#This Row],[Project ID]]=0,0,Q4_2021[[#This Row],[Forecasted Financial Completion Date]]) -> 2024-12-31 | O72: =IF(Summary3[[#This Row],[Project ID]]=0,0,Q4_2021[[#This Row],[Actual Financial Completion]]) -> 00:00:00 | P72: =IF(Summary3[[#This Row],[Project ID]]=0,0,Q4_2021[[#This Row],[Forecasted Practical Completion Date]]) -> 2027-09-30 | Q72: =IF(Summary3[[#This Row],[Project ID]]=0,0,Q4_2021[[#This Row],[Actual Practical Completion Date]]) -> 00:00:00 | R72: =IF(Summary3[[#This Row],[Project ID]]=0,0,Q4_2021[[#This Row],[Evaluation Method]]) -> closure form/partner evaluation | S72: =IF(Summary3[[#This Row],[Project ID]]=0,0,Q4_2021[[#This Row],[Total Budget]]) -> 89922699 | T72: =IF(Summary3[[#This Row],[Project ID]]=0,0,Q4_2021[[#This Row],[LGF Budget]]) -> 36631848 | U72: =IF(Summary3[[#This Row],[Project ID]]=0,0,Q4_2021[[#This Row],[Public Sector Leverage]]) -> 0 | V72: =IF(Summary3[[#This Row],[Project ID]]=0,0,Q4_2021[[#This Row],[Private Sector Leverage]]) -> 53290851 | W72: =IF(Summary3[[#This Row],[Project ID]]=0,0,Q4_2021[[#This Row],[Third Party Sector Leverage]]) -> 0 | X72: =IF(Summary3[[#This Row],[Project ID]]=0,0,Q4_2021[[#This Row],[LGF Outturn]]) -> 0 | Y72: =IF(Summary3[[#This Row],[Project ID]]=0,0,Q4_2021[[#This Row],[LGF Expenditure (as @ 31Mar21)]]) -> 27128855 | Z72: =IF(Summary3[[#This Row],[Project ID]]=0,0,Q4_2021[[#This Row],[Total non-LGF Expenditure (as @ 31Mar21)]]) -> 32266595 | AA72: 0 | AB72: 0 | AC72: 0 | AD72: 0 | AE72: 0 | AF72: 0 | AG72: 0 | AH72: 0 | AI72: 0 | AJ72: 0 | AK72: 0 | AL72: 0 | AM72: 0 | AN72: 0 | AO72: 0 | AP72: 0 | AQ72: 0 | AR72: 0 | AS72: 0 | AT72: 0
A73: =IFERROR(Q4_2021[[#This Row],[Project ID]],0) -> LGFLON79 | B73: =IF(Summary3[[#This Row],[Project ID]]=0,0,Q4_2021[[#This Row],[Project Name]]) -> FEC Ada National College | C73: =IF(Summary3[[#This Row],[Project ID]]=0,0,Q4_2021[[#This Row],[Project Description (100 words max)]]) -> The project will secure, refurbish and equip the hub National College campus. The campus will be built upon Ashley Road (Berol Yard site). The project is co funded by the Department for Education and GLA. | D73: =IF(Summary3[[#This Row],[Project ID]]=0,0,Q4_2021[[#This Row],[LEP Name]]) -> London LEP | E73: =IF(Summary3[[#This Row],[Project ID]]=0,0,Q4_2021[[#This Row],[Local Authority area the project is in]]) -> London Borough of Haringey | F73: =IF(Summary3[[#This Row],[Project ID]]=0,0,Q4_2021[[#This Row],[Post Code]]) -> N17 9LJ | G73: =IF(Summary3[[#This Row],[Project ID]]=0,0,Q4_2021[[#This Row],[Parliamentary Constituency]]) -> Pimlico | H73: =IF(Summary3[[#This Row],[Project ID]]=0,0,Q4_2021[[#This Row],[Primary Project Type]]) -> Skills_Capital | I73: =IF(Summary3[[#This Row],[Project ID]]=0,0,Q4_2021[[#This Row],[Primary Project Activity]]) -> Investment in the further education estate | J73: =IF(Summary3[[#This Row],[Project ID]]=0,0,Q4_2021[[#This Row],[Secondary Project Type]]) -> Other | K73: =IF(Summary3[[#This Row],[Project ID]]=0,0,Q4_2021[[#This Row],[Secondary Project Activity]]) -> 0 | L73: =IF(Summary3[[#This Row],[Project ID]]=0,0,Q4_2021[[#This Row],[Project Type]]) -> Original | M73: =IF(Summary3[[#This Row],[Project ID]]=0,0,Q4_2021[[#This Row],[Project Status]]) -> Financially complete | N73: =IF(Summary3[[#This Row],[Project ID]]=0,0,Q4_2021[[#This Row],[Forecasted Financial Completion Date]]) -> 2025-03-31 | O73: =IF(Summary3[[#This Row],[Project ID]]=0,0,Q4_2021[[#This Row],[Actual Financial Completion]]) -> 2024-02-20 | P73: =IF(Summary3[[#This Row],[Project ID]]=0,0,Q4_2021[[#This Row],[Forecasted Practical Completion Date]]) -> 31/09/2026 | Q73: =IF(Summary3[[#This Row],[Project ID]]=0,0,Q4_2021[[#This Row],[Actual Practical Completion Date]]) -> 00:00:00 | R73: =IF(Summary3[[#This Row],[Project ID]]=0,0,Q4_2021[[#This Row],[Evaluation Method]]) -> closure form/partner evaluation | S73: =IF(Summary3[[#This Row],[Project ID]]=0,0,Q4_2021[[#This Row],[Total Budget]]) -> 17048271.15 | T73: =IF(Summary3[[#This Row],[Project ID]]=0,0,Q4_2021[[#This Row],[LGF Budget]]) -> 4821954.93 | U73: =IF(Summary3[[#This Row],[Project ID]]=0,0,Q4_2021[[#This Row],[Public Sector Leverage]]) -> 12143009.35 | V73: =IF(Summary3[[#This Row],[Project ID]]=0,0,Q4_2021[[#This Row],[Private Sector Leverage]]) -> 83306.87 | W73: =IF(Summary3[[#This Row],[Project ID]]=0,0,Q4_2021[[#This Row],[Third Party Sector Leverage]]) -> 0 | X73: =IF(Summary3[[#This Row],[Project ID]]=0,0,Q4_2021[[#This Row],[LGF Outturn]]) -> 0 | Y73: =IF(Summary3[[#This Row],[Project ID]]=0,0,Q4_2021[[#This Row],[LGF Expenditure (as @ 31Mar21)]]) -> 1482409 | Z73: =IF(Summary3[[#This Row],[Project ID]]=0,0,Q4_2021[[#This Row],[Total non-LGF Expenditure (as @ 31Mar21)]]) -> 8088801 | AA73: 0 | AB73: 0 | AC73: 0 | AD73: 0 | AE73: 0 | AF73: 0 | AG73: 0 | AH73: 0 | AI73: 0 | AJ73: 0 | AK73: 0 | AL73: 0 | AM73: 0 | AN73: 0 | AO73: 0 | AP73: 0 | AQ73: 0 | AR73: 0 | AS73: 0 | AT73: 0
A74: =IFERROR(Q4_2021[[#This Row],[Project ID]],0) -> LGFLON80 | B74: =IF(Summary3[[#This Row],[Project ID]]=0,0,Q4_2021[[#This Row],[Project Name]]) -> FEC Revenue | C74: =IF(Summary3[[#This Row],[Project ID]]=0,0,Q4_2021[[#This Row],[Project Description (100 words max)]]) -> This is revenue budget for FEC | D74: =IF(Summary3[[#This Row],[Project ID]]=0,0,Q4_2021[[#This Row],[LEP Name]]) -> London LEP | E74: =IF(Summary3[[#This Row],[Project ID]]=0,0,Q4_2021[[#This Row],[Local Authority area the project is in]]) -> Royal Borough of Greenwich | F74: =IF(Summary3[[#This Row],[Project ID]]=0,0,Q4_2021[[#This Row],[Post Code]]) -> SE122AA | G74: =IF(Summary3[[#This Row],[Project ID]]=0,0,Q4_2021[[#This Row],[Parliamentary Constituency]]) -> Eltham & Chislehurst | H74: =IF(Summary3[[#This Row],[Project ID]]=0,0,Q4_2021[[#This Row],[Primary Project Type]]) -> Skills_Capital | I74: =IF(Summary3[[#This Row],[Project ID]]=0,0,Q4_2021[[#This Row],[Primary Project Activity]]) -> Investment in the further education estate | J74: =IF(Summary3[[#This Row],[Project ID]]=0,0,Q4_2021[[#This Row],[Secondary Project Type]]) -> Other | K74: =IF(Summary3[[#This Row],[Project ID]]=0,0,Q4_2021[[#This Row],[Secondary Project Activity]]) -> 0 | L74: =IF(Summary3[[#This Row],[Project ID]]=0,0,Q4_2021[[#This Row],[Project Type]]) -> Original | M74: =IF(Summary3[[#This Row],[Project ID]]=0,0,Q4_2021[[#This Row],[Project Status]]) -> Completed – project complete | N74: =IF(Summary3[[#This Row],[Project ID]]=0,0,Q4_2021[[#This Row],[Forecasted Financial Completion Date]]) -> 00:00:00 | O74: =IF(Summary3[[#This Row],[Project ID]]=0,0,Q4_2021[[#This Row],[Actual Financial Completion]]) -> 2024-03-31 | P74: =IF(Summary3[[#This Row],[Project ID]]=0,0,Q4_2021[[#This Row],[Forecasted Practical Completion Date]]) -> N/A (revenue programme spend) | Q74: =IF(Summary3[[#This Row],[Project ID]]=0,0,Q4_2021[[#This Row],[Actual Practical Completion Date]]) -> 2024-03-31 | R74: =IF(Summary3[[#This Row],[Project ID]]=0,0,Q4_2021[[#This Row],[Evaluation Method]]) -> closure form/partner evaluation | S74: =IF(Summary3[[#This Row],[Project ID]]=0,0,Q4_2021[[#This Row],[Total Budget]]) -> 1500000 | T74: =IF(Summary3[[#This Row],[Project ID]]=0,0,Q4_2021[[#This Row],[LGF Budget]]) -> 1500000 | U74: =IF(Summary3[[#This Row],[Project ID]]=0,0,Q4_2021[[#This Row],[Public Sector Leverage]]) -> 0 | V74: =IF(Summary3[[#This Row],[Project ID]]=0,0,Q4_2021[[#This Row],[Private Sector Leverage]]) -> 0 | W74: =IF(Summary3[[#This Row],[Project ID]]=0,0,Q4_2021[[#This Row],[Third Party Sector Leverage]]) -> 0 | X74: =IF(Summary3[[#This Row],[Project ID]]=0,0,Q4_2021[[#This Row],[LGF Outturn]]) -> 0 | Y74: =IF(Summary3[[#This Row],[Project ID]]=0,0,Q4_2021[[#This Row],[LGF Expenditure (as @ 31Mar21)]]) -> 1436266 | Z74: =IF(Summary3[[#This Row],[Project ID]]=0,0,Q4_2021[[#This Row],[Total non-LGF Expenditure (as @ 31Mar21)]]) -> 0 | AA74: 0 | AB74: 0 | AC74: 0 | AD74: 0 | AE74: 0 | AF74: 0 | AG74: 0 | AH74: 0 | AI74: 0 | AJ74: 0 | AK74: 0 | AL74: 0 | AM74: 0 | AN74: 0 | AO74: 0 | AP74: 0 | AQ74: 0 | AR74: 0 | AS74: 0 | AT74: 0
A75: =IFERROR(Q4_2021[[#This Row],[Project ID]],0) -> LGFLON81 | B75: =IF(Summary3[[#This Row],[Project ID]]=0,0,Q4_2021[[#This Row],[Project Name]]) -> FEC Big Creative Gnome House | C75: =IF(Summary3[[#This Row],[Project ID]]=0,0,Q4_2021[[#This Row],[Project Description (100 words max)]]) -> The purpose of this project was to establish a creative hub at the heart of the Blackhorse Lane Regeneration Area with Dv8 Training central to the development on the old Willowfield School site. | D75: =IF(Summary3[[#This Row],[Project ID]]=0,0,Q4_2021[[#This Row],[LEP Name]]) -> London LEP | E75: =IF(Summary3[[#This Row],[Project ID]]=0,0,Q4_2021[[#This Row],[Local Authority area the project is in]]) -> London Borough of Waltham Forest | F75: =IF(Summary3[[#This Row],[Project ID]]=0,0,Q4_2021[[#This Row],[Post Code]]) -> E17 6DS | G75: =IF(Summary3[[#This Row],[Project ID]]=0,0,Q4_2021[[#This Row],[Parliamentary Constituency]]) -> Walthamstow | H75: =IF(Summary3[[#This Row],[Project ID]]=0,0,Q4_2021[[#This Row],[Primary Project Type]]) -> Skills_Capital | I75: =IF(Summary3[[#This Row],[Project ID]]=0,0,Q4_2021[[#This Row],[Primary Project Activity]]) -> Investment in the further education estate | J75: =IF(Summary3[[#This Row],[Project ID]]=0,0,Q4_2021[[#This Row],[Secondary Project Type]]) -> Other | K75: =IF(Summary3[[#This Row],[Project ID]]=0,0,Q4_2021[[#This Row],[Secondary Project Activity]]) -> 0 | L75: =IF(Summary3[[#This Row],[Project ID]]=0,0,Q4_2021[[#This Row],[Project Type]]) -> Original | M75: =IF(Summary3[[#This Row],[Project ID]]=0,0,Q4_2021[[#This Row],[Project Status]]) -> Financially complete | N75: =IF(Summary3[[#This Row],[Project ID]]=0,0,Q4_2021[[#This Row],[Forecasted Financial Completion Date]]) -> 2019-06-30 | O75: =IF(Summary3[[#This Row],[Project ID]]=0,0,Q4_2021[[#This Row],[Actual Financial Completion]]) -> 2018-12-01 | P75: =IF(Summary3[[#This Row],[Project ID]]=0,0,Q4_2021[[#This Row],[Forecasted Practical Completion Date]]) -> 2025-03-31 | Q75: =IF(Summary3[[#This Row],[Project ID]]=0,0,Q4_2021[[#This Row],[Actual Practical Completion Date]]) -> 00:00:00 | R75: =IF(Summary3[[#This Row],[Project ID]]=0,0,Q4_2021[[#This Row],[Evaluation Method]]) -> closure form/partner evaluation | S75: =IF(Summary3[[#This Row],[Project ID]]=0,0,Q4_2021[[#This Row],[Total Budget]]) -> 3824703 | T75: =IF(Summary3[[#This Row],[Project ID]]=0,0,Q4_2021[[#This Row],[LGF Budget]]) -> 1800000 | U75: =IF(Summary3[[#This Row],[Project ID]]=0,0,Q4_2021[[#This Row],[Public Sector Leverage]]) -> 0 | V75: =IF(Summary3[[#This Row],[Project ID]]=0,0,Q4_2021[[#This Row],[Private Sector Leverage]]) -> 2024703 | W75: =IF(Summary3[[#This Row],[Project ID]]=0,0,Q4_2021[[#This Row],[Third Party Sector Leverage]]) -> 0 | X75: =IF(Summary3[[#This Row],[Project ID]]=0,0,Q4_2021[[#This Row],[LGF Outturn]]) -> 0 | Y75: =IF(Summary3[[#This Row],[Project ID]]=0,0,Q4_2021[[#This Row],[LGF Expenditure (as @ 31Mar21)]]) -> 1800000 | Z75: =IF(Summary3[[#This Row],[Project ID]]=0,0,Q4_2021[[#This Row],[Total non-LGF Expenditure (as @ 31Mar21)]]) -> 2024703 | AA75: 0 | AB75: 137 | AC75: 0 | AD75: 4359 | AE75: 0 | AF75: 0 | AG75: 0 | AH75: 0 | AI75: 0 | AJ75: 587 | AK75: 0 | AL75: 0 | AM75: 0 | AN75: 0 | AO75: 0 | AP75: 0 | AQ75: 0 | AR75: 0 | AS75: 0 | AT75: 0
A76: =IFERROR(Q4_2021[[#This Row],[Project ID]],0) -> LGFLON82 | B76: =IF(Summary3[[#This Row],[Project ID]]=0,0,Q4_2021[[#This Row],[Project Name]]) -> SFL Small Projects and Equipment Fund | C76: =IF(Summary3[[#This Row],[Project ID]]=0,0,Q4_2021[[#This Row],[Project Description (100 words max)]]) -> 40 projects ranging in value from 25k to 200k for small capital project and equipment | D76: =IF(Summary3[[#This Row],[Project ID]]=0,0,Q4_2021[[#This Row],[LEP Name]]) -> London LEP | E76: =IF(Summary3[[#This Row],[Project ID]]=0,0,Q4_2021[[#This Row],[Local Authority area the project is in]]) -> London wide- multiple locations | F76: =IF(Summary3[[#This Row],[Project ID]]=0,0,Q4_2021[[#This Row],[Post Code]]) -> Multi | G76: =IF(Summary3[[#This Row],[Project ID]]=0,0,Q4_2021[[#This Row],[Parliamentary Constituency]]) -> Multi | H76: =IF(Summary3[[#This Row],[Project ID]]=0,0,Q4_2021[[#This Row],[Primary Project Type]]) -> Skills_Capital | I76: =IF(Summary3[[#This Row],[Project ID]]=0,0,Q4_2021[[#This Row],[Primary Project Activity]]) -> Investment in the further education estate | J76: =IF(Summary3[[#This Row],[Project ID]]=0,0,Q4_2021[[#This Row],[Secondary Project Type]]) -> Other | K76: =IF(Summary3[[#This Row],[Project ID]]=0,0,Q4_2021[[#This Row],[Secondary Project Activity]]) -> 0 | L76: =IF(Summary3[[#This Row],[Project ID]]=0,0,Q4_2021[[#This Row],[Project Type]]) -> Original | M76: =IF(Summary3[[#This Row],[Project ID]]=0,0,Q4_2021[[#This Row],[Project Status]]) -> Financially complete | N76: =IF(Summary3[[#This Row],[Project ID]]=0,0,Q4_2021[[#This Row],[Forecasted Financial Completion Date]]) -> 2024-09-30 | O76: =IF(Summary3[[#This Row],[Project ID]]=0,0,Q4_2021[[#This Row],[Actual Financial Completion]]) -> 2024-09-30 | P76: =IF(Summary3[[#This Row],[Project ID]]=0,0,Q4_2021[[#This Row],[Forecasted Practical Completion Date]]) -> 2025-03-31 | Q76: =IF(Summary3[[#This Row],[Project ID]]=0,0,Q4_2021[[#This Row],[Actual Practical Completion Date]]) -> 00:00:00 | R76: =IF(Summary3[[#This Row],[Project ID]]=0,0,Q4_2021[[#This Row],[Evaluation Method]]) -> closure form/partner evaluation | S76: =IF(Summary3[[#This Row],[Project ID]]=0,0,Q4_2021[[#This Row],[Total Budget]]) -> 3452432 | T76: =IF(Summary3[[#This Row],[Project ID]]=0,0,Q4_2021[[#This Row],[LGF Budget]]) -> 3452432 | U76: =IF(Summary3[[#This Row],[Project ID]]=0,0,Q4_2021[[#This Row],[Public Sector Leverage]]) -> 0 | V76: =IF(Summary3[[#This Row],[Project ID]]=0,0,Q4_2021[[#This Row],[Private Sector Leverage]]) -> 0 | W76: =IF(Summary3[[#This Row],[Project ID]]=0,0,Q4_2021[[#This Row],[Third Party Sector Leverage]]) -> 0 | X76: =IF(Summary3[[#This Row],[Project ID]]=0,0,Q4_2021[[#This Row],[LGF Outturn]]) -> 0 | Y76: =IF(Summary3[[#This Row],[Project ID]]=0,0,Q4_2021[[#This Row],[LGF Expenditure (as @ 31Mar21)]]) -> 3327577 | Z76: =IF(Summary3[[#This Row],[Project ID]]=0,0,Q4_2021[[#This Row],[Total non-LGF Expenditure (as @ 31Mar21)]]) -> 0 | AA76: 0 | AB76: 452 | AC76: 0 | AD76: 0 | AE76: 0 | AF76: 0 | AG76: 0 | AH76: 12725 | AI76: 0 | AJ76: 10802 | AK76: 0 | AL76: 0 | AM76: 0 | AN76: 0 | AO76: 0 | AP76: 0 | AQ76: 0 | AR76: 0 | AS76: 0 | AT76: 0
A77: =IFERROR(Q4_2021[[#This Row],[Project ID]],0) -> LGFLON83 | B77: =IF(Summary3[[#This Row],[Project ID]]=0,0,Q4_2021[[#This Row],[Project Name]]) -> SFL Development Support Fund | C77: =IF(Summary3[[#This Row],[Project ID]]=0,0,Q4_2021[[#This Row],[Project Description (100 words max)]]) -> This is Developement Support Fund budget - 15 projects have completed spend | D77: =IF(Summary3[[#This Row],[Project ID]]=0,0,Q4_2021[[#This Row],[LEP Name]]) -> London LEP | E77: =IF(Summary3[[#This Row],[Project ID]]=0,0,Q4_2021[[#This Row],[Local Authority area the project is in]]) -> London wide- multiple locations | F77: =IF(Summary3[[#This Row],[Project ID]]=0,0,Q4_2021[[#This Row],[Post Code]]) -> Multi | G77: =IF(Summary3[[#This Row],[Project ID]]=0,0,Q4_2021[[#This Row],[Parliamentary Constituency]]) -> Multi | H77: =IF(Summary3[[#This Row],[Project ID]]=0,0,Q4_2021[[#This Row],[Primary Project Type]]) -> Skills_Capital | I77: =IF(Summary3[[#This Row],[Project ID]]=0,0,Q4_2021[[#This Row],[Primary Project Activity]]) -> Investment in the further education estate | J77: =IF(Summary3[[#This Row],[Project ID]]=0,0,Q4_2021[[#This Row],[Secondary Project Type]]) -> Other | K77: =IF(Summary3[[#This Row],[Project ID]]=0,0,Q4_2021[[#This Row],[Secondary Project Activity]]) -> 0 | L77: =IF(Summary3[[#This Row],[Project ID]]=0,0,Q4_2021[[#This Row],[Project Type]]) -> Original | M77: =IF(Summary3[[#This Row],[Project ID]]=0,0,Q4_2021[[#This Row],[Project Status]]) -> Completed – project complete | N77: =IF(Summary3[[#This Row],[Project ID]]=0,0,Q4_2021[[#This Row],[Forecasted Financial Completion Date]]) -> 2019-03-31 | O77: =IF(Summary3[[#This Row],[Project ID]]=0,0,Q4_2021[[#This Row],[Actual Financial Completion]]) -> 2021-03-31 | P77: =IF(Summary3[[#This Row],[Project ID]]=0,0,Q4_2021[[#This Row],[Forecasted Practical Completion Date]]) -> 2019-03-31 | Q77: =IF(Summary3[[#This Row],[Project ID]]=0,0,Q4_2021[[#This Row],[Actual Practical Completion Date]]) -> 2021-03-31 | R77: =IF(Summary3[[#This Row],[Project ID]]=0,0,Q4_2021[[#This Row],[Evaluation Method]]) -> closure form/partner evaluation | S77: =IF(Summary3[[#This Row],[Project ID]]=0,0,Q4_2021[[#This Row],[Total Budget]]) -> 1295315 | T77: =IF(Summary3[[#This Row],[Project ID]]=0,0,Q4_2021[[#This Row],[LGF Budget]]) -> 1295315 | U77: =IF(Summary3[[#This Row],[Project ID]]=0,0,Q4_2021[[#This Row],[Public Sector Leverage]]) -> 0 | V77: =IF(Summary3[[#This Row],[Project ID]]=0,0,Q4_2021[[#This Row],[Private Sector Leverage]]) -> 0 | W77: =IF(Summary3[[#This Row],[Project ID]]=0,0,Q4_2021[[#This Row],[Third Party Sector Leverage]]) -> 0 | X77: =IF(Summary3[[#This Row],[Project ID]]=0,0,Q4_2021[[#This Row],[LGF Outturn]]) -> 0 | Y77: =IF(Summary3[[#This Row],[Project ID]]=0,0,Q4_2021[[#This Row],[LGF Expenditure (as @ 31Mar21)]]) -> 1295315 | Z77: =IF(Summary3[[#This Row],[Project ID]]=0,0,Q4_2021[[#This Row],[Total non-LGF Expenditure (as @ 31Mar21)]]) -> 0 | AA77: 0 | AB77: 0 | AC77: 0 | AD77: 0 | AE77: 0 | AF77: 0 | AG77: 0 | AH77: 5476 | AI77: 0 | AJ77: 0 | AK77: 0 | AL77: 0 | AM77: 0 | AN77: 0 | AO77: 0 | AP77: 0 | AQ77: 0 | AR77: 0 | AS77: 0 | AT77: 0
A78: =IFERROR(Q4_2021[[#This Row],[Project ID]],0) -> LGFLON84 | B78: =IF(Summary3[[#This Row],[Project ID]]=0,0,Q4_2021[[#This Row],[Project Name]]) -> SFL Revenue | C78: =IF(Summary3[[#This Row],[Project ID]]=0,0,Q4_2021[[#This Row],[Project Description (100 words max)]]) -> This is SfL revenue budget | D78: =IF(Summary3[[#This Row],[Project ID]]=0,0,Q4_2021[[#This Row],[LEP Name]]) -> London LEP | E78: =IF(Summary3[[#This Row],[Project ID]]=0,0,Q4_2021[[#This Row],[Local Authority area the project is in]]) -> London wide- multiple locations | F78: =IF(Summary3[[#This Row],[Project ID]]=0,0,Q4_2021[[#This Row],[Post Code]]) -> Multi | G78: =IF(Summary3[[#This Row],[Project ID]]=0,0,Q4_2021[[#This Row],[Parliamentary Constituency]]) -> Multi | H78: =IF(Summary3[[#This Row],[Project ID]]=0,0,Q4_2021[[#This Row],[Primary Project Type]]) -> Skills_Capital | I78: =IF(Summary3[[#This Row],[Project ID]]=0,0,Q4_2021[[#This Row],[Primary Project Activity]]) -> Investment in the further education estate | J78: =IF(Summary3[[#This Row],[Project ID]]=0,0,Q4_2021[[#This Row],[Secondary Project Type]]) -> Other | K78: =IF(Summary3[[#This Row],[Project ID]]=0,0,Q4_2021[[#This Row],[Secondary Project Activity]]) -> 0 | L78: =IF(Summary3[[#This Row],[Project ID]]=0,0,Q4_2021[[#This Row],[Project Type]]) -> Original | M78: =IF(Summary3[[#This Row],[Project ID]]=0,0,Q4_2021[[#This Row],[Project Status]]) -> On - going delivery | N78: =IF(Summary3[[#This Row],[Project ID]]=0,0,Q4_2021[[#This Row],[Forecasted Financial Completion Date]]) -> 2033-03-31 | O78: =IF(Summary3[[#This Row],[Project ID]]=0,0,Q4_2021[[#This Row],[Actual Financial Completion]]) -> 00:00:00 | P78: =IF(Summary3[[#This Row],[Project ID]]=0,0,Q4_2021[[#This Row],[Forecasted Practical Completion Date]]) -> 2033-03-31 | Q78: =IF(Summary3[[#This Row],[Project ID]]=0,0,Q4_2021[[#This Row],[Actual Practical Completion Date]]) -> 00:00:00 | R78: =IF(Summary3[[#This Row],[Project ID]]=0,0,Q4_2021[[#This Row],[Evaluation Method]]) -> closure form/partner evaluation | S78: =IF(Summary3[[#This Row],[Project ID]]=0,0,Q4_2021[[#This Row],[Total Budget]]) -> 3704685 | T78: =IF(Summary3[[#This Row],[Project ID]]=0,0,Q4_2021[[#This Row],[LGF Budget]]) -> 3704685 | U78: =IF(Summary3[[#This Row],[Project ID]]=0,0,Q4_2021[[#This Row],[Public Sector Leverage]]) -> 0 | V78: =IF(Summary3[[#This Row],[Project ID]]=0,0,Q4_2021[[#This Row],[Private Sector Leverage]]) -> 0 | W78: =IF(Summary3[[#This Row],[Project ID]]=0,0,Q4_2021[[#This Row],[Third Party Sector Leverage]]) -> 0 | X78: =IF(Summary3[[#This Row],[Project ID]]=0,0,Q4_2021[[#This Row],[LGF Outturn]]) -> 0 | Y78: =IF(Summary3[[#This Row],[Project ID]]=0,0,Q4_2021[[#This Row],[LGF Expenditure (as @ 31Mar21)]]) -> 1272071 | Z78: =IF(Summary3[[#This Row],[Project ID]]=0,0,Q4_2021[[#This Row],[Total non-LGF Expenditure (as @ 31Mar21)]]) -> 0 | AA78: 0 | AB78: 0 | AC78: 0 | AD78: 0 | AE78: 0 | AF78: 0 | AG78: 0 | AH78: 0 | AI78: 0 | AJ78: 0 | AK78: 0 | AL78: 0 | AM78: 0 | AN78: 0 | AO78: 0 | AP78: 0 | AQ78: 0 | AR78: 0 | AS78: 0 | AT78: 0
